Departmental Family,Entity,Date,Expense type,Expense area,Description,Supplier,Transaction Number,Amount
Department for Education,DEPARTMENT FOR EDUCATION,01/07/2015,Grants,"Childcare, Special Educational Needs and Children's Strategy Group",Grants to third sector organisations / not for profit organisations and other businesses,THE FAMILY FUND TRUST,4000211232,2442293.00
Department for Education,DEPARTMENT FOR EDUCATION,01/07/2015,ICT,Information Technology Group,Partial payment for IT hardware / consumables,ATKINS MANTIX LTD,4000211235,70189.20
Department for Education,DEPARTMENT FOR EDUCATION,01/07/2015,ICT,Information Technology Group,ICT Services,ATKINS MANTIX LTD,4000211235,53708.40
Department for Education,DEPARTMENT FOR EDUCATION,01/07/2015,Professional Services Other,Children's Services and Departmental Strategy Safeguarding Group,Legal services provided externally (excluding Treasury Solicitor) ,BURGES SALMON,4000211265,32000.00
Department for Education,DEPARTMENT FOR EDUCATION,01/07/2015,Grants,Academies Delivery Group,Grants to third sector organisations / not for profit organisations and other businesses,ST MARYS COFE VA PRIMARY SCHOOL,4000211253,25000.00
Department for Education,NATIONAL COLLEGE FOR TEACHING AND LEADERSHIP AGENCY,01/07/2015,Professional Services Other,Delivery Directorate,"Fees / expenses of professionals, for example to implement advice or changes",TEACHING LEADERS,4000211315,660532.00
Department for Education,DEPARTMENT FOR EDUCATION,01/07/2015,Grants,Academies Delivery Group,Grants to third sector organisations / not for profit organisations and other businesses,HILLINGDON TUITON CENTRE,4000211302,25000.00
Department for Education,NATIONAL COLLEGE FOR TEACHING AND LEADERSHIP AGENCY,01/07/2015,Professional Services Other,Delivery Directorate,"Fees / expenses of professionals, for example to implement advice or changes",TEACHING LEADERS,4000211315,134097.00
Department for Education,NATIONAL COLLEGE FOR TEACHING AND LEADERSHIP AGENCY,01/07/2015,Professional Services Other,Delivery Directorate,"Fees / expenses of professionals, for example to implement advice or changes",RM EDUCATION,4000211294,78000.00
Department for Education,NATIONAL COLLEGE FOR TEACHING AND LEADERSHIP AGENCY,01/07/2015,Professional Services Other,Delivery Directorate,"Fees / expenses of professionals, for example to implement advice or changes",MM TELEPERFORMANCE,4000211249,45390.00
Department for Education,DEPARTMENT FOR EDUCATION,01/07/2015,ICT,Information Technology Group,ICT Software,SOFTCAT LTD,4000211258,102560.26
Department for Education,DEPARTMENT FOR EDUCATION,01/07/2015,Facilities,Property Asset Management Group,"Building maintenance and repair, including repainting, replacing flooring, etc.",INTERSERVE FACILITIES MANAGEMENT LTD,4000211279,87082.53
Department for Education,DEPARTMENT FOR EDUCATION,01/07/2015,Programme costs,Children in Care Division,Funding to deliver policies (excluding consultancy) paid to third parties via a service delivery contract,BRITISH ASSOCIATION FOR ADOPTION & FOSTERING,4000211227,34511.00
Department for Education,DEPARTMENT FOR EDUCATION,02/07/2015,Funding to pay Teachers' Pensions,Teachers and Teaching Group,Pension related payments to retired teachers where liability has transferred to SoS,TPS GOVERNMENT BANKING SERVICE ACCOUNT,2001131,285961.67
Department for Education,DEPARTMENT FOR EDUCATION,02/07/2015,Funding to pay Teachers' Pensions,Teachers and Teaching Group,Pension related payments to retired teachers where liability has transferred to SoS,TPS GOVERNMENT BANKING SERVICE ACCOUNT,2001131,7206.53
Department for Education,DEPARTMENT FOR EDUCATION,02/07/2015,Funding to pay Teachers' Pensions,Teachers and Teaching Group,Pension related payments to retired teachers where liability has transferred to SoS,TPS GOVERNMENT BANKING SERVICE ACCOUNT,2001132,734484.30
Department for Education,NATIONAL COLLEGE FOR TEACHING AND LEADERSHIP AGENCY,02/07/2015,Grants,Operations Directorate,Grants to third sector organisations / not for profit organisations and other businesses,INSTITUTE OF EDUCATION U.O.L.,4000211423,700465.00
Department for Education,NATIONAL COLLEGE FOR TEACHING AND LEADERSHIP AGENCY,02/07/2015,Grants,Operations Directorate,Grants to third sector organisations / not for profit organisations and other businesses,MANCHESTER METROPOLITAN UNIVERSITY,4000211446,388207.50
Department for Education,NATIONAL COLLEGE FOR TEACHING AND LEADERSHIP AGENCY,02/07/2015,Grants,Operations Directorate,Grants to third sector organisations / not for profit organisations and other businesses,UNIVERSITY OF CAMBRIDGE,4000211556,379200.00
Department for Education,NATIONAL COLLEGE FOR TEACHING AND LEADERSHIP AGENCY,02/07/2015,Grants,Operations Directorate,Grants to third sector organisations / not for profit organisations and other businesses,UNIVERSITY OF CUMBRIA,4000211368,327629.00
Department for Education,NATIONAL COLLEGE FOR TEACHING AND LEADERSHIP AGENCY,02/07/2015,Grants,Operations Directorate,Grants to third sector organisations / not for profit organisations and other businesses,THE UNIVERSITY OF MANCHESTER,4000211541,320760.00
Department for Education,NATIONAL COLLEGE FOR TEACHING AND LEADERSHIP AGENCY,02/07/2015,Grants,Operations Directorate,Grants to third sector organisations / not for profit organisations and other businesses,UNIVERSITY OF EAST ANGLIA,4000211412,313160.00
Department for Education,NATIONAL COLLEGE FOR TEACHING AND LEADERSHIP AGENCY,02/07/2015,Grants,Delivery Directorate,Grants to third sector organisations / not for profit organisations and other businesses,HIBERNIA COLLEGE UK,4000211469,305035.39
Department for Education,NATIONAL COLLEGE FOR TEACHING AND LEADERSHIP AGENCY,02/07/2015,Grants,Operations Directorate,Grants to third sector organisations / not for profit organisations and other businesses,UNIVERSITY OF LEICESTER,4000211528,272074.50
Department for Education,NATIONAL COLLEGE FOR TEACHING AND LEADERSHIP AGENCY,02/07/2015,Grants,Operations Directorate,Grants to third sector organisations / not for profit organisations and other businesses,HIBERNIA COLLEGE UK,4000211469,264995.00
Department for Education,NATIONAL COLLEGE FOR TEACHING AND LEADERSHIP AGENCY,02/07/2015,Grants,Operations Directorate,Grants to third sector organisations / not for profit organisations and other businesses,UNIVERSITY OF THE WEST OF ENGLAND,4000211538,230490.00
Department for Education,NATIONAL COLLEGE FOR TEACHING AND LEADERSHIP AGENCY,02/07/2015,Grants,Operations Directorate,Grants to third sector organisations / not for profit organisations and other businesses,BIRMINGHAM CITY UNIVERSITY,4000211557,225495.00
Department for Education,NATIONAL COLLEGE FOR TEACHING AND LEADERSHIP AGENCY,02/07/2015,Grants,Operations Directorate,Grants to third sector organisations / not for profit organisations and other businesses,EDGE HILL UNIVERSITY,4000211526,220570.00
Department for Education,NATIONAL COLLEGE FOR TEACHING AND LEADERSHIP AGENCY,02/07/2015,Grants,Operations Directorate,Grants to third sector organisations / not for profit organisations and other businesses,CANTERBURY CHRIST CHURCH UNIVERSITY,4000211491,217020.00
Department for Education,NATIONAL COLLEGE FOR TEACHING AND LEADERSHIP AGENCY,02/07/2015,Grants,Operations Directorate,Grants to third sector organisations / not for profit organisations and other businesses,KINGS COLLEGE GUILDFORD,4000211431,210983.34
Department for Education,NATIONAL COLLEGE FOR TEACHING AND LEADERSHIP AGENCY,02/07/2015,Grants,Operations Directorate,Grants to third sector organisations / not for profit organisations and other businesses,UNIVERSITY OF OXFORD,4000211597,207400.00
Department for Education,NATIONAL COLLEGE FOR TEACHING AND LEADERSHIP AGENCY,02/07/2015,Grants,Operations Directorate,Grants to third sector organisations / not for profit organisations and other businesses,UNIVERSITY OF WORCESTER,4000211615,201780.00
Department for Education,NATIONAL COLLEGE FOR TEACHING AND LEADERSHIP AGENCY,02/07/2015,Grants,Operations Directorate,Grants to third sector organisations / not for profit organisations and other businesses,UNIVERSITY OF BIRMINGHAM,4000211485,199990.00
Department for Education,NATIONAL COLLEGE FOR TEACHING AND LEADERSHIP AGENCY,02/07/2015,Grants,Operations Directorate,Grants to third sector organisations / not for profit organisations and other businesses,UNIVERSITY OF CHICHESTER,4000211384,199740.00
Department for Education,NATIONAL COLLEGE FOR TEACHING AND LEADERSHIP AGENCY,02/07/2015,Grants,Operations Directorate,Grants to third sector organisations / not for profit organisations and other businesses,UNIVERSITY OF BRISTOL,4000211342,198820.00
Department for Education,NATIONAL COLLEGE FOR TEACHING AND LEADERSHIP AGENCY,02/07/2015,Grants,Operations Directorate,Grants to third sector organisations / not for profit organisations and other businesses,GOLDSMITH COLLEGE,4000211400,196325.00
Department for Education,NATIONAL COLLEGE FOR TEACHING AND LEADERSHIP AGENCY,02/07/2015,Grants,Operations Directorate,Grants to third sector organisations / not for profit organisations and other businesses,KINGSTON UNIVERSITY,4000211476,191912.50
Department for Education,NATIONAL COLLEGE FOR TEACHING AND LEADERSHIP AGENCY,02/07/2015,Grants,Operations Directorate,Grants to third sector organisations / not for profit organisations and other businesses,UNIVERSITY OF EAST LONDON,4000211598,189120.00
Department for Education,NATIONAL COLLEGE FOR TEACHING AND LEADERSHIP AGENCY,02/07/2015,Grants,Operations Directorate,Grants to third sector organisations / not for profit organisations and other businesses,THE ROYAL BOROUGH OF WINDSOR & MAIDENHEAD,4000211619,188853.50
Department for Education,NATIONAL COLLEGE FOR TEACHING AND LEADERSHIP AGENCY,02/07/2015,Grants,Operations Directorate,Grants to third sector organisations / not for profit organisations and other businesses,UNIVERSITY OF DURHAM,4000211518,181920.00
Department for Education,NATIONAL COLLEGE FOR TEACHING AND LEADERSHIP AGENCY,02/07/2015,Grants,Operations Directorate,Grants to third sector organisations / not for profit organisations and other businesses,UNIVERSITY OF HULL,4000211343,181282.50
Department for Education,NATIONAL COLLEGE FOR TEACHING AND LEADERSHIP AGENCY,02/07/2015,Grants,Operations Directorate,Grants to third sector organisations / not for profit organisations and other businesses,THE UNIVERSITY OF LEEDS,4000211503,176467.50
Department for Education,NATIONAL COLLEGE FOR TEACHING AND LEADERSHIP AGENCY,02/07/2015,Grants,Operations Directorate,Grants to third sector organisations / not for profit organisations and other businesses,LEEDS TRINITY UNIVERSITY COLLEGE,4000211507,173575.00
Department for Education,NATIONAL COLLEGE FOR TEACHING AND LEADERSHIP AGENCY,02/07/2015,Grants,Operations Directorate,Grants to third sector organisations / not for profit organisations and other businesses,ST MARYS UNIVERSITY COLLEGE,4000211438,172880.00
Department for Education,NATIONAL COLLEGE FOR TEACHING AND LEADERSHIP AGENCY,02/07/2015,Grants,Operations Directorate,Grants to third sector organisations / not for profit organisations and other businesses,UNIVERSITY OF ROEHAMPTON,4000211383,171912.50
Department for Education,NATIONAL COLLEGE FOR TEACHING AND LEADERSHIP AGENCY,02/07/2015,Grants,Operations Directorate,Grants to third sector organisations / not for profit organisations and other businesses,THE UNIVERSITY OF READING,4000211378,164520.00
Department for Education,NATIONAL COLLEGE FOR TEACHING AND LEADERSHIP AGENCY,02/07/2015,Grants,Operations Directorate,Grants to third sector organisations / not for profit organisations and other businesses,YORK ST JOHN UNIVERSITY,4000211585,163617.86
Department for Education,NATIONAL COLLEGE FOR TEACHING AND LEADERSHIP AGENCY,02/07/2015,Grants,Operations Directorate,Grants to third sector organisations / not for profit organisations and other businesses,LIVERPOOL JOHN MOORES UNIVERSITY,4000211558,161930.00
Department for Education,NATIONAL COLLEGE FOR TEACHING AND LEADERSHIP AGENCY,02/07/2015,Grants,Operations Directorate,Grants to third sector organisations / not for profit organisations and other businesses,THAMES PRIMARY CONSORTIUM,4000211398,157175.00
Department for Education,NATIONAL COLLEGE FOR TEACHING AND LEADERSHIP AGENCY,02/07/2015,Grants,Operations Directorate,Grants to third sector organisations / not for profit organisations and other businesses,SHEFFIELD HALLAM UNIVERSITY,4000211499,156355.00
Department for Education,NATIONAL COLLEGE FOR TEACHING AND LEADERSHIP AGENCY,02/07/2015,Grants,Operations Directorate,Grants to third sector organisations / not for profit organisations and other businesses,UNIVERSITY OF NEWCASTLE UPON TYNE,4000211521,156200.00
Department for Education,NATIONAL COLLEGE FOR TEACHING AND LEADERSHIP AGENCY,02/07/2015,Grants,Operations Directorate,Grants to third sector organisations / not for profit organisations and other businesses,UNIVERSITY OF NOTTINGHAM,4000211478,153892.50
Department for Education,NATIONAL COLLEGE FOR TEACHING AND LEADERSHIP AGENCY,02/07/2015,Grants,Operations Directorate,Grants to third sector organisations / not for profit organisations and other businesses,NEWMAN COLLEGE,4000211533,153512.50
Department for Education,NATIONAL COLLEGE FOR TEACHING AND LEADERSHIP AGENCY,02/07/2015,Grants,Operations Directorate,Grants to third sector organisations / not for profit organisations and other businesses,UNIVERSITY OF SUSSEX,4000211434,152640.00
Department for Education,NATIONAL COLLEGE FOR TEACHING AND LEADERSHIP AGENCY,02/07/2015,Grants,Operations Directorate,Grants to third sector organisations / not for profit organisations and other businesses,LIVERPOOL HOPE UNIVERSITY,4000211552,152305.00
Department for Education,NATIONAL COLLEGE FOR TEACHING AND LEADERSHIP AGENCY,02/07/2015,Grants,Operations Directorate,Grants to third sector organisations / not for profit organisations and other businesses,UNIVERSITY OF GREENWICH,4000211349,148330.00
Department for Education,NATIONAL COLLEGE FOR TEACHING AND LEADERSHIP AGENCY,02/07/2015,Grants,Operations Directorate,Grants to third sector organisations / not for profit organisations and other businesses,UNIVERSITY OF WARWICK,4000211586,141930.00
Department for Education,NATIONAL COLLEGE FOR TEACHING AND LEADERSHIP AGENCY,02/07/2015,Grants,Operations Directorate,Grants to third sector organisations / not for profit organisations and other businesses,UNIVERSITY OF SOUTHAMPTON,4000211376,141159.00
Department for Education,NATIONAL COLLEGE FOR TEACHING AND LEADERSHIP AGENCY,02/07/2015,Grants,Operations Directorate,Grants to third sector organisations / not for profit organisations and other businesses,UNIVERSITY OF HERTFORDSHIRE,4000211614,140702.95
Department for Education,NATIONAL COLLEGE FOR TEACHING AND LEADERSHIP AGENCY,02/07/2015,Grants,Operations Directorate,Grants to third sector organisations / not for profit organisations and other businesses,UNIVERSITY OF WOLVERHAMPTON,4000211520,140330.00
Department for Education,NATIONAL COLLEGE FOR TEACHING AND LEADERSHIP AGENCY,02/07/2015,Grants,Operations Directorate,Grants to third sector organisations / not for profit organisations and other businesses,OXFORD BROOKES UNIVERSITY,4000211463,139920.00
Department for Education,NATIONAL COLLEGE FOR TEACHING AND LEADERSHIP AGENCY,02/07/2015,Grants,Operations Directorate,Grants to third sector organisations / not for profit organisations and other businesses,BISHOP GROSSETESTE COLLEGE,4000211515,134435.00
Department for Education,NATIONAL COLLEGE FOR TEACHING AND LEADERSHIP AGENCY,02/07/2015,Grants,Operations Directorate,Grants to third sector organisations / not for profit organisations and other businesses,NOTTINGHAM TRENT UNIVERSITY,4000211616,132050.00
Department for Education,NATIONAL COLLEGE FOR TEACHING AND LEADERSHIP AGENCY,02/07/2015,Grants,Operations Directorate,Grants to third sector organisations / not for profit organisations and other businesses,BRUNEL UNIVERSITY,4000211458,128336.81
Department for Education,NATIONAL COLLEGE FOR TEACHING AND LEADERSHIP AGENCY,02/07/2015,Grants,Operations Directorate,Grants to third sector organisations / not for profit organisations and other businesses,UNIVERSITY OF EXETER,4000211525,124927.00
Department for Education,NATIONAL COLLEGE FOR TEACHING AND LEADERSHIP AGENCY,02/07/2015,Grants,Delivery Directorate,Grants to third sector organisations / not for profit organisations and other businesses,UNIVERSITY OF SUSSEX,4000211434,124427.89
Department for Education,NATIONAL COLLEGE FOR TEACHING AND LEADERSHIP AGENCY,02/07/2015,Grants,Operations Directorate,Grants to third sector organisations / not for profit organisations and other businesses,UNIVERSITY OF SHEFFIELD,4000211550,122760.00
Department for Education,NATIONAL COLLEGE FOR TEACHING AND LEADERSHIP AGENCY,02/07/2015,Grants,Operations Directorate,Grants to third sector organisations / not for profit organisations and other businesses,UNIVERSITY OF SUNDERLAND,4000211506,115590.00
Department for Education,NATIONAL COLLEGE FOR TEACHING AND LEADERSHIP AGENCY,02/07/2015,Grants,Operations Directorate,Grants to third sector organisations / not for profit organisations and other businesses,LONDON METROPOLITAN UNIVERSITY,4000211617,114880.00
Department for Education,NATIONAL COLLEGE FOR TEACHING AND LEADERSHIP AGENCY,02/07/2015,Grants,Operations Directorate,Grants to third sector organisations / not for profit organisations and other businesses,UNIVERSITY OF BRIGHTON,4000211481,114390.00
Department for Education,NATIONAL COLLEGE FOR TEACHING AND LEADERSHIP AGENCY,02/07/2015,Grants,Operations Directorate,Grants to third sector organisations / not for profit organisations and other businesses,UNIVERSITY OF NORTHUMBRIA,4000211601,112872.50
Department for Education,NATIONAL COLLEGE FOR TEACHING AND LEADERSHIP AGENCY,02/07/2015,Grants,Operations Directorate,Grants to third sector organisations / not for profit organisations and other businesses,BATH SPA UNIVERSITY,4000211502,112820.00
Department for Education,NATIONAL COLLEGE FOR TEACHING AND LEADERSHIP AGENCY,02/07/2015,Grants,Delivery Directorate,Grants to third sector organisations / not for profit organisations and other businesses,EDGE HILL UNIVERSITY,4000211526,110150.00
Department for Education,NATIONAL COLLEGE FOR TEACHING AND LEADERSHIP AGENCY,02/07/2015,Grants,Operations Directorate,Grants to third sector organisations / not for profit organisations and other businesses,MANCHESTER METROPOLITAN UNIVERSITY,4000211446,107406.00
Department for Education,NATIONAL COLLEGE FOR TEACHING AND LEADERSHIP AGENCY,02/07/2015,Grants,Operations Directorate,Grants to third sector organisations / not for profit organisations and other businesses,MIDDLESEX UNIVERSITY,4000211564,105810.00
Department for Education,NATIONAL COLLEGE FOR TEACHING AND LEADERSHIP AGENCY,02/07/2015,Grants,Operations Directorate,Grants to third sector organisations / not for profit organisations and other businesses,UNIVERSITY OF YORK,4000211522,100540.00
Department for Education,NATIONAL COLLEGE FOR TEACHING AND LEADERSHIP AGENCY,02/07/2015,Grants,Operations Directorate,Grants to third sector organisations / not for profit organisations and other businesses,UNIVERSITY OF BRIGHTON,4000211481,97742.00
Department for Education,NATIONAL COLLEGE FOR TEACHING AND LEADERSHIP AGENCY,02/07/2015,Grants,Operations Directorate,Grants to third sector organisations / not for profit organisations and other businesses,UNIVERSITY OF WINCHESTER,4000211362,96776.65
Department for Education,NATIONAL COLLEGE FOR TEACHING AND LEADERSHIP AGENCY,02/07/2015,Grants,Operations Directorate,Grants to third sector organisations / not for profit organisations and other businesses,BRADFORD COLLEGE,4000211553,94780.00
Department for Education,NATIONAL COLLEGE FOR TEACHING AND LEADERSHIP AGENCY,02/07/2015,Grants,Operations Directorate,Grants to third sector organisations / not for profit organisations and other businesses,UNIVERSITY OF PLYMOUTH,4000211435,94240.00
Department for Education,NATIONAL COLLEGE FOR TEACHING AND LEADERSHIP AGENCY,02/07/2015,Grants,Operations Directorate,Grants to third sector organisations / not for profit organisations and other businesses,ANGLIA RUSKIN UNIVERSITY,4000211459,92943.50
Department for Education,NATIONAL COLLEGE FOR TEACHING AND LEADERSHIP AGENCY,02/07/2015,Grants,Operations Directorate,Grants to third sector organisations / not for profit organisations and other businesses,UNIVERSITY OF GLOUCESTERSHIRE,4000211551,90600.00
Department for Education,NATIONAL COLLEGE FOR TEACHING AND LEADERSHIP AGENCY,02/07/2015,Grants,Operations Directorate,Grants to third sector organisations / not for profit organisations and other businesses,UNIVERSITY OF CHESTER,4000211381,88162.50
Department for Education,NATIONAL COLLEGE FOR TEACHING AND LEADERSHIP AGENCY,02/07/2015,Grants,Operations Directorate,Grants to third sector organisations / not for profit organisations and other businesses,UNIVERSITY OF HUDDERSFIELD,4000211487,85940.00
Department for Education,NATIONAL COLLEGE FOR TEACHING AND LEADERSHIP AGENCY,02/07/2015,Grants,Operations Directorate,Grants to third sector organisations / not for profit organisations and other businesses,UNIVERSITY OF DERBY,4000211409,85350.00
Department for Education,NATIONAL COLLEGE FOR TEACHING AND LEADERSHIP AGENCY,02/07/2015,Grants,Operations Directorate,Grants to third sector organisations / not for profit organisations and other businesses,UNIVERSITY OF THE WEST OF ENGLAND,4000211538,85070.00
Department for Education,NATIONAL COLLEGE FOR TEACHING AND LEADERSHIP AGENCY,02/07/2015,Grants,Operations Directorate,Grants to third sector organisations / not for profit organisations and other businesses,UNIVERSITY OF WINCHESTER,4000211362,80784.00
Department for Education,NATIONAL COLLEGE FOR TEACHING AND LEADERSHIP AGENCY,02/07/2015,Grants,Operations Directorate,Grants to third sector organisations / not for profit organisations and other businesses,LIVERPOOL HOPE UNIVERSITY,4000211552,75505.50
Department for Education,NATIONAL COLLEGE FOR TEACHING AND LEADERSHIP AGENCY,02/07/2015,Grants,Operations Directorate,Current grants to local authorities,SOMERSET COUNTY COUNCIL,4000211348,43150.00
Department for Education,NATIONAL COLLEGE FOR TEACHING AND LEADERSHIP AGENCY,02/07/2015,Grants,Operations Directorate,Grants to third sector organisations / not for profit organisations and other businesses,UNIVERSITY OF SUSSEX,4000211434,66320.00
Department for Education,NATIONAL COLLEGE FOR TEACHING AND LEADERSHIP AGENCY,02/07/2015,Grants,Operations Directorate,Grants to third sector organisations / not for profit organisations and other businesses,STAFFORDSHIRE UNIVERSITY,4000211408,64680.00
Department for Education,NATIONAL COLLEGE FOR TEACHING AND LEADERSHIP AGENCY,02/07/2015,Grants,Operations Directorate,Grants to third sector organisations / not for profit organisations and other businesses,CARMEL TEACHER TRAINING PARTNERSHIP,4000211379,64350.00
Department for Education,NATIONAL COLLEGE FOR TEACHING AND LEADERSHIP AGENCY,02/07/2015,Grants,Delivery Directorate,Grants to third sector organisations / not for profit organisations and other businesses,UNIVERSITY OF EAST LONDON,4000211598,64000.00
Department for Education,NATIONAL COLLEGE FOR TEACHING AND LEADERSHIP AGENCY,02/07/2015,Grants,Delivery Directorate,Grants to third sector organisations / not for profit organisations and other businesses,NOTTINGHAM TRENT UNIVERSITY,4000211616,61200.00
Department for Education,NATIONAL COLLEGE FOR TEACHING AND LEADERSHIP AGENCY,02/07/2015,Grants,Operations Directorate,Grants to third sector organisations / not for profit organisations and other businesses,LEEDS TRINITY UNIVERSITY COLLEGE,4000211507,61047.00
Department for Education,DEPARTMENT FOR EDUCATION,02/07/2015,Grants,Children in Care Division,Grants to third sector organisations / not for profit organisations and other businesses,THE SHARE FOUNDATION 3RD PARTY TRUST,4000211471,37000.00
Department for Education,NATIONAL COLLEGE FOR TEACHING AND LEADERSHIP AGENCY,02/07/2015,Grants,Operations Directorate,Grants to third sector organisations / not for profit organisations and other businesses,UNIVERSITY OF BOLTON,4000211612,59600.00
Department for Education,NATIONAL COLLEGE FOR TEACHING AND LEADERSHIP AGENCY,02/07/2015,Grants,Delivery Directorate,Current grants to local authorities,SOMERSET COUNTY COUNCIL,4000211348,33000.00
Department for Education,NATIONAL COLLEGE FOR TEACHING AND LEADERSHIP AGENCY,02/07/2015,Grants,Operations Directorate,Grants to third sector organisations / not for profit organisations and other businesses,GLOUCESTERSHIRE ITE PARTNERSHIP,4000211417,57490.00
Department for Education,NATIONAL COLLEGE FOR TEACHING AND LEADERSHIP AGENCY,02/07/2015,Grants,Operations Directorate,Grants to third sector organisations / not for profit organisations and other businesses,UNIVERSITY OF HULL,4000211343,57375.00
Department for Education,NATIONAL COLLEGE FOR TEACHING AND LEADERSHIP AGENCY,02/07/2015,Grants,Operations Directorate,Grants to third sector organisations / not for profit organisations and other businesses,NOTTINGHAM TRENT UNIVERSITY,4000211616,57300.00
Department for Education,NATIONAL COLLEGE FOR TEACHING AND LEADERSHIP AGENCY,02/07/2015,Grants,Operations Directorate,Grants to third sector organisations / not for profit organisations and other businesses,UNIVERSITY OF PORTSMOUTH,4000211536,56930.00
Department for Education,NATIONAL COLLEGE FOR TEACHING AND LEADERSHIP AGENCY,02/07/2015,Grants,Operations Directorate,Grants to third sector organisations / not for profit organisations and other businesses,NEWCASTLE COLLEGE GROUP,4000211613,55100.00
Department for Education,NATIONAL COLLEGE FOR TEACHING AND LEADERSHIP AGENCY,02/07/2015,Grants,Delivery Directorate,Grants to third sector organisations / not for profit organisations and other businesses,MANCHESTER METROPOLITAN UNIVERSITY,4000211446,53630.00
Department for Education,NATIONAL COLLEGE FOR TEACHING AND LEADERSHIP AGENCY,02/07/2015,Grants,Delivery Directorate,Grants to third sector organisations / not for profit organisations and other businesses,UNIVERSITY OF NORTHAMPTON,4000211437,52644.00
Department for Education,NATIONAL COLLEGE FOR TEACHING AND LEADERSHIP AGENCY,02/07/2015,Grants,Delivery Directorate,Grants to third sector organisations / not for profit organisations and other businesses,UNIVERSITY OF THE WEST OF ENGLAND,4000211538,52400.00
Department for Education,NATIONAL COLLEGE FOR TEACHING AND LEADERSHIP AGENCY,02/07/2015,Grants,Operations Directorate,Grants to third sector organisations / not for profit organisations and other businesses,NINESTILES SCHOOL,4000211453,51550.00
Department for Education,NATIONAL COLLEGE FOR TEACHING AND LEADERSHIP AGENCY,02/07/2015,Grants,Operations Directorate,Grants to third sector organisations / not for profit organisations and other businesses,KINGSBRIDGE NLC WIGAN,4000211443,51250.00
Department for Education,NATIONAL COLLEGE FOR TEACHING AND LEADERSHIP AGENCY,02/07/2015,Grants,Operations Directorate,Current grants to local authorities,DONCASTER MBC,4000211524,39930.00
Department for Education,NATIONAL COLLEGE FOR TEACHING AND LEADERSHIP AGENCY,02/07/2015,Grants,Operations Directorate,Grants to third sector organisations / not for profit organisations and other businesses,KENT & MEDWAY TRAINING,4000211468,48730.00
Department for Education,NATIONAL COLLEGE FOR TEACHING AND LEADERSHIP AGENCY,02/07/2015,Grants,Operations Directorate,Grants to third sector organisations / not for profit organisations and other businesses,INSTITUTE OF EDUCATION U.O.L.,4000211423,48400.00
Department for Education,NATIONAL COLLEGE FOR TEACHING AND LEADERSHIP AGENCY,02/07/2015,Grants,Delivery Directorate,Current grants to local authorities,DONCASTER MBC,4000211524,16800.00
Department for Education,NATIONAL COLLEGE FOR TEACHING AND LEADERSHIP AGENCY,02/07/2015,Grants,Operations Directorate,Grants to third sector organisations / not for profit organisations and other businesses,CORNWALL SCITT,4000211375,46510.00
Department for Education,NATIONAL COLLEGE FOR TEACHING AND LEADERSHIP AGENCY,02/07/2015,Grants,Delivery Directorate,Grants to third sector organisations / not for profit organisations and other businesses,ANGLIA RUSKIN UNIVERSITY,4000211459,46200.00
Department for Education,NATIONAL COLLEGE FOR TEACHING AND LEADERSHIP AGENCY,02/07/2015,Grants,Operations Directorate,Grants to third sector organisations / not for profit organisations and other businesses,THE ACADEMY AT SHOTTON HALL,4000211591,43670.00
Department for Education,NATIONAL COLLEGE FOR TEACHING AND LEADERSHIP AGENCY,02/07/2015,Grants,Operations Directorate,Current grants to local authorities,SUFFOLK COUNTY COUNCIL,4000211542,74624.73
Department for Education,NATIONAL COLLEGE FOR TEACHING AND LEADERSHIP AGENCY,02/07/2015,Grants,Operations Directorate,Grants to third sector organisations / not for profit organisations and other businesses,UNIVERSITY OF SUNDERLAND,4000211506,43146.00
Department for Education,NATIONAL COLLEGE FOR TEACHING AND LEADERSHIP AGENCY,02/07/2015,Grants,Operations Directorate,Grants to third sector organisations / not for profit organisations and other businesses,EAST LINCOLNSHIRE DRB,4000211415,41880.00
Department for Education,NATIONAL COLLEGE FOR TEACHING AND LEADERSHIP AGENCY,02/07/2015,Grants,Delivery Directorate,Grants to third sector organisations / not for profit organisations and other businesses,KINGSTON UNIVERSITY,4000211476,41420.00
Department for Education,NATIONAL COLLEGE FOR TEACHING AND LEADERSHIP AGENCY,02/07/2015,Grants,Operations Directorate,Grants to third sector organisations / not for profit organisations and other businesses,LONDON SOUTH BANK UNIVERSITY,4000211377,41000.00
Department for Education,NATIONAL COLLEGE FOR TEACHING AND LEADERSHIP AGENCY,02/07/2015,Grants,Operations Directorate,Grants to third sector organisations / not for profit organisations and other businesses,BOURNEMOUTH POOLE & DORSET EAST SECONDARY,4000211359,40700.00
Department for Education,NATIONAL COLLEGE FOR TEACHING AND LEADERSHIP AGENCY,02/07/2015,Grants,Operations Directorate,Grants to third sector organisations / not for profit organisations and other businesses,ARK SCHOOLS,4000211629,40575.00
Department for Education,NATIONAL COLLEGE FOR TEACHING AND LEADERSHIP AGENCY,02/07/2015,Grants,Operations Directorate,Current grants to educational establishments,LOUGHBOROUGH UNIVERSITY ENTERPRISE LTD,4000211572,30140.00
Department for Education,NATIONAL COLLEGE FOR TEACHING AND LEADERSHIP AGENCY,02/07/2015,Grants,Operations Directorate,Grants to third sector organisations / not for profit organisations and other businesses,UNIVERSITY OF CHICHESTER,4000211384,39130.00
Department for Education,NATIONAL COLLEGE FOR TEACHING AND LEADERSHIP AGENCY,02/07/2015,Grants,Operations Directorate,Grants to third sector organisations / not for profit organisations and other businesses,LEEDS BECKETT UNIVERSITY,4000211407,38556.00
Department for Education,NATIONAL COLLEGE FOR TEACHING AND LEADERSHIP AGENCY,02/07/2015,Grants,Operations Directorate,Grants to third sector organisations / not for profit organisations and other businesses,BROMLEY SCHOOLS COLLEGIATE,4000211360,37645.00
Department for Education,NATIONAL COLLEGE FOR TEACHING AND LEADERSHIP AGENCY,02/07/2015,Grants,Operations Directorate,Grants to third sector organisations / not for profit organisations and other businesses,UNIVERSITY OF BEDFORDSHIRE,4000211573,37277.10
Department for Education,NATIONAL COLLEGE FOR TEACHING AND LEADERSHIP AGENCY,02/07/2015,Grants,Delivery Directorate,Grants to third sector organisations / not for profit organisations and other businesses,UNIVERSITY OF CHICHESTER,4000211384,36800.00
Department for Education,NATIONAL COLLEGE FOR TEACHING AND LEADERSHIP AGENCY,02/07/2015,Grants,Delivery Directorate,Grants to third sector organisations / not for profit organisations and other businesses,THE UNIVERSITY OF READING,4000211378,36531.35
Department for Education,NATIONAL COLLEGE FOR TEACHING AND LEADERSHIP AGENCY,02/07/2015,Grants,Operations Directorate,Grants to third sector organisations / not for profit organisations and other businesses,UNIVERSITY OF CHESTER,4000211381,36261.00
Department for Education,NATIONAL COLLEGE FOR TEACHING AND LEADERSHIP AGENCY,02/07/2015,Grants,Operations Directorate,Grants to third sector organisations / not for profit organisations and other businesses,THE COLLEGE OF ST MARK & ST JOHN,4000211516,36240.00
Department for Education,NATIONAL COLLEGE FOR TEACHING AND LEADERSHIP AGENCY,02/07/2015,Grants,Operations Directorate,Grants to third sector organisations / not for profit organisations and other businesses,GRAND UNION TRAINING PARTNERSHIP,4000211419,34980.00
Department for Education,NATIONAL COLLEGE FOR TEACHING AND LEADERSHIP AGENCY,02/07/2015,Grants,Operations Directorate,Grants to third sector organisations / not for profit organisations and other businesses,UNIVERSITY OF NORTHAMPTON,4000211437,34950.00
Department for Education,NATIONAL COLLEGE FOR TEACHING AND LEADERSHIP AGENCY,02/07/2015,Grants,Delivery Directorate,Grants to third sector organisations / not for profit organisations and other businesses,THE UNIVERSITY OF READING,4000211378,33218.00
Department for Education,NATIONAL COLLEGE FOR TEACHING AND LEADERSHIP AGENCY,02/07/2015,Grants,Operations Directorate,Grants to third sector organisations / not for profit organisations and other businesses,UNIVERSITY OF BEDFORDSHIRE,4000211573,33170.00
Department for Education,NATIONAL COLLEGE FOR TEACHING AND LEADERSHIP AGENCY,02/07/2015,Grants,Operations Directorate,Current grants to local authorities,DEVON COUNTY COUNCIL,4000211621,46801.00
Department for Education,NATIONAL COLLEGE FOR TEACHING AND LEADERSHIP AGENCY,02/07/2015,Grants,Operations Directorate,Grants to third sector organisations / not for profit organisations and other businesses,UNIVERSITY OF DERBY,4000211409,32818.50
Department for Education,NATIONAL COLLEGE FOR TEACHING AND LEADERSHIP AGENCY,02/07/2015,Grants,Operations Directorate,Grants to third sector organisations / not for profit organisations and other businesses,NOTTINGHAM TRENT UNIVERSITY,4000211616,32313.60
Department for Education,NATIONAL COLLEGE FOR TEACHING AND LEADERSHIP AGENCY,02/07/2015,Grants,Operations Directorate,Grants to third sector organisations / not for profit organisations and other businesses,EDGE HILL UNIVERSITY,4000211526,30400.00
Department for Education,NATIONAL COLLEGE FOR TEACHING AND LEADERSHIP AGENCY,02/07/2015,Grants,Operations Directorate,Current grants to local authorities,ESSEX COUNTY COUNCIL,4000211622,48880.00
Department for Education,NATIONAL COLLEGE FOR TEACHING AND LEADERSHIP AGENCY,02/07/2015,Grants,Delivery Directorate,Grants to third sector organisations / not for profit organisations and other businesses,UNIVERSITY OF GREENWICH,4000211349,30108.00
Department for Education,NATIONAL COLLEGE FOR TEACHING AND LEADERSHIP AGENCY,02/07/2015,Grants,Delivery Directorate,Grants to third sector organisations / not for profit organisations and other businesses,ST MARYS UNIVERSITY COLLEGE,4000211438,29795.04
Department for Education,NATIONAL COLLEGE FOR TEACHING AND LEADERSHIP AGENCY,02/07/2015,Grants,Operations Directorate,Grants to third sector organisations / not for profit organisations and other businesses,UNIVERSITY OF EAST LONDON,4000211598,29550.00
Department for Education,NATIONAL COLLEGE FOR TEACHING AND LEADERSHIP AGENCY,02/07/2015,Grants,Operations Directorate,Grants to third sector organisations / not for profit organisations and other businesses,LEICESTER & LEICESTERSHIRE SCI,4000211444,28960.00
Department for Education,DEPARTMENT FOR EDUCATION,02/07/2015,Grants,System Reform Group,Grants to third sector organisations / not for profit organisations and other businesses,CCFA,4000211575,360000.00
Department for Education,NATIONAL COLLEGE FOR TEACHING AND LEADERSHIP AGENCY,02/07/2015,Grants,Operations Directorate,Grants to third sector organisations / not for profit organisations and other businesses,BILLERICAY EDUCATIONAL CONSORTIUM,4000211513,28580.00
Department for Education,NATIONAL COLLEGE FOR TEACHING AND LEADERSHIP AGENCY,02/07/2015,Grants,Operations Directorate,Grants to third sector organisations / not for profit organisations and other businesses,THE KIRKLEES PARTNERSHIP,4000211517,28229.90
Department for Education,NATIONAL COLLEGE FOR TEACHING AND LEADERSHIP AGENCY,02/07/2015,Grants,Operations Directorate,Grants to third sector organisations / not for profit organisations and other businesses,THE COLLEGE OF ST MARK & ST JOHN,4000211516,28100.00
Department for Education,NATIONAL COLLEGE FOR TEACHING AND LEADERSHIP AGENCY,02/07/2015,Grants,Operations Directorate,Grants to third sector organisations / not for profit organisations and other businesses,LEEDS BECKETT UNIVERSITY,4000211407,28050.00
Department for Education,NATIONAL COLLEGE FOR TEACHING AND LEADERSHIP AGENCY,02/07/2015,Grants,Delivery Directorate,Grants to third sector organisations / not for profit organisations and other businesses,UNIVERSITY OF WARWICK,4000211586,27914.00
Department for Education,NATIONAL COLLEGE FOR TEACHING AND LEADERSHIP AGENCY,02/07/2015,Grants,Delivery Directorate,Grants to third sector organisations / not for profit organisations and other businesses,THE COLLEGE OF ST MARK & ST JOHN,4000211516,27600.00
Department for Education,NATIONAL COLLEGE FOR TEACHING AND LEADERSHIP AGENCY,02/07/2015,Grants,Operations Directorate,Grants to third sector organisations / not for profit organisations and other businesses,THE UNIVERSITY OF READING,4000211378,27540.00
Department for Education,NATIONAL COLLEGE FOR TEACHING AND LEADERSHIP AGENCY,02/07/2015,Grants,Delivery Directorate,Grants to third sector organisations / not for profit organisations and other businesses,EDGE HILL UNIVERSITY,4000211526,27533.33
Department for Education,NATIONAL COLLEGE FOR TEACHING AND LEADERSHIP AGENCY,02/07/2015,Grants,Operations Directorate,Grants to third sector organisations / not for profit organisations and other businesses,NORTH BEDS SCITT CONSORTIUM,4000211534,27150.00
Department for Education,NATIONAL COLLEGE FOR TEACHING AND LEADERSHIP AGENCY,02/07/2015,Grants,Delivery Directorate,Grants to third sector organisations / not for profit organisations and other businesses,LONDON METROPOLITAN UNIVERSITY,4000211617,26740.00
Department for Education,NATIONAL COLLEGE FOR TEACHING AND LEADERSHIP AGENCY,02/07/2015,Grants,Operations Directorate,Grants to third sector organisations / not for profit organisations and other businesses,CHILTERN TRAINING GROUP,4000211391,26620.00
Department for Education,NATIONAL COLLEGE FOR TEACHING AND LEADERSHIP AGENCY,02/07/2015,Grants,Delivery Directorate,Grants to third sector organisations / not for profit organisations and other businesses,BRADFORD COLLEGE,4000211553,26600.00
Department for Education,NATIONAL COLLEGE FOR TEACHING AND LEADERSHIP AGENCY,02/07/2015,Grants,Operations Directorate,Grants to third sector organisations / not for profit organisations and other businesses,KEELE AND NORTH STAFFS PRIMARY SCITT,4000211389,26510.00
Department for Education,NATIONAL COLLEGE FOR TEACHING AND LEADERSHIP AGENCY,02/07/2015,Grants,Delivery Directorate,Grants to third sector organisations / not for profit organisations and other businesses,SHEFFIELD HALLAM UNIVERSITY,4000211499,25980.00
Department for Education,NATIONAL COLLEGE FOR TEACHING AND LEADERSHIP AGENCY,02/07/2015,Grants,Delivery Directorate,Grants to third sector organisations / not for profit organisations and other businesses,UNIVERSITY OF GLOUCESTERSHIRE,4000211551,25200.00
Department for Education,NATIONAL COLLEGE FOR TEACHING AND LEADERSHIP AGENCY,02/07/2015,Grants,Operations Directorate,Grants to third sector organisations / not for profit organisations and other businesses,PILGRIM SCITT,4000211548,25120.00
Department for Education,NATIONAL COLLEGE FOR TEACHING AND LEADERSHIP AGENCY,02/07/2015,Grants,Delivery Directorate,Grants to third sector organisations / not for profit organisations and other businesses,UNIVERSITY OF SOUTHAMPTON,4000211376,24800.00
Department for Education,NATIONAL COLLEGE FOR TEACHING AND LEADERSHIP AGENCY,02/07/2015,Grants,Delivery Directorate,Grants to third sector organisations / not for profit organisations and other businesses,UNIVERSITY OF DERBY,4000211409,23564.00
Department for Education,NATIONAL COLLEGE FOR TEACHING AND LEADERSHIP AGENCY,02/07/2015,Grants,Delivery Directorate,Grants to third sector organisations / not for profit organisations and other businesses,UNIVERSITY OF CHICHESTER,4000211384,23518.00
Department for Education,NATIONAL COLLEGE FOR TEACHING AND LEADERSHIP AGENCY,02/07/2015,Grants,Delivery Directorate,Grants to third sector organisations / not for profit organisations and other businesses,UNIVERSITY OF WOLVERHAMPTON,4000211520,22800.00
Department for Education,NATIONAL COLLEGE FOR TEACHING AND LEADERSHIP AGENCY,02/07/2015,Grants,Delivery Directorate,Grants to third sector organisations / not for profit organisations and other businesses,UNIVERSITY OF WOLVERHAMPTON,4000211520,22400.00
Department for Education,NATIONAL COLLEGE FOR TEACHING AND LEADERSHIP AGENCY,02/07/2015,Grants,Delivery Directorate,Grants to third sector organisations / not for profit organisations and other businesses,MIDDLESEX UNIVERSITY,4000211564,22040.00
Department for Education,NATIONAL COLLEGE FOR TEACHING AND LEADERSHIP AGENCY,02/07/2015,Grants,Operations Directorate,Grants to third sector organisations / not for profit organisations and other businesses,HIBERNIA COLLEGE UK,4000211469,21840.00
Department for Education,NATIONAL COLLEGE FOR TEACHING AND LEADERSHIP AGENCY,02/07/2015,Grants,Delivery Directorate,Grants to third sector organisations / not for profit organisations and other businesses,UNIVERSITY OF WINCHESTER,4000211362,21428.00
Department for Education,NATIONAL COLLEGE FOR TEACHING AND LEADERSHIP AGENCY,02/07/2015,Professional Services Other,Operations Directorate,Legal services provided externally (excluding Treasury Solicitor) ,EVERSHEDS LLP,4000211593,21070.00
Department for Education,NATIONAL COLLEGE FOR TEACHING AND LEADERSHIP AGENCY,02/07/2015,Grants,Operations Directorate,Grants to third sector organisations / not for profit organisations and other businesses,UNIVERSITY OF PLYMOUTH,4000211435,20792.70
Department for Education,DEPARTMENT FOR EDUCATION,02/07/2015,ICT,Children in Care Division,ICT Services,CAPGEMINI UK PLC,4000211519,51797.19
Department for Education,NATIONAL COLLEGE FOR TEACHING AND LEADERSHIP AGENCY,02/07/2015,Grants,Operations Directorate,Grants to third sector organisations / not for profit organisations and other businesses,LIVERPOOL JOHN MOORES UNIVERSITY,4000211558,19737.00
Department for Education,NATIONAL COLLEGE FOR TEACHING AND LEADERSHIP AGENCY,02/07/2015,Grants,Delivery Directorate,Grants to third sector organisations / not for profit organisations and other businesses,UNIVERSITY OF SUNDERLAND,4000211506,18444.00
Department for Education,NATIONAL COLLEGE FOR TEACHING AND LEADERSHIP AGENCY,02/07/2015,Grants,Delivery Directorate,Grants to third sector organisations / not for profit organisations and other businesses,STAFFORDSHIRE UNIVERSITY,4000211408,18400.00
Department for Education,NATIONAL COLLEGE FOR TEACHING AND LEADERSHIP AGENCY,02/07/2015,Grants,Operations Directorate,Grants to third sector organisations / not for profit organisations and other businesses,UNIVERSITY OF SOUTHAMPTON,4000211376,18317.00
Department for Education,NATIONAL COLLEGE FOR TEACHING AND LEADERSHIP AGENCY,02/07/2015,Grants,Delivery Directorate,Grants to third sector organisations / not for profit organisations and other businesses,UNIVERSITY OF WORCESTER,4000211615,17338.00
Department for Education,NATIONAL COLLEGE FOR TEACHING AND LEADERSHIP AGENCY,02/07/2015,Grants,Delivery Directorate,Grants to third sector organisations / not for profit organisations and other businesses,UNIVERSITY OF NORTHUMBRIA,4000211601,17300.00
Department for Education,NATIONAL COLLEGE FOR TEACHING AND LEADERSHIP AGENCY,02/07/2015,Grants,Delivery Directorate,Grants to third sector organisations / not for profit organisations and other businesses,UNIVERSITY OF BRIGHTON,4000211481,16800.00
Department for Education,DEPARTMENT FOR EDUCATION,02/07/2015,Professional Services Other,Strategic Analysis and Research and Policy Impact Group,Research and evaluation activities,RM EDUCATION,4000211460,424799.00
Department for Education,NATIONAL COLLEGE FOR TEACHING AND LEADERSHIP AGENCY,02/07/2015,Grants,Delivery Directorate,Grants to third sector organisations / not for profit organisations and other businesses,UNIVERSITY OF HULL,4000211343,16275.00
Department for Education,NATIONAL COLLEGE FOR TEACHING AND LEADERSHIP AGENCY,02/07/2015,Grants,Operations Directorate,Grants to third sector organisations / not for profit organisations and other businesses,UNIVERSITY OF CHICHESTER,4000211384,16182.00
Department for Education,NATIONAL COLLEGE FOR TEACHING AND LEADERSHIP AGENCY,02/07/2015,Grants,Operations Directorate,Grants to third sector organisations / not for profit organisations and other businesses,CANTERBURY CHRIST CHURCH UNIVERSITY,4000211491,15700.00
Department for Education,NATIONAL COLLEGE FOR TEACHING AND LEADERSHIP AGENCY,02/07/2015,Grants,Operations Directorate,Grants to third sector organisations / not for profit organisations and other businesses,STAFFORDSHIRE UNIVERSITY,4000211408,15280.00
Department for Education,NATIONAL COLLEGE FOR TEACHING AND LEADERSHIP AGENCY,02/07/2015,Grants,Operations Directorate,Grants to third sector organisations / not for profit organisations and other businesses,UNIVERSITY OF WOLVERHAMPTON,4000211520,13900.00
Department for Education,NATIONAL COLLEGE FOR TEACHING AND LEADERSHIP AGENCY,02/07/2015,Grants,Delivery Directorate,Grants to third sector organisations / not for profit organisations and other businesses,LEEDS BECKETT UNIVERSITY,4000211407,13800.00
Department for Education,NATIONAL COLLEGE FOR TEACHING AND LEADERSHIP AGENCY,02/07/2015,Grants,Delivery Directorate,Grants to third sector organisations / not for profit organisations and other businesses,BATH SPA UNIVERSITY,4000211502,13800.00
Department for Education,NATIONAL COLLEGE FOR TEACHING AND LEADERSHIP AGENCY,02/07/2015,Grants,Operations Directorate,Grants to third sector organisations / not for profit organisations and other businesses,SCITTELS,4000211466,13350.00
Department for Education,NATIONAL COLLEGE FOR TEACHING AND LEADERSHIP AGENCY,02/07/2015,Grants,Delivery Directorate,Grants to third sector organisations / not for profit organisations and other businesses,UNIVERSITY OF CUMBRIA,4000211368,13160.00
Department for Education,NATIONAL COLLEGE FOR TEACHING AND LEADERSHIP AGENCY,02/07/2015,Grants,Delivery Directorate,Grants to third sector organisations / not for profit organisations and other businesses,SCITTELS,4000211466,12920.00
Department for Education,NATIONAL COLLEGE FOR TEACHING AND LEADERSHIP AGENCY,02/07/2015,Grants,Delivery Directorate,Grants to third sector organisations / not for profit organisations and other businesses,BATH SPA UNIVERSITY,4000211502,12480.00
Department for Education,NATIONAL COLLEGE FOR TEACHING AND LEADERSHIP AGENCY,02/07/2015,Grants,Delivery Directorate,Grants to third sector organisations / not for profit organisations and other businesses,BISHOP GROSSETESTE COLLEGE,4000211515,12320.00
Department for Education,NATIONAL COLLEGE FOR TEACHING AND LEADERSHIP AGENCY,02/07/2015,Grants,Delivery Directorate,Grants to third sector organisations / not for profit organisations and other businesses,UNIVERSITY OF PORTSMOUTH,4000211536,11200.00
Department for Education,NATIONAL COLLEGE FOR TEACHING AND LEADERSHIP AGENCY,02/07/2015,Grants,Delivery Directorate,Grants to third sector organisations / not for profit organisations and other businesses,UNIVERSITY OF THE WEST OF ENGLAND,4000211538,11038.00
Department for Education,NATIONAL COLLEGE FOR TEACHING AND LEADERSHIP AGENCY,02/07/2015,Grants,Delivery Directorate,Grants to third sector organisations / not for profit organisations and other businesses,UNIVERSITY OF ROEHAMPTON,4000211383,10400.00
Department for Education,NATIONAL COLLEGE FOR TEACHING AND LEADERSHIP AGENCY,02/07/2015,Grants,Delivery Directorate,Grants to third sector organisations / not for profit organisations and other businesses,UNIVERSITY OF BEDFORDSHIRE,4000211573,10080.00
Department for Education,NATIONAL COLLEGE FOR TEACHING AND LEADERSHIP AGENCY,02/07/2015,Grants,Operations Directorate,Grants to third sector organisations / not for profit organisations and other businesses,UNIVERSITY OF SUNDERLAND,4000211506,9800.00
Department for Education,NATIONAL COLLEGE FOR TEACHING AND LEADERSHIP AGENCY,02/07/2015,Grants,Delivery Directorate,Grants to third sector organisations / not for profit organisations and other businesses,UNIVERSITY OF GREENWICH,4000211349,9600.00
Department for Education,NATIONAL COLLEGE FOR TEACHING AND LEADERSHIP AGENCY,02/07/2015,Grants,Operations Directorate,Grants to third sector organisations / not for profit organisations and other businesses,UNIVERSITY OF HUDDERSFIELD,4000211487,9360.00
Department for Education,NATIONAL COLLEGE FOR TEACHING AND LEADERSHIP AGENCY,02/07/2015,Grants,Operations Directorate,Grants to third sector organisations / not for profit organisations and other businesses,THE UNIVERSITY OF READING,4000211378,8430.00
Department for Education,NATIONAL COLLEGE FOR TEACHING AND LEADERSHIP AGENCY,02/07/2015,Grants,Delivery Directorate,Grants to third sector organisations / not for profit organisations and other businesses,UNIVERSITY OF HUDDERSFIELD,4000211487,8318.00
Department for Education,NATIONAL COLLEGE FOR TEACHING AND LEADERSHIP AGENCY,02/07/2015,Grants,Operations Directorate,Grants to third sector organisations / not for profit organisations and other businesses,EDGE HILL UNIVERSITY,4000211526,8032.50
Department for Education,NATIONAL COLLEGE FOR TEACHING AND LEADERSHIP AGENCY,02/07/2015,Grants,Operations Directorate,Grants to third sector organisations / not for profit organisations and other businesses,ST MARYS UNIVERSITY COLLEGE,4000211438,7525.00
Department for Education,NATIONAL COLLEGE FOR TEACHING AND LEADERSHIP AGENCY,02/07/2015,Grants,Operations Directorate,Grants to third sector organisations / not for profit organisations and other businesses,STAFFORDSHIRE UNIVERSITY,4000211408,7500.00
Department for Education,NATIONAL COLLEGE FOR TEACHING AND LEADERSHIP AGENCY,02/07/2015,Grants,Delivery Directorate,Grants to third sector organisations / not for profit organisations and other businesses,LEEDS TRINITY UNIVERSITY COLLEGE,4000211507,6720.00
Department for Education,NATIONAL COLLEGE FOR TEACHING AND LEADERSHIP AGENCY,02/07/2015,Grants,Operations Directorate,Grants to third sector organisations / not for profit organisations and other businesses,UNIVERSITY OF DERBY,4000211409,6700.00
Department for Education,NATIONAL COLLEGE FOR TEACHING AND LEADERSHIP AGENCY,02/07/2015,Grants,Delivery Directorate,Grants to third sector organisations / not for profit organisations and other businesses,CANTERBURY CHRIST CHURCH UNIVERSITY,4000211491,6400.00
Department for Education,NATIONAL COLLEGE FOR TEACHING AND LEADERSHIP AGENCY,02/07/2015,Grants,Operations Directorate,Grants to third sector organisations / not for profit organisations and other businesses,UNIVERSITY OF GREENWICH,4000211349,5880.00
Department for Education,NATIONAL COLLEGE FOR TEACHING AND LEADERSHIP AGENCY,02/07/2015,Grants,Operations Directorate,Grants to third sector organisations / not for profit organisations and other businesses,BRADFORD COLLEGE,4000211553,5730.00
Department for Education,NATIONAL COLLEGE FOR TEACHING AND LEADERSHIP AGENCY,02/07/2015,Grants,Operations Directorate,Grants to third sector organisations / not for profit organisations and other businesses,LIVERPOOL JOHN MOORES UNIVERSITY,4000211558,5620.00
Department for Education,NATIONAL COLLEGE FOR TEACHING AND LEADERSHIP AGENCY,02/07/2015,Grants,Delivery Directorate,Grants to third sector organisations / not for profit organisations and other businesses,UNIVERSITY OF HULL,4000211343,5600.00
Department for Education,NATIONAL COLLEGE FOR TEACHING AND LEADERSHIP AGENCY,02/07/2015,Grants,Operations Directorate,Grants to third sector organisations / not for profit organisations and other businesses,BIRMINGHAM CITY UNIVERSITY,4000211557,5600.00
Department for Education,NATIONAL COLLEGE FOR TEACHING AND LEADERSHIP AGENCY,02/07/2015,Grants,Operations Directorate,Grants to third sector organisations / not for profit organisations and other businesses,OXFORD BROOKES UNIVERSITY,4000211463,5508.00
Department for Education,NATIONAL COLLEGE FOR TEACHING AND LEADERSHIP AGENCY,02/07/2015,Grants,Delivery Directorate,Grants to third sector organisations / not for profit organisations and other businesses,MANCHESTER METROPOLITAN UNIVERSITY,4000211446,4799.88
Department for Education,NATIONAL COLLEGE FOR TEACHING AND LEADERSHIP AGENCY,02/07/2015,Grants,Delivery Directorate,Grants to third sector organisations / not for profit organisations and other businesses,UNIVERSITY OF EAST LONDON,4000211598,4480.00
Department for Education,DEPARTMENT FOR EDUCATION,02/07/2015,Professional Services Other,Academies Delivery Group,"Fees / expenses of professionals, for example to implement advice or changes",VEREDUS C/O CAPITA RESOURCING LTD,4000211543,33459.96
Department for Education,NATIONAL COLLEGE FOR TEACHING AND LEADERSHIP AGENCY,02/07/2015,Grants,Delivery Directorate,Grants to third sector organisations / not for profit organisations and other businesses,UNIVERSITY OF WORCESTER,4000211615,4000.00
Department for Education,NATIONAL COLLEGE FOR TEACHING AND LEADERSHIP AGENCY,02/07/2015,Grants,Delivery Directorate,Grants to third sector organisations / not for profit organisations and other businesses,LIVERPOOL JOHN MOORES UNIVERSITY,4000211558,3571.33
Department for Education,NATIONAL COLLEGE FOR TEACHING AND LEADERSHIP AGENCY,02/07/2015,Grants,Operations Directorate,Grants to third sector organisations / not for profit organisations and other businesses,UNIVERSITY OF THE WEST OF ENGLAND,4000211538,3400.00
Department for Education,DEPARTMENT FOR EDUCATION,02/07/2015,Programme costs,Children in Care Division,Funding to deliver policies (excluding consultancy) paid to third parties via a service delivery contract,FOSTERTALK LTD,4000211595,26772.09
Department for Education,NATIONAL COLLEGE FOR TEACHING AND LEADERSHIP AGENCY,02/07/2015,Grants,Operations Directorate,Grants to third sector organisations / not for profit organisations and other businesses,UNIVERSITY OF CUMBRIA,4000211368,3350.70
Department for Education,NATIONAL COLLEGE FOR TEACHING AND LEADERSHIP AGENCY,02/07/2015,Grants,Operations Directorate,Grants to third sector organisations / not for profit organisations and other businesses,UNIVERSITY OF SOUTHAMPTON,4000211376,3300.00
Department for Education,NATIONAL COLLEGE FOR TEACHING AND LEADERSHIP AGENCY,02/07/2015,Grants,Operations Directorate,Grants to third sector organisations / not for profit organisations and other businesses,NOTTINGHAM TRENT UNIVERSITY,4000211616,3000.00
Department for Education,NATIONAL COLLEGE FOR TEACHING AND LEADERSHIP AGENCY,02/07/2015,Grants,Operations Directorate,Grants to third sector organisations / not for profit organisations and other businesses,BRADFORD COLLEGE,4000211553,2852.00
Department for Education,NATIONAL COLLEGE FOR TEACHING AND LEADERSHIP AGENCY,02/07/2015,Grants,Delivery Directorate,Grants to third sector organisations / not for profit organisations and other businesses,NEWMAN COLLEGE,4000211533,2400.00
Department for Education,NATIONAL COLLEGE FOR TEACHING AND LEADERSHIP AGENCY,02/07/2015,Grants,Operations Directorate,Grants to third sector organisations / not for profit organisations and other businesses,UNIVERSITY OF BRIGHTON,4000211481,2300.00
Department for Education,NATIONAL COLLEGE FOR TEACHING AND LEADERSHIP AGENCY,02/07/2015,Grants,Operations Directorate,Grants to third sector organisations / not for profit organisations and other businesses,SHEFFIELD HALLAM UNIVERSITY,4000211499,2100.00
Department for Education,NATIONAL COLLEGE FOR TEACHING AND LEADERSHIP AGENCY,02/07/2015,Grants,Operations Directorate,Grants to third sector organisations / not for profit organisations and other businesses,UNIVERSITY OF CUMBRIA,4000211368,1910.00
Department for Education,NATIONAL COLLEGE FOR TEACHING AND LEADERSHIP AGENCY,02/07/2015,Grants,Operations Directorate,Grants to third sector organisations / not for profit organisations and other businesses,UNIVERSITY OF WORCESTER,4000211615,1910.00
Department for Education,NATIONAL COLLEGE FOR TEACHING AND LEADERSHIP AGENCY,02/07/2015,Grants,Operations Directorate,Grants to third sector organisations / not for profit organisations and other businesses,NEWMAN COLLEGE,4000211533,1900.00
Department for Education,NATIONAL COLLEGE FOR TEACHING AND LEADERSHIP AGENCY,02/07/2015,Grants,Operations Directorate,Grants to third sector organisations / not for profit organisations and other businesses,UNIVERSITY OF WARWICK,4000211586,900.00
Department for Education,NATIONAL COLLEGE FOR TEACHING AND LEADERSHIP AGENCY,02/07/2015,Grants,Delivery Directorate,Grants to third sector organisations / not for profit organisations and other businesses,GRAND UNION TRAINING PARTNERSHIP,4000211419,800.00
Department for Education,NATIONAL COLLEGE FOR TEACHING AND LEADERSHIP AGENCY,02/07/2015,Grants,Operations Directorate,Grants to third sector organisations / not for profit organisations and other businesses,UNIVERSITY OF PORTSMOUTH,4000211536,800.00
Department for Education,NATIONAL COLLEGE FOR TEACHING AND LEADERSHIP AGENCY,02/07/2015,Grants,Operations Directorate,Grants to third sector organisations / not for profit organisations and other businesses,NEWMAN COLLEGE,4000211533,725.70
Department for Education,NATIONAL COLLEGE FOR TEACHING AND LEADERSHIP AGENCY,02/07/2015,Grants,Delivery Directorate,Grants to third sector organisations / not for profit organisations and other businesses,OXFORD BROOKES UNIVERSITY,4000211463,420.00
Department for Education,DEPARTMENT FOR EDUCATION,02/07/2015,Redactions,Various,"The total redacted transactions, including funding payment to Education Funding Agency. See Technical Notes for further information.",EDUCATION FUNDING AGENCY,Various,4548135278.91
Department for Education,STANDARDS AND TESTING AGENCY,03/07/2015,Office Solutions,Test Operations Division,"Courier related activity to move examination papers and scripts etc. from one location to another, for example from despatch points to schools",PARCELFORCE WORLDWIDE,4000211644,119869.38
Department for Education,STANDARDS AND TESTING AGENCY,03/07/2015,Office Solutions,Test Operations Division,Post and courier services,PARCELFORCE WORLDWIDE,4000211644,943932.53
Department for Education,DEPARTMENT FOR EDUCATION,03/07/2015,Grants,Academies Delivery Group,Grants to third sector organisations / not for profit organisations and other businesses,MANIFOLD CE VC PRIMARY SCHOOL,4000211674,30000.00
Department for Education,STANDARDS AND TESTING AGENCY,03/07/2015,Communications,Test Operations Division,Marketing services - printing and publication,THE STATIONERY OFFICE LTD,4000211683,31146.46
Department for Education,DEPARTMENT FOR EDUCATION,03/07/2015,Professional Services Other,Property Asset Management Group,"Fees / expenses of professionals, for example to implement advice or changes",GVA,4000211647,25905.00
Department for Education,STANDARDS AND TESTING AGENCY,03/07/2015,Office Solutions,Test Operations Division,Post and courier services,PARCELFORCE WORLDWIDE,4000211648,2130699.82
Department for Education,STANDARDS AND TESTING AGENCY,06/07/2015,Professional Services Other,Test Operations Division,"Fees / expenses of professionals, for external marking services.",EDEXCEL,4000211824,2653326.00
Department for Education,DEPARTMENT FOR EDUCATION,06/07/2015,Programme costs,Systems and Accountability Group,Funding to deliver policies (excluding consultancy) paid to third parties via a service delivery contract,RESEARCH MACHINES PLC,4000211792,487536.00
Department for Education,NATIONAL COLLEGE FOR TEACHING AND LEADERSHIP AGENCY,06/07/2015,Programme costs,Operations Directorate,Funding to deliver policies (excluding consultancy) paid to third parties via a service delivery contract,TEXUNA TECHNOLOGIES,4000211812,26146.20
Department for Education,DEPARTMENT FOR EDUCATION,06/07/2015,Grants,Families Group,Grants to third sector organisations / not for profit organisations and other businesses,MORNING LANE ASSOCIATES,4000211730,86853.67
Department for Education,DEPARTMENT FOR EDUCATION,06/07/2015,Grants,Free School Group,Grants to third sector organisations / not for profit organisations and other businesses,THE CAMPUS EDUCATIONAL TRUST,4000211742,66000.00
Department for Education,DEPARTMENT FOR EDUCATION,06/07/2015,Grants,Free School Group,Grants to third sector organisations / not for profit organisations and other businesses,BULLERS WOOD SCHOOL,4000211750,90000.00
Department for Education,DEPARTMENT FOR EDUCATION,06/07/2015,Grants,Free School Group,Grants to third sector organisations / not for profit organisations and other businesses,THE WHERRY SCHOOL TRUST,4000211752,66000.00
Department for Education,DEPARTMENT FOR EDUCATION,06/07/2015,Grants,Academies Delivery Group,Grants to third sector organisations / not for profit organisations and other businesses,LOSWITHIEL SCHOOL,4000211755,25000.00
Department for Education,DEPARTMENT FOR EDUCATION,06/07/2015,Grants,Free School Group,Grants to third sector organisations / not for profit organisations and other businesses,CHARLES DARWIN PRIMARY SCHOOL INSPIRATION TRUST,4000211756,45000.00
Department for Education,DEPARTMENT FOR EDUCATION,06/07/2015,Grants,Free School Group,Grants to third sector organisations / not for profit organisations and other businesses,TAUHEEDUL ISLAM BOYS HIGH SCHOOL,4000211758,90000.00
Department for Education,DEPARTMENT FOR EDUCATION,06/07/2015,Grants,Free School Group,Grants to third sector organisations / not for profit organisations and other businesses,BENNETT MEMORIAL DIOCESAN SCHOOL,4000211783,66000.00
Department for Education,DEPARTMENT FOR EDUCATION,06/07/2015,Grants,Free School Group,Grants to third sector organisations / not for profit organisations and other businesses,FELTHAM COMMUNITY COLLEGE,4000211784,90000.00
Department for Education,DEPARTMENT FOR EDUCATION,06/07/2015,Grants,"Childcare, Special Educational Needs and Children's Strategy Group",Grants to third sector organisations / not for profit organisations and other businesses,INSTITUTE OF WELLBEING LTD,4000211786,38843.81
Department for Education,DEPARTMENT FOR EDUCATION,06/07/2015,Grants,Free School Group,Grants to third sector organisations / not for profit organisations and other businesses,RUSSELL EDUCATION TRUST,4000211791,42184.00
Department for Education,DEPARTMENT FOR EDUCATION,06/07/2015,Grants,System Reform Group,Current grant funding to other government departments for DfE's contribution to jointly funded programmes ,DEPARTMENT FOR COMMUNITIES & LOCAL GOVERNMENT,4000211793,1590689.00
Department for Education,DEPARTMENT FOR EDUCATION,06/07/2015,Grants,Free School Group,Grants to third sector organisations / not for profit organisations and other businesses,HARPERBURY FREE SCHOOL,4000211816,28136.00
Department for Education,DEPARTMENT FOR EDUCATION,06/07/2015,Grants,Academies Delivery Group,Grants to third sector organisations / not for profit organisations and other businesses,THE INSPIRATION TRUST,4000211823,100000.00
Department for Education,DEPARTMENT FOR EDUCATION,06/07/2015,Grants,Free School Group,Grants to third sector organisations / not for profit organisations and other businesses,VALLEY INVICTA ACADEMIES TRUST,4000211828,30000.00
Department for Education,DEPARTMENT FOR EDUCATION,06/07/2015,Grants,Free School Group,Grants to third sector organisations / not for profit organisations and other businesses,EXETER MATHEMATICS SCHOOL TRUST,4000211836,30054.02
Department for Education,DEPARTMENT FOR EDUCATION,06/07/2015,Grants,Free School Group,Grants to third sector organisations / not for profit organisations and other businesses,KINGSTON EDUCATIONAL TRUST,4000211838,30000.00
Department for Education,DEPARTMENT FOR EDUCATION,06/07/2015,Grants,Academies Delivery Group,Grants to third sector organisations / not for profit organisations and other businesses,BANDON HILL PRIMARY SCHOOL,4000211845,25000.00
Department for Education,DEPARTMENT FOR EDUCATION,06/07/2015,Grants,Free School Group,Grants to third sector organisations / not for profit organisations and other businesses,REACH 2 WALTHAM FOREST ACADEMY TRUST,4000211847,66000.00
Department for Education,DEPARTMENT FOR EDUCATION,06/07/2015,Grants,Academies Delivery Group,Grants to third sector organisations / not for profit organisations and other businesses,MOTTINGHAM PRIMARY SCHOOL,4000211857,25000.00
Department for Education,DEPARTMENT FOR EDUCATION,06/07/2015,Grants,Families Group,Grants to third sector organisations / not for profit organisations and other businesses,COUNCIL FOR DISABLED CHILDREN,4000211858,79679.52
Department for Education,DEPARTMENT FOR EDUCATION,06/07/2015,Grants,Academies Delivery Group,Grants to third sector organisations / not for profit organisations and other businesses,REACH 2 ESSEX ACADEMY TRUST,4000211863,70000.00
Department for Education,DEPARTMENT FOR EDUCATION,06/07/2015,ICT,Information Technology Group,ICT Services - hardware maintenance and support,CAPGEMINI UK PLC,4000211747,90176.70
Department for Education,DEPARTMENT FOR EDUCATION,06/07/2015,Professional Services Consultancy and Contingent Labour,Information Technology Group,Costs related to temporary workers,METHODS CONSULTING LTD,4000211852,12240.00
Department for Education,DEPARTMENT FOR EDUCATION,06/07/2015,Professional Services Consultancy and Contingent Labour,Information Technology Group,Costs related to temporary workers,METHODS CONSULTING LTD,4000211852,14532.00
Department for Education,DEPARTMENT FOR EDUCATION,06/07/2015,Professional Services Consultancy and Contingent Labour,Information Technology Group,Costs related to temporary workers,RUSSAM GMS LTD,4000211839,9120.00
Department for Education,DEPARTMENT FOR EDUCATION,06/07/2015,Professional Services Consultancy and Contingent Labour,Information Technology Group,Costs related to temporary workers,RUSSAM GMS LTD,4000211839,19814.87
Department for Education,DEPARTMENT FOR EDUCATION,06/07/2015,ICT,Information Technology Group,ICT Services,EDUSERV,4000211749,-25440.80
Department for Education,DEPARTMENT FOR EDUCATION,06/07/2015,ICT,Information Technology Group,ICT Services,EDUSERV,4000211749,163728.00
Department for Education,DEPARTMENT FOR EDUCATION,06/07/2015,ICT,Information Technology Group,ICT Services,SKILLS FUNDING AGENCY,4000211771,83998.80
Department for Education,DEPARTMENT FOR EDUCATION,06/07/2015,ICT,Information Technology Group,ICT Services,SKILLS FUNDING AGENCY,4000211771,768751.20
Department for Education,DEPARTMENT FOR EDUCATION,06/07/2015,Programme costs,Assessment and Curriculum and General Qualifications Group,Funding to deliver policies (excluding consultancy) paid to third parties via a service delivery contract,IOP INSTITUTE OF PHYSICS,4000211795,144524.97
Department for Education,DEPARTMENT FOR EDUCATION,06/07/2015,Professional Services Consultancy and Contingent Labour,Information Technology Group,Costs related to temporary workers,RUSSAM GMS LTD,4000211839,22800.00
Department for Education,DEPARTMENT FOR EDUCATION,06/07/2015,Programme costs,Children in Care Division,Funding to deliver policies (excluding consultancy) paid to third parties via a service delivery contract,MOTT MACDONALD LTD,4000211855,94301.46
Department for Education,DEPARTMENT FOR EDUCATION,06/07/2015,Professional Services Consultancy and Contingent Labour,Information Technology Group,Costs related to temporary workers,RUSSAM GMS LTD,4000211839,22505.76
Department for Education,DEPARTMENT FOR EDUCATION,06/07/2015,Programme costs,Closing the Gap Group,Funding to deliver policies (excluding consultancy) paid to third parties via a service delivery contract,MAGIC BREAKFAST,4000211860,46345.52
Department for Education,DEPARTMENT FOR EDUCATION,06/07/2015,Grants,Closing the Gap Group,Grants to third sector organisations / not for profit organisations and other businesses,THE EDUCATION ENDOWMENT FUND,4000211777,300000.00
Department for Education,DEPARTMENT FOR EDUCATION,07/07/2015,Professional Services Other,Property Asset Management Group,"Fees / expenses of professionals, for example to implement advice or changes",EC HARRIS LLP,4000211924,8846.40
Department for Education,DEPARTMENT FOR EDUCATION,07/07/2015,Professional Services Other,Property Asset Management Group,"Fees / expenses of professionals, for example to implement advice or changes",EC HARRIS LLP,4000211924,18600.00
Department for Education,DEPARTMENT FOR EDUCATION,07/07/2015,Grants,Academies Delivery Group,Grants to third sector organisations / not for profit organisations and other businesses,WESTCROFT SPORT & VOCATIONAL COLLEGE,4000211865,25000.00
Department for Education,DEPARTMENT FOR EDUCATION,07/07/2015,Grants,Academies Delivery Group,Grants to third sector organisations / not for profit organisations and other businesses,FOWEY PRIMARY SCHOOL,4000211866,25000.00
Department for Education,DEPARTMENT FOR EDUCATION,07/07/2015,Grants,Free School Group,Grants to third sector organisations / not for profit organisations and other businesses,TRAFALGAR COLLEGE INSPIRATION TRUST,4000211867,90000.00
Department for Education,DEPARTMENT FOR EDUCATION,07/07/2015,Grants,Free School Group,Grants to third sector organisations / not for profit organisations and other businesses,FREE SCHOOL CHILTON ACADEMY TRUST,4000211868,154000.00
Department for Education,DEPARTMENT FOR EDUCATION,07/07/2015,Grants,Academies Delivery Group,Grants to third sector organisations / not for profit organisations and other businesses,GEORGE SPENCER ACADEMY TRUST,4000211884,45000.00
Department for Education,DEPARTMENT FOR EDUCATION,07/07/2015,Grants,Academies Delivery Group,Grants to third sector organisations / not for profit organisations and other businesses,DEVON COUNTY COUNCIL,4000211887,150000.00
Department for Education,DEPARTMENT FOR EDUCATION,07/07/2015,Grants,Academies Delivery Group,Grants to third sector organisations / not for profit organisations and other businesses,LEARNING ACADEMY PARTNERSHIP,4000211893,25000.00
Department for Education,DEPARTMENT FOR EDUCATION,07/07/2015,Grants,Children in Care Division,Grants to local authorities outside aggregate external funding or aggregate exchequer grant,LONDON BOROUGH OF HILLINGDON  COUNCIL,4000211925,47412.67
Department for Education,DEPARTMENT FOR EDUCATION,07/07/2015,Grants,Children in Care Division,Grants to local authorities outside aggregate external funding or aggregate exchequer grant,TRAFFORD MB COUNCIL,4000211926,29743.00
Department for Education,DEPARTMENT FOR EDUCATION,07/07/2015,Grants,Academies Delivery Group,Grants to third sector organisations / not for profit organisations and other businesses,OXFORD DIOCESAN SCHOOL TRUST,4000211933,75000.00
Department for Education,DEPARTMENT FOR EDUCATION,07/07/2015,Grants,Academies Delivery Group,Grants to third sector organisations / not for profit organisations and other businesses,ST ANNES CATHOLIC PRIMARY SCHOOL,4000211961,150000.00
Department for Education,DEPARTMENT FOR EDUCATION,07/07/2015,ICT,Information Technology Group,ICT Services,EDUSERV,4000211899,141288.00
Department for Education,DEPARTMENT FOR EDUCATION,07/07/2015,ICT,Information Technology Group,ICT Services,EDUSERV,4000211899,33544.80
Department for Education,DEPARTMENT FOR EDUCATION,07/07/2015,ICT,Information Technology Group,ICT Services,EDUSERV,4000211899,1633.20
Department for Education,DEPARTMENT FOR EDUCATION,07/07/2015,Programme costs,Children's Services and Departmental Strategy Safeguarding Group,Funding to deliver policies (excluding consultancy) paid to third parties via a service delivery contract,DELOITTE MSC LTD,4000211922,120411.58
Department for Education,STANDARDS AND TESTING AGENCY,07/07/2015,Office Solutions,Test Operations Division,Post and courier services,PARCELFORCE WORLDWIDE,4000211928,582558.48
Department for Education,DEPARTMENT FOR EDUCATION,07/07/2015,Facilities,Property Asset Management Group,"Building maintenance and repair, including repainting, replacing flooring, etc.",INTERSERVE FACILITIES MANAGEMENT LTD,4000211951,339014.25
Department for Education,DEPARTMENT FOR EDUCATION,07/07/2015,Professional Services Consultancy and Contingent Labour,Information Technology Group,Costs related to temporary workers,RUSSAM GMS LTD,4000211943,6766.20
Department for Education,DEPARTMENT FOR EDUCATION,07/07/2015,Professional Services Consultancy and Contingent Labour,Information Technology Group,Costs related to temporary workers,RUSSAM GMS LTD,4000211943,16993.20
Department for Education,DEPARTMENT FOR EDUCATION,07/07/2015,Professional Services Consultancy and Contingent Labour,Information Technology Group,Costs related to temporary workers,RUSSAM GMS LTD,4000211943,12480.00
Department for Education,DEPARTMENT FOR EDUCATION,07/07/2015,Professional Services Consultancy and Contingent Labour,Information Technology Group,Costs related to temporary workers,RUSSAM GMS LTD,4000211943,14238.00
Department for Education,DEPARTMENT FOR EDUCATION,07/07/2015,Professional Services Consultancy and Contingent Labour,Information Technology Group,Costs related to temporary workers,RUSSAM GMS LTD,4000211943,10692.00
Department for Education,DEPARTMENT FOR EDUCATION,07/07/2015,Professional Services Consultancy and Contingent Labour,Information Technology Group,Costs related to temporary workers,RUSSAM GMS LTD,4000211943,12165.60
Department for Education,DEPARTMENT FOR EDUCATION,07/07/2015,Programme costs,Systems and Accountability Group,Funding to deliver policies (excluding consultancy) paid to third parties via a service delivery contract,RM EDUCATION PLC,4000211939,39969.17
Department for Education,DEPARTMENT FOR EDUCATION,08/07/2015,Professional Services Consultancy and Contingent Labour,Information Technology Group,Costs related to temporary workers,FDM GROUP LTD,4000211995,12636.00
Department for Education,DEPARTMENT FOR EDUCATION,08/07/2015,Professional Services Consultancy and Contingent Labour,Information Technology Group,Costs related to temporary workers,FDM GROUP LTD,4000211995,17982.00
Department for Education,DEPARTMENT FOR EDUCATION,08/07/2015,Professional Services Other,Strategic Analysis and Research and Policy Impact Group,Research and evaluation activities,RESEARCH IN PRACTICE,4000211976,32930.00
Department for Education,DEPARTMENT FOR EDUCATION,08/07/2015,Programme costs,Children in Care Division,Funding to deliver policies (excluding consultancy) paid to third parties via a service delivery contract,MOTT MACDONALD LTD,4000212013,85692.00
Department for Education,DEPARTMENT FOR EDUCATION,08/07/2015,Professional Services Consultancy and Contingent Labour,Information Technology Group,Costs related to temporary workers,RUSSAM GMS LTD,4000211979,12000.00
Department for Education,DEPARTMENT FOR EDUCATION,08/07/2015,Professional Services Consultancy and Contingent Labour,Information Technology Group,Costs related to temporary workers,RUSSAM GMS LTD,4000211979,20235.00
Department for Education,DEPARTMENT FOR EDUCATION,08/07/2015,Programme costs,"Childcare, Special Educational Needs and Children's Strategy Group",Funding to deliver policies (excluding consultancy) paid to third parties via a service delivery contract,MOTT MACDONALD LTD,4000212013,46222.80
Department for Education,DEPARTMENT FOR EDUCATION,09/07/2015,Programme costs,Assessment and Curriculum and General Qualifications Group,Funding to deliver policies (excluding consultancy) paid to third parties via a service delivery contract,OFQUAL,1001691,1575000.00
Department for Education,NATIONAL COLLEGE FOR TEACHING AND LEADERSHIP AGENCY,09/07/2015,Communications,Operations Directorate,"Publicity, advertising, media advertising campaigns (excluding recruitment adverts)",CARAT,4000212044,134841.24
Department for Education,NATIONAL COLLEGE FOR TEACHING AND LEADERSHIP AGENCY,09/07/2015,Professional Services Other,Operations Directorate,Research and evaluation activities,CFE LTD,4000212057,39757.20
Department for Education,DEPARTMENT FOR EDUCATION,09/07/2015,Grants,Free School Group,Grants to third sector organisations / not for profit organisations and other businesses,THE LEIGH ACADEMIES TRUST,4000212039,30000.00
Department for Education,DEPARTMENT FOR EDUCATION,09/07/2015,Communications,"Childcare, Special Educational Needs and Children's Strategy Group",Marketing services,CARAT,4000212044,-103.23
Department for Education,DEPARTMENT FOR EDUCATION,09/07/2015,Grants,Academies Delivery Group,Grants to third sector organisations / not for profit organisations and other businesses,CHRIST CHURCH CE PRIMARY SCHOOL,4000212051,25000.00
Department for Education,DEPARTMENT FOR EDUCATION,09/07/2015,Grants,Academies Delivery Group,Grants to third sector organisations / not for profit organisations and other businesses,GEORGE SPENCER ACADEMY TRUST,4000212068,25000.00
Department for Education,DEPARTMENT FOR EDUCATION,09/07/2015,Grants,Free School Group,Grants to third sector organisations / not for profit organisations and other businesses,WALLINGTON COUNTY GRAMMER SCHOOL,4000212077,30000.00
Department for Education,DEPARTMENT FOR EDUCATION,09/07/2015,ICT,Information Technology Group,ICT Services,EDUSERV,4000212075,31206.00
Department for Education,DEPARTMENT FOR EDUCATION,09/07/2015,ICT,Children in Care Division,Telecoms facilities and services - mobiles and pagers,VODAFONE CORPORATE,4000212079,1047.70
Department for Education,DEPARTMENT FOR EDUCATION,09/07/2015,ICT,Strategic Analysis and Research and Policy Impact Group,Telecoms facilities and services - mobiles and pagers,VODAFONE CORPORATE,4000212079,84.12
Department for Education,DEPARTMENT FOR EDUCATION,09/07/2015,ICT,Children in Care Division,Telecoms facilities and services - mobiles and pagers,VODAFONE CORPORATE,4000212079,16.80
Department for Education,DEPARTMENT FOR EDUCATION,09/07/2015,ICT,"Childcare, Special Educational Needs and Children's Strategy Group",Telecoms facilities and services - mobiles and pagers,VODAFONE CORPORATE,4000212079,219.00
Department for Education,DEPARTMENT FOR EDUCATION,09/07/2015,ICT,Strategic Analysis and Research and Policy Impact Group,Telecoms facilities and services - mobiles and pagers,VODAFONE CORPORATE,4000212079,169.36
Department for Education,DEPARTMENT FOR EDUCATION,09/07/2015,ICT,"Childcare, Special Educational Needs and Children's Strategy Group",Telecoms facilities and services - mobiles and pagers,VODAFONE CORPORATE,4000212079,492.93
Department for Education,DEPARTMENT FOR EDUCATION,09/07/2015,ICT,Children's Services and Departmental Strategy Directorate Support,Telecoms facilities and services - mobiles and pagers,VODAFONE CORPORATE,4000212079,16.80
Department for Education,DEPARTMENT FOR EDUCATION,09/07/2015,ICT,"Childcare, Special Educational Needs and Children's Strategy Group",Telecoms facilities and services - mobiles and pagers,VODAFONE CORPORATE,4000212079,14.40
Department for Education,DEPARTMENT FOR EDUCATION,09/07/2015,ICT,Families Group,Telecoms facilities and services - mobiles and pagers,VODAFONE CORPORATE,4000212079,16.80
Department for Education,DEPARTMENT FOR EDUCATION,09/07/2015,ICT,Finance and Commercial Group,Telecoms facilities and services - mobiles and pagers,VODAFONE CORPORATE,4000212079,498.26
Department for Education,DEPARTMENT FOR EDUCATION,09/07/2015,ICT,Property Asset Management Group,Telecoms facilities and services - mobiles and pagers,VODAFONE CORPORATE,4000212079,776.41
Department for Education,DEPARTMENT FOR EDUCATION,09/07/2015,ICT,Strategic Analysis and Research and Policy Impact Group,Telecoms facilities and services - mobiles and pagers,VODAFONE CORPORATE,4000212079,287.22
Department for Education,DEPARTMENT FOR EDUCATION,09/07/2015,ICT,Private Office,Telecoms facilities and services - mobiles and pagers,VODAFONE CORPORATE,4000212079,33.60
Department for Education,DEPARTMENT FOR EDUCATION,09/07/2015,ICT,"Strategy, Performance and Implementation Group",Telecoms facilities and services - mobiles and pagers,VODAFONE CORPORATE,4000212079,219.37
Department for Education,DEPARTMENT FOR EDUCATION,09/07/2015,ICT,Finance and Commercial Group,Telecoms facilities and services - mobiles and pagers,VODAFONE CORPORATE,4000212079,1092.64
Department for Education,DEPARTMENT FOR EDUCATION,09/07/2015,ICT,Human Resources Group,Telecoms facilities and services - mobiles and pagers,VODAFONE CORPORATE,4000212079,581.38
Department for Education,DEPARTMENT FOR EDUCATION,09/07/2015,ICT,Property Asset Management Group,Telecoms facilities and services - mobiles and pagers,VODAFONE CORPORATE,4000212079,11.44
Department for Education,DEPARTMENT FOR EDUCATION,09/07/2015,ICT,Human Resources Group,Telecoms facilities and services - mobiles and pagers,VODAFONE CORPORATE,4000212079,84.00
Department for Education,DEPARTMENT FOR EDUCATION,09/07/2015,ICT,Free School Group,Telecoms facilities and services - mobiles and pagers,VODAFONE CORPORATE,4000212079,897.06
Department for Education,DEPARTMENT FOR EDUCATION,09/07/2015,ICT,Education Standards Directorate,Telecoms facilities and services - mobiles and pagers,VODAFONE CORPORATE,4000212079,88.80
Department for Education,DEPARTMENT FOR EDUCATION,09/07/2015,ICT,System Reform Group,Telecoms facilities and services - mobiles and pagers,VODAFONE CORPORATE,4000212079,518.86
Department for Education,DEPARTMENT FOR EDUCATION,09/07/2015,ICT,System Reform Group,Telecoms facilities and services - mobiles and pagers,VODAFONE CORPORATE,4000212079,16.80
Department for Education,DEPARTMENT FOR EDUCATION,09/07/2015,ICT,Education Funding Group,Telecoms facilities and services - mobiles and pagers,VODAFONE CORPORATE,4000212079,340.04
Department for Education,DEPARTMENT FOR EDUCATION,09/07/2015,ICT,Assessment and Curriculum and General Qualifications Group,Telecoms facilities and services - mobiles and pagers,VODAFONE CORPORATE,4000212079,797.12
Department for Education,DEPARTMENT FOR EDUCATION,09/07/2015,ICT,School Standards Group,Telecoms facilities and services - mobiles and pagers,VODAFONE CORPORATE,4000212079,204.53
Department for Education,DEPARTMENT FOR EDUCATION,09/07/2015,ICT,Systems and Accountability Group,Telecoms facilities and services - mobiles and pagers,VODAFONE CORPORATE,4000212079,278.40
Department for Education,DEPARTMENT FOR EDUCATION,09/07/2015,ICT,Academies Delivery Group,Telecoms facilities and services - mobiles and pagers,VODAFONE CORPORATE,4000212079,55.20
Department for Education,DEPARTMENT FOR EDUCATION,09/07/2015,ICT,Infrastructure and Funding Directorate Support,Telecoms facilities and services - mobiles and pagers,VODAFONE CORPORATE,4000212079,33.60
Department for Education,DEPARTMENT FOR EDUCATION,09/07/2015,ICT,Education Funding Group,Telecoms facilities and services - mobiles and pagers,VODAFONE CORPORATE,4000212079,48.92
Department for Education,DEPARTMENT FOR EDUCATION,09/07/2015,ICT,Due Diligence and Counter Extremism Group,Telecoms facilities and services - mobiles and pagers,VODAFONE CORPORATE,4000212079,168.00
Department for Education,DEPARTMENT FOR EDUCATION,09/07/2015,ICT,Closing the Gap Group,Telecoms facilities and services - mobiles and pagers,VODAFONE CORPORATE,4000212079,537.47
Department for Education,DEPARTMENT FOR EDUCATION,09/07/2015,ICT,Teachers and Teaching Group,Telecoms facilities and services - mobiles and pagers,VODAFONE CORPORATE,4000212079,550.81
Department for Education,DEPARTMENT FOR EDUCATION,09/07/2015,ICT,Academies Delivery Group,Telecoms facilities and services - mobiles and pagers,VODAFONE CORPORATE,4000212079,3047.69
Department for Education,DEPARTMENT FOR EDUCATION,09/07/2015,ICT,Regional School Commissioners Group,Telecoms facilities and services - mobiles and pagers,VODAFONE CORPORATE,4000212079,33.61
Department for Education,DEPARTMENT FOR EDUCATION,09/07/2015,ICT,Regional School Commissioners Group,Telecoms facilities and services - mobiles and pagers,VODAFONE CORPORATE,4000212079,84.58
Department for Education,DEPARTMENT FOR EDUCATION,09/07/2015,ICT,Regional School Commissioners Group,Telecoms facilities and services - mobiles and pagers,VODAFONE CORPORATE,4000212079,16.80
Department for Education,DEPARTMENT FOR EDUCATION,09/07/2015,ICT,Regional School Commissioners Group,Telecoms facilities and services - mobiles and pagers,VODAFONE CORPORATE,4000212079,62.40
Department for Education,DEPARTMENT FOR EDUCATION,09/07/2015,ICT,Regional School Commissioners Group,Telecoms facilities and services - mobiles and pagers,VODAFONE CORPORATE,4000212079,67.20
Department for Education,DEPARTMENT FOR EDUCATION,09/07/2015,ICT,Regional School Commissioners Group,Telecoms facilities and services - mobiles and pagers,VODAFONE CORPORATE,4000212079,16.80
Department for Education,DEPARTMENT FOR EDUCATION,09/07/2015,ICT,Regional School Commissioners Group,Telecoms facilities and services - mobiles and pagers,VODAFONE CORPORATE,4000212079,63.32
Department for Education,DEPARTMENT FOR EDUCATION,09/07/2015,ICT,Regional School Commissioners Group,Telecoms facilities and services - mobiles and pagers,VODAFONE CORPORATE,4000212079,117.61
Department for Education,DEPARTMENT FOR EDUCATION,09/07/2015,Grants,Free School Group,Grants to third sector organisations / not for profit organisations and other businesses,TAUHEEDUL ISLAM BOYS HIGH SCHOOL,4000212080,111000.00
Department for Education,DEPARTMENT FOR EDUCATION,09/07/2015,ICT,Regional School Commissioners Group,Telecoms facilities and services - mobiles and pagers,VODAFONE CORPORATE,4000212079,45.36
Department for Education,DEPARTMENT FOR EDUCATION,09/07/2015,ICT,Private Office,Telecoms facilities and services - mobiles and pagers,VODAFONE CORPORATE,4000212079,33.60
Department for Education,DEPARTMENT FOR EDUCATION,09/07/2015,ICT,Private Office,Telecoms facilities and services - mobiles and pagers,VODAFONE CORPORATE,4000212079,84.00
Department for Education,DEPARTMENT FOR EDUCATION,09/07/2015,ICT,Private Office,Telecoms facilities and services - mobiles and pagers,VODAFONE CORPORATE,4000212079,369.53
Department for Education,DEPARTMENT FOR EDUCATION,09/07/2015,ICT,Private Office,Telecoms facilities and services - mobiles and pagers,VODAFONE CORPORATE,4000212079,50.40
Department for Education,DEPARTMENT FOR EDUCATION,09/07/2015,ICT,Private Office,Telecoms facilities and services - mobiles and pagers,VODAFONE CORPORATE,4000212079,67.20
Department for Education,DEPARTMENT FOR EDUCATION,09/07/2015,ICT,Legal Advisers Office,Telecoms facilities and services - mobiles and pagers,VODAFONE CORPORATE,4000212079,187.20
Department for Education,DEPARTMENT FOR EDUCATION,09/07/2015,ICT,Public Communications Group,Telecoms facilities and services - mobiles and pagers,VODAFONE CORPORATE,4000212079,381.59
Department for Education,DEPARTMENT FOR EDUCATION,09/07/2015,ICT,Communications Group,Telecoms facilities and services - mobiles and pagers,VODAFONE CORPORATE,4000212079,774.74
Department for Education,STANDARDS AND TESTING AGENCY,09/07/2015,Programme costs,Test Development Division,Funding to deliver policies (excluding consultancy) paid to third parties via a service delivery contract,LEARN DIRECT,4000212048,58643.47
Department for Education,STANDARDS AND TESTING AGENCY,09/07/2015,Programme costs,Test Operations Division,Funding to deliver policies (excluding consultancy) paid to third parties via a service delivery contract,BSS,4000212076,56903.51
Department for Education,STANDARDS AND TESTING AGENCY,09/07/2015,ICT,Standards and Testing Agency Admin,Telecoms facilities and services - mobiles and pagers,VODAFONE CORPORATE,4000212079,16.33
Department for Education,STANDARDS AND TESTING AGENCY,09/07/2015,ICT,Test Development Division,Telecoms facilities and services - mobiles and pagers,VODAFONE CORPORATE,4000212079,16.80
Department for Education,EDUCATION FUNDING AGENCY,09/07/2015,ICT,Education Funding Agency Admin,Telecoms facilities and services - mobiles and pagers,VODAFONE CORPORATE,4000212079,16.80
Department for Education,EDUCATION FUNDING AGENCY,09/07/2015,ICT,Education Funding Agency Admin,Telecoms facilities and services - mobiles and pagers,VODAFONE CORPORATE,4000212079,151.20
Department for Education,EDUCATION FUNDING AGENCY,09/07/2015,ICT,Academies Group,Telecoms facilities and services - mobiles and pagers,VODAFONE CORPORATE,4000212079,2076.47
Department for Education,EDUCATION FUNDING AGENCY,09/07/2015,ICT,Capital Group,Telecoms facilities and services - mobiles and pagers,VODAFONE CORPORATE,4000212079,8325.54
Department for Education,EDUCATION FUNDING AGENCY,09/07/2015,ICT,School Funding Division,Telecoms facilities and services - mobiles and pagers,VODAFONE CORPORATE,4000212079,250.33
Department for Education,EDUCATION FUNDING AGENCY,09/07/2015,ICT,Education Funding Agency Admin,Telecoms facilities and services - mobiles and pagers,VODAFONE CORPORATE,4000212079,1529.20
Department for Education,EDUCATION FUNDING AGENCY,09/07/2015,ICT,Young People Group,Telecoms facilities and services - mobiles and pagers,VODAFONE CORPORATE,4000212079,1970.78
Department for Education,EDUCATION FUNDING AGENCY,09/07/2015,ICT,Academies Group,Telecoms facilities and services - mobiles and pagers,VODAFONE CORPORATE,4000212079,16.85
Department for Education,DEPARTMENT FOR EDUCATION,09/07/2015,ICT,Teachers and Teaching Group,Telecoms facilities and services - mobiles and pagers,VODAFONE CORPORATE,4000212079,42.58
Department for Education,DEPARTMENT FOR EDUCATION,09/07/2015,Facilities,Property Asset Management Group,Property management,METHODS CONSULTING LTD,4000212069,157209.92
Department for Education,NATIONAL COLLEGE FOR TEACHING AND LEADERSHIP AGENCY,09/07/2015,ICT,Delivery Directorate,Telecoms facilities and services - mobiles and pagers,VODAFONE CORPORATE,4000212079,84.00
Department for Education,NATIONAL COLLEGE FOR TEACHING AND LEADERSHIP AGENCY,09/07/2015,ICT,Operations Directorate,Telecoms facilities and services - mobiles and pagers,VODAFONE CORPORATE,4000212079,16.80
Department for Education,DEPARTMENT FOR EDUCATION,09/07/2015,Miscellaneous Expenditure,Finance and Commercial Group,Property claim paid out to an academy trust by Gallagher Bassett on behalf of the Department as part of the Department's Risk Protection Arrangement (RPA).,N/A � Risk Protection Arrangement (RPA) member,005921-000120-RB-01,36964.96
Department for Education,NATIONAL COLLEGE FOR TEACHING AND LEADERSHIP AGENCY,10/07/2015,Programme costs,Delivery Directorate,Funding to deliver policies (excluding consultancy) paid to third parties via a service delivery contract,Teach First Initial Teacher Development,4000212141,6033093.80
Department for Education,NATIONAL COLLEGE FOR TEACHING AND LEADERSHIP AGENCY,10/07/2015,Programme costs,Delivery Directorate,Funding to deliver policies (excluding consultancy) paid to third parties via a service delivery contract,TEACH FIRST,4000212127,2324627.18
Department for Education,DEPARTMENT FOR EDUCATION,10/07/2015,Professional Services Consultancy and Contingent Labour,Information Technology Group,Costs related to temporary workers,ALPINE RESOURCING LTD,4000212144,28656.00
Department for Education,DEPARTMENT FOR EDUCATION,10/07/2015,ICT,Systems and Accountability Group,ICT Services,SOFTWARE FOR DATA ANALYSIS LTD,4000212120,100356.00
Department for Education,NATIONAL COLLEGE FOR TEACHING AND LEADERSHIP AGENCY,10/07/2015,Grants,Operations Directorate,Current grants to local authorities,LONDON BOROUGH OF BEXLEY COUNCIL,4000212131,57712.57
Department for Education,DEPARTMENT FOR EDUCATION,10/07/2015,Professional Services Other,Strategic Analysis and Research and Policy Impact Group,Research and evaluation activities,RM EDUCATION,4000212106,222879.00
Department for Education,DEPARTMENT FOR EDUCATION,10/07/2015,Personnel Related,School Standards Group,Additional pension contributions paid to teachers working in European schools following a European Court judgement,TEACHERS PENSIONS,4000212155,111893.79
Department for Education,DEPARTMENT FOR EDUCATION,13/07/2015,Professional Services Other,Children's Services and Departmental Strategy Safeguarding Group,Legal services provided externally (excluding Treasury Solicitor) ,BURGES SALMON,4000212198,32000.00
Department for Education,NATIONAL COLLEGE FOR TEACHING AND LEADERSHIP AGENCY,13/07/2015,Professional Services Other,Operations Directorate,"Fees / expenses of professionals, for example to implement advice or changes",BROWNE JACOBSON SOLICITORS,4000212192,35639.20
Department for Education,DEPARTMENT FOR EDUCATION,13/07/2015,Grants,"Childcare, Special Educational Needs and Children's Strategy Group",Grants to third sector organisations / not for profit organisations and other businesses,THE DOVE SERVICE LTD,4000212204,42937.27
Department for Education,DEPARTMENT FOR EDUCATION,13/07/2015,ICT,Information Technology Group,ICT Services,EDUSERV,4000212181,93842.40
Department for Education,DEPARTMENT FOR EDUCATION,13/07/2015,Grants,"Childcare, Special Educational Needs and Children's Strategy Group",Grants to third sector organisations / not for profit organisations and other businesses,BRITISH DYSLEXIA ASSOCIATION,4000212167,39621.48
Department for Education,DEPARTMENT FOR EDUCATION,13/07/2015,Grants,Assessment and Curriculum and General Qualifications Group,Grants to third sector organisations / not for profit organisations and other businesses,BCS,4000212171,215376.00
Department for Education,DEPARTMENT FOR EDUCATION,13/07/2015,Grants,Assessment and Curriculum and General Qualifications Group,Grants to third sector organisations / not for profit organisations and other businesses,YOUTH SPORT TRUST,4000212176,120000.00
Department for Education,DEPARTMENT FOR EDUCATION,13/07/2015,Grants,Closing the Gap Group,Grants to third sector organisations / not for profit organisations and other businesses,KNOWSLEY SKILLS ACADEMY,4000212184,34400.00
Department for Education,DEPARTMENT FOR EDUCATION,13/07/2015,Grants,"Childcare, Special Educational Needs and Children's Strategy Group",Grants to third sector organisations / not for profit organisations and other businesses,NATIONAL DAY NURSERIES ASSOCIATION,4000212185,64602.77
Department for Education,DEPARTMENT FOR EDUCATION,13/07/2015,Programme costs,"Childcare, Special Educational Needs and Children's Strategy Group",Funding to deliver policies (excluding consultancy) paid to third parties via a service delivery contract,NCB,4000212174,99996.00
Department for Education,DEPARTMENT FOR EDUCATION,13/07/2015,Grants,Children's Services and Departmental Strategy Safeguarding Group,Grants to third sector organisations / not for profit organisations and other businesses,DIANA PRINCESS  MEMORIAL AWARD,4000212188,112503.10
Department for Education,DEPARTMENT FOR EDUCATION,13/07/2015,Grants,"Childcare, Special Educational Needs and Children's Strategy Group",Grants to third sector organisations / not for profit organisations and other businesses,THE NATIONAL LITERACY TRUST,4000212190,162021.73
Department for Education,DEPARTMENT FOR EDUCATION,13/07/2015,Grants,Families Group,Grants to third sector organisations / not for profit organisations and other businesses,THE TAVISTOCK & PORTMAN NHS FOUNDATION TRUST,4000212194,77247.14
Department for Education,DEPARTMENT FOR EDUCATION,13/07/2015,Grants,Closing the Gap Group,Grants to third sector organisations / not for profit organisations and other businesses,TRAINING 2000,4000212199,34000.00
Department for Education,DEPARTMENT FOR EDUCATION,13/07/2015,Grants,Closing the Gap Group,Grants to third sector organisations / not for profit organisations and other businesses,PRINCES TRUST VOLUNTEERS PROGRAMME,4000212203,98166.02
Department for Education,DEPARTMENT FOR EDUCATION,13/07/2015,Grants,Children in Care Division,Grants to third sector organisations / not for profit organisations and other businesses,THE SHARE FOUNDATION 3RD PARTY TRUST,4000212207,54200.00
Department for Education,DEPARTMENT FOR EDUCATION,13/07/2015,Professional Services Other,Finance and Commercial Group,Shared corporate accounting services,SHARED SERVICES CONNECTED LTD,4000212195,265882.19
Department for Education,DEPARTMENT FOR EDUCATION,13/07/2015,Professional Services Other,Finance and Commercial Group,Shared corporate payroll services,SHARED SERVICES CONNECTED LTD,4000212195,55877.74
Department for Education,DEPARTMENT FOR EDUCATION,13/07/2015,Programme costs,"Childcare, Special Educational Needs and Children's Strategy Group",Funding to deliver policies (excluding consultancy) paid to third parties via a service delivery contract,NCB,4000212174,50000.40
Department for Education,DEPARTMENT FOR EDUCATION,13/07/2015,Programme costs,Children in Care Division,Funding to deliver policies (excluding consultancy) paid to third parties via a service delivery contract,BRITISH ASSOCIATION FOR ADOPTION & FOSTERING,4000212187,48579.00
Department for Education,STANDARDS AND TESTING AGENCY,13/07/2015,Office Solutions,Test Operations Division,Document Storage,WILLIAMS LEA,4000212200,25914.87
Department for Education,DEPARTMENT FOR EDUCATION,13/07/2015,Programme costs,Children in Care Division,Funding to deliver policies (excluding consultancy) paid to third parties via a service delivery contract,BRITISH ASSOCIATION FOR ADOPTION & FOSTERING,4000212187,23188.75
Department for Education,DEPARTMENT FOR EDUCATION,14/07/2015,Miscellaneous Expenditure,Education Funding Group,Interest paid as a result of late payment of bills,HM REVENUE & CUSTOMS,2001138,685.85
Department for Education,DEPARTMENT FOR EDUCATION,14/07/2015,Facilities,School Standards Group,"Building maintenance and repair, including repainting, replacing flooring, etc.",DTZ MANAGEMENT SERVICES LTD,4000212263,50075.17
Department for Education,DEPARTMENT FOR EDUCATION,14/07/2015,Programme costs,"Childcare, Special Educational Needs and Children's Strategy Group",Funding to deliver policies (excluding consultancy) paid to third parties via a service delivery contract,NATIONAL AUTISTIC SOCIETY,4000212236,162499.98
Department for Education,DEPARTMENT FOR EDUCATION,14/07/2015,Grants,Free School Group,Grants to third sector organisations / not for profit organisations and other businesses,CHEADLE HULME HIGH SCHOOL,4000212225,66000.00
Department for Education,DEPARTMENT FOR EDUCATION,14/07/2015,Programme costs,Education Funding Group,Funding to deliver policies (excluding consultancy) paid to third parties via a service delivery contract,HM REVENUE & CUSTOMS,2001138,89727.00
Department for Education,DEPARTMENT FOR EDUCATION,14/07/2015,Grants,Free School Group,Grants to third sector organisations / not for profit organisations and other businesses,TAUHEEDUL ISLAM BOYS HIGH SCHOOL,4000212258,45000.00
Department for Education,DEPARTMENT FOR EDUCATION,14/07/2015,Grants,Academies Delivery Group,Grants to third sector organisations / not for profit organisations and other businesses,ST JOSEPH'S COLLEGE,4000212272,55000.00
Department for Education,DEPARTMENT FOR EDUCATION,14/07/2015,Grants,Academies Delivery Group,Grants to third sector organisations / not for profit organisations and other businesses,THE GLYN LEARNING FOUNDATION,4000212284,25000.00
Department for Education,DEPARTMENT FOR EDUCATION,14/07/2015,Grants,Academies Delivery Group,Grants to third sector organisations / not for profit organisations and other businesses,ST BARTS MULTI ACADEMY TRUST,4000212286,70000.00
Department for Education,DEPARTMENT FOR EDUCATION,14/07/2015,Grants,Academies Delivery Group,Grants to third sector organisations / not for profit organisations and other businesses,ELSTON HALL PRIMARY SCHOOL,4000212292,25000.00
Department for Education,DEPARTMENT FOR EDUCATION,14/07/2015,Grants,Academies Delivery Group,Grants to third sector organisations / not for profit organisations and other businesses,DERBY DIOCESAN ACADEMY TRUST,4000212312,85000.00
Department for Education,DEPARTMENT FOR EDUCATION,14/07/2015,Grants,Free School Group,Grants to third sector organisations / not for profit organisations and other businesses,BEDFORD TECHNICAL ACADEMY,4000212314,90000.00
Department for Education,DEPARTMENT FOR EDUCATION,14/07/2015,Grants,Free School Group,Grants to third sector organisations / not for profit organisations and other businesses,KINGSTEIGNTON SCHOOL,4000212319,66000.00
Department for Education,DEPARTMENT FOR EDUCATION,14/07/2015,Grants,Free School Group,Grants to third sector organisations / not for profit organisations and other businesses,AVANTI SCHOOL,4000212322,66000.00
Department for Education,DEPARTMENT FOR EDUCATION,14/07/2015,Grants,Free School Group,Grants to third sector organisations / not for profit organisations and other businesses,CITY OF LONDON ACADEMIES SOUTHWARK,4000212323,66000.00
Department for Education,DEPARTMENT FOR EDUCATION,14/07/2015,Grants,Free School Group,Grants to third sector organisations / not for profit organisations and other businesses,SUNDERLAND CENTRE OF OPPORTUNITY,4000212324,66000.00
Department for Education,DEPARTMENT FOR EDUCATION,14/07/2015,Grants,Free School Group,Grants to third sector organisations / not for profit organisations and other businesses,SGS BERKELEY GREEN UTC TRUST,4000212329,90000.00
Department for Education,DEPARTMENT FOR EDUCATION,14/07/2015,Grants,Free School Group,Grants to third sector organisations / not for profit organisations and other businesses,THE BIG LITTLE SCHOOLS COOPERATIVE,4000212330,66000.00
Department for Education,DEPARTMENT FOR EDUCATION,14/07/2015,Grants,Academies Delivery Group,Grants to third sector organisations / not for profit organisations and other businesses,SHAVINGTON PRIMARY SCHOOL,4000212338,25000.00
Department for Education,DEPARTMENT FOR EDUCATION,14/07/2015,Grants,Academies Delivery Group,Grants to third sector organisations / not for profit organisations and other businesses,ST BERNADETTS RC PRIMARY SCHOOL,4000212345,25000.00
Department for Education,DEPARTMENT FOR EDUCATION,14/07/2015,Grants,Academies Delivery Group,Grants to third sector organisations / not for profit organisations and other businesses,ORMISTON ACADEMIES TRUST,4000212348,115000.00
Department for Education,DEPARTMENT FOR EDUCATION,14/07/2015,Grants,Free School Group,Grants to third sector organisations / not for profit organisations and other businesses,LANGLEY PARK SCHOOL FOR GIRLS,4000212350,66000.00
Department for Education,DEPARTMENT FOR EDUCATION,14/07/2015,Grants,Academies Delivery Group,Grants to third sector organisations / not for profit organisations and other businesses,ST THOMAS MORE CATHOLIC PRIMARY SCHOOL,4000212365,25000.00
Department for Education,DEPARTMENT FOR EDUCATION,14/07/2015,Grants,Free School Group,Grants to third sector organisations / not for profit organisations and other businesses,MERCHANTS ACADEMY WITHYWOOD,4000212367,66000.00
Department for Education,DEPARTMENT FOR EDUCATION,14/07/2015,Grants,Academies Delivery Group,Grants to third sector organisations / not for profit organisations and other businesses,GORSEY BANK PRIMARY SCHOOL,4000212378,25000.00
Department for Education,DEPARTMENT FOR EDUCATION,15/07/2015,Funding to pay Teachers' Pensions,Teachers and Teaching Group,Pension related payments to retired teachers where liability has transferred to SoS,TPS GOVERNMENT BANKING SERVICE ACCOUNT,2001139,734717.99
Department for Education,DEPARTMENT FOR EDUCATION,15/07/2015,Funding to pay Teachers' Pensions,Teachers and Teaching Group,Pension related payments to retired teachers where liability has transferred to SoS,TPS GOVERNMENT BANKING SERVICE ACCOUNT,2001140,285103.97
Department for Education,DEPARTMENT FOR EDUCATION,15/07/2015,Funding to pay Teachers' Pensions,Teachers and Teaching Group,Pension related payments to retired teachers where liability has transferred to SoS,TPS GOVERNMENT BANKING SERVICE ACCOUNT,2001140,7206.64
Department for Education,DEPARTMENT FOR EDUCATION,15/07/2015,ICT,Information Technology Group,ICT Services,EDUSERV,4000212444,46646.40
Department for Education,DEPARTMENT FOR EDUCATION,15/07/2015,Grants,Children in Care Division,Grants to third sector organisations / not for profit organisations and other businesses,THE SHARE FOUNDATION 3RD PARTY TRUST,4000212416,51200.00
Department for Education,DEPARTMENT FOR EDUCATION,16/07/2015,Professional Services Consultancy and Contingent Labour,Systems and Accountability Group,Costs related to temporary workers,BROOK STREET UK LTD,4000212535,17779.19
Department for Education,DEPARTMENT FOR EDUCATION,16/07/2015,Professional Services Consultancy and Contingent Labour,Public Communications Group,Costs related to temporary workers,BROOK STREET UK LTD,4000212535,7529.58
Department for Education,STANDARDS AND TESTING AGENCY,16/07/2015,Professional Services Consultancy and Contingent Labour,Test Development Division,Costs related to temporary workers,BROOK STREET UK LTD,4000212535,4198.33
Department for Education,DEPARTMENT FOR EDUCATION,16/07/2015,Facilities,Property Asset Management Group,Business rates,GVA GRIMLEY LTD,4000212496,592268.00
Department for Education,DEPARTMENT FOR EDUCATION,16/07/2015,Facilities,Property Asset Management Group,Business rates,GVA GRIMLEY LTD,4000212496,3954.00
Department for Education,DEPARTMENT FOR EDUCATION,16/07/2015,ICT,Systems and Accountability Group,ICT Services,SCISYS UK LTD,4000212609,42480.00
Department for Education,DEPARTMENT FOR EDUCATION,16/07/2015,Grants,"Childcare, Special Educational Needs and Children's Strategy Group",Grants to local authorities / other establishments within aggregate external funding or aggregate exchequer grant,SLOUGH BOROUGH COUNCIL,4000212445,27433.00
Department for Education,DEPARTMENT FOR EDUCATION,16/07/2015,Grants,"Childcare, Special Educational Needs and Children's Strategy Group",Grants to local authorities / other establishments within aggregate external funding or aggregate exchequer grant,CAMBRIDGESHIRE COUNTY COUNCIL,4000212447,89833.00
Department for Education,DEPARTMENT FOR EDUCATION,16/07/2015,Grants,"Childcare, Special Educational Needs and Children's Strategy Group",Grants to local authorities / other establishments within aggregate external funding or aggregate exchequer grant,PETERBOROUGH CITY COUNCIL,4000212448,32011.00
Department for Education,DEPARTMENT FOR EDUCATION,16/07/2015,Grants,"Childcare, Special Educational Needs and Children's Strategy Group",Grants to local authorities / other establishments within aggregate external funding or aggregate exchequer grant,SUFFOLK COUNTY COUNCIL,4000212449,105402.00
Department for Education,DEPARTMENT FOR EDUCATION,16/07/2015,Grants,"Childcare, Special Educational Needs and Children's Strategy Group",Grants to local authorities / other establishments within aggregate external funding or aggregate exchequer grant,LONDON BOROUGH OF HOUNSLOW COUNCIL,4000212450,43459.00
Department for Education,DEPARTMENT FOR EDUCATION,16/07/2015,Grants,"Childcare, Special Educational Needs and Children's Strategy Group",Grants to local authorities / other establishments within aggregate external funding or aggregate exchequer grant,LONDON BOROUGH OF MERTON COUNCIL,4000212452,31139.00
Department for Education,DEPARTMENT FOR EDUCATION,16/07/2015,Grants,"Childcare, Special Educational Needs and Children's Strategy Group",Grants to local authorities / other establishments within aggregate external funding or aggregate exchequer grant,WOLVERHAMPTON CITY COUNCIL,4000212454,39229.00
Department for Education,DEPARTMENT FOR EDUCATION,16/07/2015,Grants,"Childcare, Special Educational Needs and Children's Strategy Group",Grants to local authorities / other establishments within aggregate external funding or aggregate exchequer grant,WARRINGTON BOROUGH COUNCIL,4000212455,26591.00
Department for Education,DEPARTMENT FOR EDUCATION,16/07/2015,Grants,"Childcare, Special Educational Needs and Children's Strategy Group",Grants to local authorities / other establishments within aggregate external funding or aggregate exchequer grant,DEVON COUNTY COUNCIL,4000212456,108141.00
Department for Education,DEPARTMENT FOR EDUCATION,16/07/2015,Grants,"Childcare, Special Educational Needs and Children's Strategy Group",Grants to local authorities / other establishments within aggregate external funding or aggregate exchequer grant,PLYMOUTH CITY COUNCIL,4000212457,33661.00
Department for Education,DEPARTMENT FOR EDUCATION,16/07/2015,Grants,"Childcare, Special Educational Needs and Children's Strategy Group",Grants to local authorities / other establishments within aggregate external funding or aggregate exchequer grant,LONDON BOROUGH OF NEWHAM,4000212458,63954.00
Department for Education,DEPARTMENT FOR EDUCATION,16/07/2015,Grants,"Childcare, Special Educational Needs and Children's Strategy Group",Grants to local authorities / other establishments within aggregate external funding or aggregate exchequer grant,LONDON BOROUGH OF REDBRIDGE,4000212459,48913.00
Department for Education,DEPARTMENT FOR EDUCATION,16/07/2015,Grants,"Childcare, Special Educational Needs and Children's Strategy Group",Grants to local authorities / other establishments within aggregate external funding or aggregate exchequer grant,LONDON BOROUGH OF RICHMOND UPON THAMES,4000212460,26568.00
Department for Education,DEPARTMENT FOR EDUCATION,16/07/2015,Grants,"Childcare, Special Educational Needs and Children's Strategy Group",Grants to local authorities / other establishments within aggregate external funding or aggregate exchequer grant,LONDON BOROUGH OF WALTHAM FOREST COUNCIL,4000212461,46201.00
Department for Education,DEPARTMENT FOR EDUCATION,16/07/2015,Grants,"Childcare, Special Educational Needs and Children's Strategy Group",Grants to local authorities / other establishments within aggregate external funding or aggregate exchequer grant,ROCHDALE MBC,4000212462,35198.00
Department for Education,DEPARTMENT FOR EDUCATION,16/07/2015,Grants,"Childcare, Special Educational Needs and Children's Strategy Group",Grants to local authorities / other establishments within aggregate external funding or aggregate exchequer grant,SALFORD CITY COUNCIL,4000212463,36022.00
Department for Education,DEPARTMENT FOR EDUCATION,16/07/2015,Grants,"Childcare, Special Educational Needs and Children's Strategy Group",Grants to local authorities / other establishments within aggregate external funding or aggregate exchequer grant,STOCKPORT MBC,4000212464,37369.00
Department for Education,DEPARTMENT FOR EDUCATION,16/07/2015,Grants,"Childcare, Special Educational Needs and Children's Strategy Group",Grants to local authorities / other establishments within aggregate external funding or aggregate exchequer grant,TAMESIDE MBC,4000212465,32642.00
Department for Education,DEPARTMENT FOR EDUCATION,16/07/2015,Grants,"Childcare, Special Educational Needs and Children's Strategy Group",Grants to local authorities / other establishments within aggregate external funding or aggregate exchequer grant,WIGAN MBC,4000212466,43548.00
Department for Education,DEPARTMENT FOR EDUCATION,16/07/2015,Grants,"Childcare, Special Educational Needs and Children's Strategy Group",Grants to local authorities / other establishments within aggregate external funding or aggregate exchequer grant,ESSEX COUNTY COUNCIL,4000212468,192581.00
Department for Education,DEPARTMENT FOR EDUCATION,16/07/2015,Grants,"Childcare, Special Educational Needs and Children's Strategy Group",Grants to local authorities / other establishments within aggregate external funding or aggregate exchequer grant,THURROCK COUNCIL,4000212470,26053.00
Department for Education,DEPARTMENT FOR EDUCATION,16/07/2015,Grants,"Childcare, Special Educational Needs and Children's Strategy Group",Grants to local authorities / other establishments within aggregate external funding or aggregate exchequer grant,HEREFORDSHIRE COUNCIL,4000212471,29125.00
Department for Education,DEPARTMENT FOR EDUCATION,16/07/2015,Grants,"Childcare, Special Educational Needs and Children's Strategy Group",Grants to local authorities / other establishments within aggregate external funding or aggregate exchequer grant,BIRMINGHAM CITY COUNCIL,4000212472,198848.00
Department for Education,DEPARTMENT FOR EDUCATION,16/07/2015,Grants,"Childcare, Special Educational Needs and Children's Strategy Group",Grants to local authorities / other establishments within aggregate external funding or aggregate exchequer grant,DUDLEY MBC,4000212473,43837.00
Department for Education,DEPARTMENT FOR EDUCATION,16/07/2015,Grants,"Childcare, Special Educational Needs and Children's Strategy Group",Grants to local authorities / other establishments within aggregate external funding or aggregate exchequer grant,SANDWELL MBC,4000212474,54025.00
Department for Education,DEPARTMENT FOR EDUCATION,16/07/2015,Grants,"Childcare, Special Educational Needs and Children's Strategy Group",Grants to local authorities / other establishments within aggregate external funding or aggregate exchequer grant,LIVERPOOL CITY COUNCIL,4000212476,63028.00
Department for Education,DEPARTMENT FOR EDUCATION,16/07/2015,Grants,"Childcare, Special Educational Needs and Children's Strategy Group",Grants to local authorities / other establishments within aggregate external funding or aggregate exchequer grant,BARNSLEY MBC,4000212477,33365.00
Department for Education,DEPARTMENT FOR EDUCATION,16/07/2015,Grants,"Childcare, Special Educational Needs and Children's Strategy Group",Grants to local authorities / other establishments within aggregate external funding or aggregate exchequer grant,CITY OF BRADFORD METROPOLITAN DISTRICT COUNCIL,4000212478,97196.00
Department for Education,DEPARTMENT FOR EDUCATION,16/07/2015,Grants,"Childcare, Special Educational Needs and Children's Strategy Group",Grants to local authorities / other establishments within aggregate external funding or aggregate exchequer grant,CALDERDALE MBC,4000212479,30637.00
Department for Education,DEPARTMENT FOR EDUCATION,16/07/2015,Grants,"Childcare, Special Educational Needs and Children's Strategy Group",Grants to local authorities / other establishments within aggregate external funding or aggregate exchequer grant,KIRKLEES COUNCIL,4000212480,66217.00
Department for Education,DEPARTMENT FOR EDUCATION,16/07/2015,Grants,"Childcare, Special Educational Needs and Children's Strategy Group",Grants to local authorities / other establishments within aggregate external funding or aggregate exchequer grant,WAKEFIELD MDC,4000212481,44932.00
Department for Education,DEPARTMENT FOR EDUCATION,16/07/2015,Grants,"Childcare, Special Educational Needs and Children's Strategy Group",Grants to local authorities / other establishments within aggregate external funding or aggregate exchequer grant,WORCESTERSHIRE COUNTY COUNCIL,4000212482,74710.00
Department for Education,DEPARTMENT FOR EDUCATION,16/07/2015,Grants,"Childcare, Special Educational Needs and Children's Strategy Group",Grants to local authorities / other establishments within aggregate external funding or aggregate exchequer grant,KENT COUNTY COUNCIL,4000212483,212347.00
Department for Education,DEPARTMENT FOR EDUCATION,16/07/2015,Grants,"Childcare, Special Educational Needs and Children's Strategy Group",Grants to local authorities / other establishments within aggregate external funding or aggregate exchequer grant,MEDWAY COUNCIL,4000212484,39470.00
Department for Education,DEPARTMENT FOR EDUCATION,16/07/2015,Grants,"Childcare, Special Educational Needs and Children's Strategy Group",Grants to local authorities / other establishments within aggregate external funding or aggregate exchequer grant,LANCASHIRE COUNTY COUNCIL,4000212485,164741.00
Department for Education,DEPARTMENT FOR EDUCATION,16/07/2015,Grants,"Childcare, Special Educational Needs and Children's Strategy Group",Grants to local authorities / other establishments within aggregate external funding or aggregate exchequer grant,BLACKBURN WITH DARWEN BOROUGH COUNCIL,4000212486,27470.00
Department for Education,DEPARTMENT FOR EDUCATION,16/07/2015,Grants,"Childcare, Special Educational Needs and Children's Strategy Group",Grants to local authorities / other establishments within aggregate external funding or aggregate exchequer grant,SEFTON COUNCIL,4000212488,34381.00
Department for Education,DEPARTMENT FOR EDUCATION,16/07/2015,Grants,"Childcare, Special Educational Needs and Children's Strategy Group",Grants to local authorities / other establishments within aggregate external funding or aggregate exchequer grant,BURY MBC,4000212489,27207.00
Department for Education,DEPARTMENT FOR EDUCATION,16/07/2015,Grants,"Childcare, Special Educational Needs and Children's Strategy Group",Grants to local authorities / other establishments within aggregate external funding or aggregate exchequer grant,MANCHESTER CITY COUNCIL,4000212490,84038.00
Department for Education,DEPARTMENT FOR EDUCATION,16/07/2015,Grants,"Childcare, Special Educational Needs and Children's Strategy Group",Grants to local authorities / other establishments within aggregate external funding or aggregate exchequer grant,OLDHAM MBC,4000212491,40046.00
Department for Education,DEPARTMENT FOR EDUCATION,16/07/2015,Grants,"Childcare, Special Educational Needs and Children's Strategy Group",Grants to local authorities / other establishments within aggregate external funding or aggregate exchequer grant,GATESHEAD MBC,4000212492,26769.00
Department for Education,DEPARTMENT FOR EDUCATION,16/07/2015,Grants,"Childcare, Special Educational Needs and Children's Strategy Group",Grants to local authorities / other establishments within aggregate external funding or aggregate exchequer grant,NEWCASTLE CITY COUNCIL,4000212493,38521.00
Department for Education,DEPARTMENT FOR EDUCATION,16/07/2015,Grants,"Childcare, Special Educational Needs and Children's Strategy Group",Grants to local authorities / other establishments within aggregate external funding or aggregate exchequer grant,NORTH TYNESIDE,4000212494,25928.00
Department for Education,DEPARTMENT FOR EDUCATION,16/07/2015,Facilities,Property Asset Management Group,"Building maintenance and repair, including repainting, replacing flooring, etc.",INTERSERVE FACILITIES MANAGEMENT LTD,4000212525,180030.60
Department for Education,DEPARTMENT FOR EDUCATION,16/07/2015,Grants,"Childcare, Special Educational Needs and Children's Strategy Group",Grants to local authorities / other establishments within aggregate external funding or aggregate exchequer grant,NOTTINGHAMSHIRE COUNTY COUNCIL,4000212498,109148.00
Department for Education,DEPARTMENT FOR EDUCATION,16/07/2015,Grants,"Childcare, Special Educational Needs and Children's Strategy Group",Grants to local authorities / other establishments within aggregate external funding or aggregate exchequer grant,NOTTINGHAM CITY COUNCIL,4000212499,46845.00
Department for Education,DEPARTMENT FOR EDUCATION,16/07/2015,Grants,"Childcare, Special Educational Needs and Children's Strategy Group",Grants to local authorities / other establishments within aggregate external funding or aggregate exchequer grant,COVENTRY CITY COUNCIL,4000212500,48819.00
Department for Education,DEPARTMENT FOR EDUCATION,16/07/2015,Grants,"Childcare, Special Educational Needs and Children's Strategy Group",Grants to local authorities / other establishments within aggregate external funding or aggregate exchequer grant,SHROPSHIRE COUNCIL,4000212501,45559.00
Department for Education,STANDARDS AND TESTING AGENCY,16/07/2015,Office Solutions,Test Operations Division,Post and courier services,PARCELFORCE WORLDWIDE,4000212502,121968.50
Department for Education,DEPARTMENT FOR EDUCATION,16/07/2015,Grants,"Childcare, Special Educational Needs and Children's Strategy Group",Grants to local authorities / other establishments within aggregate external funding or aggregate exchequer grant,EAST SUSSEX COUNTY COUNCIL,4000212505,69721.00
Department for Education,DEPARTMENT FOR EDUCATION,16/07/2015,Grants,"Childcare, Special Educational Needs and Children's Strategy Group",Grants to local authorities / other establishments within aggregate external funding or aggregate exchequer grant,TELFORD & WREKIN COUNCIL,4000212508,26101.00
Department for Education,DEPARTMENT FOR EDUCATION,16/07/2015,Grants,"Childcare, Special Educational Needs and Children's Strategy Group",Grants to local authorities / other establishments within aggregate external funding or aggregate exchequer grant,CORNWALL COUNCIL,4000212509,79850.00
Department for Education,DEPARTMENT FOR EDUCATION,16/07/2015,Grants,"Childcare, Special Educational Needs and Children's Strategy Group",Grants to local authorities / other establishments within aggregate external funding or aggregate exchequer grant,CUMBRIA COUNTY COUNCIL,4000212510,70646.00
Department for Education,DEPARTMENT FOR EDUCATION,16/07/2015,Grants,"Childcare, Special Educational Needs and Children's Strategy Group",Grants to local authorities / other establishments within aggregate external funding or aggregate exchequer grant,GLOUCESTERSHIRE COUNTY COUNCIL,4000212511,82870.00
Department for Education,DEPARTMENT FOR EDUCATION,16/07/2015,Grants,"Childcare, Special Educational Needs and Children's Strategy Group",Grants to local authorities / other establishments within aggregate external funding or aggregate exchequer grant,HERTFORDSHIRE COUNTY COUNCIL,4000212514,164645.00
Department for Education,DEPARTMENT FOR EDUCATION,16/07/2015,Grants,Academies Delivery Group,Grants to third sector organisations / not for profit organisations and other businesses,ST GREGORY RC HIGH SCHOOL,4000212515,25000.00
Department for Education,DEPARTMENT FOR EDUCATION,16/07/2015,Grants,"Childcare, Special Educational Needs and Children's Strategy Group",Grants to local authorities / other establishments within aggregate external funding or aggregate exchequer grant,LONDON BOROUGH OF HACKNEY,4000212517,52827.00
Department for Education,DEPARTMENT FOR EDUCATION,16/07/2015,Grants,"Childcare, Special Educational Needs and Children's Strategy Group",Grants to local authorities / other establishments within aggregate external funding or aggregate exchequer grant,LINCOLNSHIRE COUNTY COUNCIL,4000212519,105873.00
Department for Education,DEPARTMENT FOR EDUCATION,16/07/2015,Grants,"Childcare, Special Educational Needs and Children's Strategy Group",Grants to local authorities / other establishments within aggregate external funding or aggregate exchequer grant,NORTHAMPTONSHIRE COUNTY COUNCIL,4000212520,105216.00
Department for Education,DEPARTMENT FOR EDUCATION,16/07/2015,Grants,"Childcare, Special Educational Needs and Children's Strategy Group",Grants to local authorities / other establishments within aggregate external funding or aggregate exchequer grant,NORTHUMBERLAND COUNTY COUNCIL,4000212521,44766.00
Department for Education,DEPARTMENT FOR EDUCATION,16/07/2015,Grants,"Childcare, Special Educational Needs and Children's Strategy Group",Grants to local authorities / other establishments within aggregate external funding or aggregate exchequer grant,OXFORDSHIRE COUNTY COUNCIL,4000212522,93762.00
Department for Education,DEPARTMENT FOR EDUCATION,16/07/2015,Grants,"Childcare, Special Educational Needs and Children's Strategy Group",Grants to local authorities / other establishments within aggregate external funding or aggregate exchequer grant,ROTHERHAM MBC,4000212526,37622.00
Department for Education,DEPARTMENT FOR EDUCATION,16/07/2015,Grants,"Childcare, Special Educational Needs and Children's Strategy Group",Grants to local authorities / other establishments within aggregate external funding or aggregate exchequer grant,TRAFFORD MB COUNCIL,4000212527,32425.00
Department for Education,DEPARTMENT FOR EDUCATION,16/07/2015,Grants,"Childcare, Special Educational Needs and Children's Strategy Group",Grants to local authorities / other establishments within aggregate external funding or aggregate exchequer grant,BRISTOL CITY COUNCIL,4000212528,61279.00
Department for Education,DEPARTMENT FOR EDUCATION,16/07/2015,Grants,"Childcare, Special Educational Needs and Children's Strategy Group",Grants to local authorities / other establishments within aggregate external funding or aggregate exchequer grant,NORTH SOMERSET COUNCIL,4000212529,27820.00
Department for Education,DEPARTMENT FOR EDUCATION,16/07/2015,Grants,"Childcare, Special Educational Needs and Children's Strategy Group",Grants to local authorities / other establishments within aggregate external funding or aggregate exchequer grant,SOUTH GLOUCEST,4000212530,35985.00
Department for Education,DEPARTMENT FOR EDUCATION,16/07/2015,Grants,"Childcare, Special Educational Needs and Children's Strategy Group",Grants to local authorities / other establishments within aggregate external funding or aggregate exchequer grant,SOMERSET COUNTY COUNCIL,4000212532,77616.00
Department for Education,DEPARTMENT FOR EDUCATION,16/07/2015,Grants,"Childcare, Special Educational Needs and Children's Strategy Group",Grants to local authorities / other establishments within aggregate external funding or aggregate exchequer grant,SOLIHULL MBC,4000212533,27664.00
Department for Education,DEPARTMENT FOR EDUCATION,16/07/2015,Grants,"Childcare, Special Educational Needs and Children's Strategy Group",Grants to local authorities / other establishments within aggregate external funding or aggregate exchequer grant,NORFOLK COUNTY COUNCIL,4000212534,123652.00
Department for Education,DEPARTMENT FOR EDUCATION,16/07/2015,Grants,Academies Delivery Group,Grants to third sector organisations / not for profit organisations and other businesses,SHAVINGTON HIGH SCHOOL,4000212540,25000.00
Department for Education,DEPARTMENT FOR EDUCATION,16/07/2015,Grants,"Childcare, Special Educational Needs and Children's Strategy Group",Grants to local authorities / other establishments within aggregate external funding or aggregate exchequer grant,LEICESTER CITY COUNCIL,4000212541,56705.00
Department for Education,DEPARTMENT FOR EDUCATION,16/07/2015,Grants,"Childcare, Special Educational Needs and Children's Strategy Group",Grants to local authorities / other establishments within aggregate external funding or aggregate exchequer grant,STOCKTON ON TEES,4000212545,27741.00
Department for Education,DEPARTMENT FOR EDUCATION,16/07/2015,Grants,"Childcare, Special Educational Needs and Children's Strategy Group",Grants to local authorities / other establishments within aggregate external funding or aggregate exchequer grant,KINGSTON UPON HULL COUNCIL,4000212546,39281.00
Department for Education,DEPARTMENT FOR EDUCATION,16/07/2015,Grants,"Childcare, Special Educational Needs and Children's Strategy Group",Grants to local authorities / other establishments within aggregate external funding or aggregate exchequer grant,EAST RIDING OF YORKSHIRE,4000212547,45554.00
Department for Education,DEPARTMENT FOR EDUCATION,16/07/2015,Grants,"Childcare, Special Educational Needs and Children's Strategy Group",Grants to local authorities / other establishments within aggregate external funding or aggregate exchequer grant,BOLTON MBC,4000212548,44414.00
Department for Education,DEPARTMENT FOR EDUCATION,16/07/2015,Grants,"Childcare, Special Educational Needs and Children's Strategy Group",Grants to local authorities / other establishments within aggregate external funding or aggregate exchequer grant,SURREY COUNTY COUNCIL,4000212549,159426.00
Department for Education,DEPARTMENT FOR EDUCATION,16/07/2015,Grants,"Childcare, Special Educational Needs and Children's Strategy Group",Grants to local authorities / other establishments within aggregate external funding or aggregate exchequer grant,WARWICKSHIRE COUNTY COUNCIL,4000212550,74149.00
Department for Education,DEPARTMENT FOR EDUCATION,16/07/2015,Grants,"Childcare, Special Educational Needs and Children's Strategy Group",Grants to local authorities / other establishments within aggregate external funding or aggregate exchequer grant,WEST SUSSEX COUNTY COUNCIL,4000212551,105377.00
Department for Education,DEPARTMENT FOR EDUCATION,16/07/2015,Grants,Office of the Schools Commissioner Group,Grants to third sector organisations / not for profit organisations and other businesses,WIRRAL ACADEMY TRUST,4000212552,75000.00
Department for Education,DEPARTMENT FOR EDUCATION,16/07/2015,Grants,Academies Delivery Group,Grants to third sector organisations / not for profit organisations and other businesses,BOLTON MUSLIM GIRLS SCHOOL,4000212554,25000.00
Department for Education,DEPARTMENT FOR EDUCATION,16/07/2015,Grants,"Childcare, Special Educational Needs and Children's Strategy Group",Grants to local authorities / other establishments within aggregate external funding or aggregate exchequer grant,NORTH LINCOLNSHIRE COUNCIL,4000212557,25027.00
Department for Education,DEPARTMENT FOR EDUCATION,16/07/2015,Grants,"Childcare, Special Educational Needs and Children's Strategy Group",Grants to local authorities / other establishments within aggregate external funding or aggregate exchequer grant,NORTH YORKSHIRE COUNTY COUNCIL,4000212558,90440.00
Department for Education,DEPARTMENT FOR EDUCATION,16/07/2015,Grants,"Childcare, Special Educational Needs and Children's Strategy Group",Grants to local authorities / other establishments within aggregate external funding or aggregate exchequer grant,LONDON BOROUGH OF LAMBETH COUNCIL,4000212561,53533.00
Department for Education,DEPARTMENT FOR EDUCATION,16/07/2015,Grants,"Childcare, Special Educational Needs and Children's Strategy Group",Grants to local authorities / other establishments within aggregate external funding or aggregate exchequer grant,LONDON BOROUGH OF SOUTHWARK COUNCIL,4000212563,53613.00
Department for Education,DEPARTMENT FOR EDUCATION,16/07/2015,Grants,"Childcare, Special Educational Needs and Children's Strategy Group",Grants to local authorities / other establishments within aggregate external funding or aggregate exchequer grant,LONDON BOROUGH OF HAMMERSMITH & FULHAM COUNCIL,4000212564,27167.00
Department for Education,DEPARTMENT FOR EDUCATION,16/07/2015,Grants,"Childcare, Special Educational Needs and Children's Strategy Group",Grants to local authorities / other establishments within aggregate external funding or aggregate exchequer grant,LUTON BOROUGH COUNCIL,4000212571,37362.00
Department for Education,DEPARTMENT FOR EDUCATION,16/07/2015,Grants,"Childcare, Special Educational Needs and Children's Strategy Group",Grants to local authorities / other establishments within aggregate external funding or aggregate exchequer grant,BUCKINGHAMSHIRE COUNTY COUNCIL,4000212572,77283.00
Department for Education,DEPARTMENT FOR EDUCATION,16/07/2015,Grants,"Childcare, Special Educational Needs and Children's Strategy Group",Grants to local authorities / other establishments within aggregate external funding or aggregate exchequer grant,MILTON KEYNES COUNCIL,4000212573,43609.00
Department for Education,DEPARTMENT FOR EDUCATION,16/07/2015,Grants,"Childcare, Special Educational Needs and Children's Strategy Group",Grants to local authorities / other establishments within aggregate external funding or aggregate exchequer grant,DERBYSHIRE COUNTY COUNCIL,4000212574,104556.00
Department for Education,DEPARTMENT FOR EDUCATION,16/07/2015,Grants,"Childcare, Special Educational Needs and Children's Strategy Group",Grants to local authorities / other establishments within aggregate external funding or aggregate exchequer grant,DERBY CITY COUNCIL,4000212575,37910.00
Department for Education,DEPARTMENT FOR EDUCATION,16/07/2015,Grants,"Childcare, Special Educational Needs and Children's Strategy Group",Grants to local authorities / other establishments within aggregate external funding or aggregate exchequer grant,LONDON BOROUGH OF GREENWICH,4000212576,53301.00
Department for Education,DEPARTMENT FOR EDUCATION,16/07/2015,Grants,"Childcare, Special Educational Needs and Children's Strategy Group",Grants to local authorities / other establishments within aggregate external funding or aggregate exchequer grant,LONDON BOROUGH OF WANDSWORTH COUNCIL,4000212577,46137.00
Department for Education,DEPARTMENT FOR EDUCATION,16/07/2015,Grants,"Childcare, Special Educational Needs and Children's Strategy Group",Grants to local authorities / other establishments within aggregate external funding or aggregate exchequer grant,LONDON BOROUGH OF CAMDEN,4000212578,36548.00
Department for Education,DEPARTMENT FOR EDUCATION,16/07/2015,Grants,"Childcare, Special Educational Needs and Children's Strategy Group",Grants to local authorities / other establishments within aggregate external funding or aggregate exchequer grant,LONDON BOROUGH OF ISLINGTON COUNCIL,4000212579,33780.00
Department for Education,DEPARTMENT FOR EDUCATION,16/07/2015,Grants,System Reform Group,Grants to third sector organisations / not for profit organisations and other businesses,SCHOOL GOVERNORS ONE STOP SHOP,4000212580,160088.00
Department for Education,DEPARTMENT FOR EDUCATION,16/07/2015,Grants,"Childcare, Special Educational Needs and Children's Strategy Group",Grants to local authorities / other establishments within aggregate external funding or aggregate exchequer grant,CENTRAL BEDFORDSHIRE COUNCIL,4000212581,38407.00
Department for Education,DEPARTMENT FOR EDUCATION,16/07/2015,Grants,"Childcare, Special Educational Needs and Children's Strategy Group",Grants to local authorities / other establishments within aggregate external funding or aggregate exchequer grant,DORSET COUNTY COUNCIL,4000212585,54274.00
Department for Education,DEPARTMENT FOR EDUCATION,16/07/2015,Grants,"Childcare, Special Educational Needs and Children's Strategy Group",Grants to local authorities / other establishments within aggregate external funding or aggregate exchequer grant,DURHAM COUNTY COUNCIL,4000212588,71264.00
Department for Education,DEPARTMENT FOR EDUCATION,16/07/2015,Grants,"Childcare, Special Educational Needs and Children's Strategy Group",Grants to local authorities / other establishments within aggregate external funding or aggregate exchequer grant,LONDON BOROUGH OF TOWER HAMLETS COUNCIL,4000212590,57126.00
Department for Education,DEPARTMENT FOR EDUCATION,16/07/2015,Grants,"Childcare, Special Educational Needs and Children's Strategy Group",Grants to local authorities / other establishments within aggregate external funding or aggregate exchequer grant,WALSALL MBC,4000212592,43211.00
Department for Education,DEPARTMENT FOR EDUCATION,16/07/2015,Grants,"Childcare, Special Educational Needs and Children's Strategy Group",Grants to local authorities / other establishments within aggregate external funding or aggregate exchequer grant,LEEDS CITY COUNCIL,4000212593,104039.00
Department for Education,DEPARTMENT FOR EDUCATION,16/07/2015,Grants,"Childcare, Special Educational Needs and Children's Strategy Group",Grants to local authorities / other establishments within aggregate external funding or aggregate exchequer grant,LONDON BOROUGH OF LEWISHAM,4000212594,54469.00
Department for Education,DEPARTMENT FOR EDUCATION,16/07/2015,Grants,"Childcare, Special Educational Needs and Children's Strategy Group",Grants to local authorities / other establishments within aggregate external funding or aggregate exchequer grant,BRIGHTON & HOVE CITY COUNCIL,4000212595,32163.00
Department for Education,DEPARTMENT FOR EDUCATION,16/07/2015,Grants,"Childcare, Special Educational Needs and Children's Strategy Group",Grants to local authorities / other establishments within aggregate external funding or aggregate exchequer grant,HAMPSHIRE COUNTY COUNCIL,4000212596,180511.00
Department for Education,DEPARTMENT FOR EDUCATION,16/07/2015,Grants,"Childcare, Special Educational Needs and Children's Strategy Group",Grants to local authorities / other establishments within aggregate external funding or aggregate exchequer grant,PORTSMOUTH CITY COUNCIL,4000212597,29097.00
Department for Education,DEPARTMENT FOR EDUCATION,16/07/2015,Grants,"Childcare, Special Educational Needs and Children's Strategy Group",Grants to local authorities / other establishments within aggregate external funding or aggregate exchequer grant,SOUTHAMPTON CITY COUNCIL,4000212598,32942.00
Department for Education,DEPARTMENT FOR EDUCATION,16/07/2015,Grants,"Childcare, Special Educational Needs and Children's Strategy Group",Grants to local authorities / other establishments within aggregate external funding or aggregate exchequer grant,METROPOLITAN BOROUGH OF WIRRAL,4000212599,43749.00
Department for Education,DEPARTMENT FOR EDUCATION,16/07/2015,Grants,"Childcare, Special Educational Needs and Children's Strategy Group",Grants to local authorities / other establishments within aggregate external funding or aggregate exchequer grant,DONCASTER MBC,4000212600,46433.00
Department for Education,DEPARTMENT FOR EDUCATION,16/07/2015,Grants,"Childcare, Special Educational Needs and Children's Strategy Group",Grants to local authorities / other establishments within aggregate external funding or aggregate exchequer grant,SUNDERLAND CITY COUNCIL,4000212601,36857.00
Department for Education,DEPARTMENT FOR EDUCATION,16/07/2015,Grants,"Childcare, Special Educational Needs and Children's Strategy Group",Grants to local authorities / other establishments within aggregate external funding or aggregate exchequer grant,SHEFFIELD CITY COUNCIL,4000212602,76219.00
Department for Education,DEPARTMENT FOR EDUCATION,16/07/2015,Grants,"Childcare, Special Educational Needs and Children's Strategy Group",Grants to local authorities / other establishments within aggregate external funding or aggregate exchequer grant,CITY OF WESTMINSTER,4000212603,33548.00
Department for Education,DEPARTMENT FOR EDUCATION,16/07/2015,Grants,"Childcare, Special Educational Needs and Children's Strategy Group",Grants to local authorities / other establishments within aggregate external funding or aggregate exchequer grant,LEICESTERSHIRE COUNTY COUNCIL,4000212604,85976.00
Department for Education,DEPARTMENT FOR EDUCATION,16/07/2015,Grants,"Childcare, Special Educational Needs and Children's Strategy Group",Grants to local authorities / other establishments within aggregate external funding or aggregate exchequer grant,LONDON BOROUGH OF SUTTON,4000212605,29195.00
Department for Education,DEPARTMENT FOR EDUCATION,16/07/2015,Grants,Children's Services and Departmental Strategy Safeguarding Group,Grants to third sector organisations / not for profit organisations and other businesses,INTERNATIONAL SOCIAL SERVICE OF THE UNITED KINGDOM,4000212606,39483.00
Department for Education,DEPARTMENT FOR EDUCATION,16/07/2015,Grants,"Childcare, Special Educational Needs and Children's Strategy Group",Grants to local authorities / other establishments within aggregate external funding or aggregate exchequer grant,CHESHIRE WEST & CHESTER COUNCIL,4000212607,42612.00
Department for Education,DEPARTMENT FOR EDUCATION,16/07/2015,Grants,"Childcare, Special Educational Needs and Children's Strategy Group",Grants to local authorities / other establishments within aggregate external funding or aggregate exchequer grant,CHESHIRE EAST COUNCIL,4000212608,48087.00
Department for Education,DEPARTMENT FOR EDUCATION,16/07/2015,Grants,"Childcare, Special Educational Needs and Children's Strategy Group",Grants to local authorities / other establishments within aggregate external funding or aggregate exchequer grant,LONDON BOROUGH OF BARKING & DAGENHAM COUNCIL,4000212610,42440.00
Department for Education,DEPARTMENT FOR EDUCATION,16/07/2015,Grants,"Childcare, Special Educational Needs and Children's Strategy Group",Grants to local authorities / other establishments within aggregate external funding or aggregate exchequer grant,LONDON BOROUGH OF BARNET COUNCIL,4000212611,59082.00
Department for Education,DEPARTMENT FOR EDUCATION,16/07/2015,Grants,"Childcare, Special Educational Needs and Children's Strategy Group",Grants to local authorities / other establishments within aggregate external funding or aggregate exchequer grant,LONDON BOROUGH OF BEXLEY COUNCIL,4000212612,35280.00
Department for Education,DEPARTMENT FOR EDUCATION,16/07/2015,Grants,"Childcare, Special Educational Needs and Children's Strategy Group",Grants to local authorities / other establishments within aggregate external funding or aggregate exchequer grant,LONDON BOROUGH OF BRENT,4000212613,54013.00
Department for Education,DEPARTMENT FOR EDUCATION,16/07/2015,Grants,"Childcare, Special Educational Needs and Children's Strategy Group",Grants to local authorities / other establishments within aggregate external funding or aggregate exchequer grant,STAFFORDSHIRE COUNCIL,4000212615,111296.00
Department for Education,DEPARTMENT FOR EDUCATION,16/07/2015,Grants,"Childcare, Special Educational Needs and Children's Strategy Group",Grants to local authorities / other establishments within aggregate external funding or aggregate exchequer grant,STOKE ON TRENT CITY COUNCIL,4000212616,38051.00
Department for Education,DEPARTMENT FOR EDUCATION,16/07/2015,Grants,"Childcare, Special Educational Needs and Children's Strategy Group",Grants to local authorities / other establishments within aggregate external funding or aggregate exchequer grant,WILTSHIRE COUNCIL,4000212617,73070.00
Department for Education,DEPARTMENT FOR EDUCATION,16/07/2015,Grants,"Childcare, Special Educational Needs and Children's Strategy Group",Grants to local authorities / other establishments within aggregate external funding or aggregate exchequer grant,SWINDON BOROUGH COUNCIL,4000212618,30161.00
Department for Education,DEPARTMENT FOR EDUCATION,16/07/2015,Grants,"Childcare, Special Educational Needs and Children's Strategy Group",Grants to local authorities / other establishments within aggregate external funding or aggregate exchequer grant,LONDON BOROUGH OF BROMLEY COUNCIL,4000212619,44205.00
Department for Education,DEPARTMENT FOR EDUCATION,16/07/2015,Grants,"Childcare, Special Educational Needs and Children's Strategy Group",Grants to local authorities / other establishments within aggregate external funding or aggregate exchequer grant,LONDON BOROUGH OF CROYDON COUNCIL,4000212620,63282.00
Department for Education,DEPARTMENT FOR EDUCATION,16/07/2015,Grants,"Childcare, Special Educational Needs and Children's Strategy Group",Grants to local authorities / other establishments within aggregate external funding or aggregate exchequer grant,LONDON BOROUGH OF EALING COUNCIL,4000212621,57580.00
Department for Education,DEPARTMENT FOR EDUCATION,16/07/2015,Grants,"Childcare, Special Educational Needs and Children's Strategy Group",Grants to local authorities / other establishments within aggregate external funding or aggregate exchequer grant,LONDON BOROUGH OF ENFIELD COUNCIL,4000212622,57173.00
Department for Education,DEPARTMENT FOR EDUCATION,16/07/2015,Grants,"Childcare, Special Educational Needs and Children's Strategy Group",Grants to local authorities / other establishments within aggregate external funding or aggregate exchequer grant,LONDON BOROUGH OF HARINGEY,4000212627,44168.00
Department for Education,DEPARTMENT FOR EDUCATION,16/07/2015,Grants,"Childcare, Special Educational Needs and Children's Strategy Group",Grants to local authorities / other establishments within aggregate external funding or aggregate exchequer grant,LONDON BOROUGH OF HARROW COUNCIL,4000212628,37934.00
Department for Education,DEPARTMENT FOR EDUCATION,16/07/2015,Grants,"Childcare, Special Educational Needs and Children's Strategy Group",Grants to local authorities / other establishments within aggregate external funding or aggregate exchequer grant,LONDON BOROUGH OF HAVERING COUNCIL,4000212629,33201.00
Department for Education,DEPARTMENT FOR EDUCATION,16/07/2015,Grants,"Childcare, Special Educational Needs and Children's Strategy Group",Grants to local authorities / other establishments within aggregate external funding or aggregate exchequer grant,LONDON BOROUGH OF HILLINGDON  COUNCIL,4000212630,46741.00
Department for Education,NATIONAL COLLEGE FOR TEACHING AND LEADERSHIP AGENCY,17/07/2015,Grants,Delivery Directorate,Grants to third sector organisations / not for profit organisations and other businesses,EDGE HILL UNIVERSITY,4000212697,37840.00
Department for Education,DEPARTMENT FOR EDUCATION,17/07/2015,Professional Services Consultancy and Contingent Labour,Information Technology Group,Costs related to temporary workers,CAPITA BUSINESS SERVICES LTD,4000212658,11311.70
Department for Education,DEPARTMENT FOR EDUCATION,17/07/2015,Programme costs,Assessment and Curriculum and General Qualifications Group,Funding to deliver policies (excluding consultancy) paid to third parties via a service delivery contract,CFBT EDUCATION TRUST,4000212709,314071.20
Department for Education,DEPARTMENT FOR EDUCATION,17/07/2015,Professional Services Consultancy and Contingent Labour,Information Technology Group,Costs related to temporary workers,CAPITA BUSINESS SERVICES LTD,4000212658,16765.49
Department for Education,DEPARTMENT FOR EDUCATION,17/07/2015,Professional Services Consultancy and Contingent Labour,Information Technology Group,Costs related to temporary workers,CAPITA BUSINESS SERVICES LTD,4000212658,9992.74
Department for Education,DEPARTMENT FOR EDUCATION,17/07/2015,Programme costs,Assessment and Curriculum and General Qualifications Group,Funding to deliver policies (excluding consultancy) paid to third parties via a service delivery contract,TRIBAL EDUCATION LIMITED,4000212717,161932.80
Department for Education,DEPARTMENT FOR EDUCATION,17/07/2015,ICT,Systems and Accountability Group,ICT Services,INSIGHT DIRECT UK LIMITED,4000212650,41858.40
Department for Education,DEPARTMENT FOR EDUCATION,17/07/2015,Grants,"Childcare, Special Educational Needs and Children's Strategy Group",Grants to third sector organisations / not for profit organisations and other businesses,YOUTH ACCESS,4000212737,121261.50
Department for Education,DEPARTMENT FOR EDUCATION,17/07/2015,Professional Services Other,Finance and Commercial Group,"Fees / expenses of professionals, for example to implement advice or changes",RUSSAM GMS LTD,4000212757,7680.00
Department for Education,DEPARTMENT FOR EDUCATION,17/07/2015,Grants,"Childcare, Special Educational Needs and Children's Strategy Group",Grants to third sector organisations / not for profit organisations and other businesses,COUNCIL FOR DISABLED CHILDREN,4000212657,30403.39
Department for Education,DEPARTMENT FOR EDUCATION,17/07/2015,Grants,"Childcare, Special Educational Needs and Children's Strategy Group",Grants to third sector organisations / not for profit organisations and other businesses,FAMILY RIGHTS GROUP LTD,4000212698,81045.00
Department for Education,DEPARTMENT FOR EDUCATION,17/07/2015,Grants,"Childcare, Special Educational Needs and Children's Strategy Group",Grants to third sector organisations / not for profit organisations and other businesses,NASEN,4000212720,66286.17
Department for Education,DEPARTMENT FOR EDUCATION,17/07/2015,Grants,Children's Services and Departmental Strategy Safeguarding Group,Grants to third sector organisations / not for profit organisations and other businesses,NATIONAL CHILDRENS BUREAU,4000212733,117016.57
Department for Education,DEPARTMENT FOR EDUCATION,17/07/2015,Grants,"Childcare, Special Educational Needs and Children's Strategy Group",Grants to third sector organisations / not for profit organisations and other businesses,PRE SCHOOL LEARNING ALLIANCE,4000212750,108454.98
Department for Education,DEPARTMENT FOR EDUCATION,17/07/2015,Grants,Children's Services and Departmental Strategy Safeguarding Group,Grants to third sector organisations / not for profit organisations and other businesses,BEHIND CLOSED DOORS,4000212761,25781.69
Department for Education,DEPARTMENT FOR EDUCATION,17/07/2015,Professional Services Consultancy and Contingent Labour,Information Technology Group,Costs related to temporary workers,RUSSAM GMS LTD,4000212757,960.00
Department for Education,DEPARTMENT FOR EDUCATION,17/07/2015,Professional Services Consultancy and Contingent Labour,Information Technology Group,Costs related to temporary workers,RUSSAM GMS LTD,4000212757,26966.88
Department for Education,DEPARTMENT FOR EDUCATION,17/07/2015,Professional Services Consultancy and Contingent Labour,Information Technology Group,Costs related to temporary workers,RUSSAM GMS LTD,4000212757,13110.00
Department for Education,DEPARTMENT FOR EDUCATION,17/07/2015,Programme costs,Assessment and Curriculum and General Qualifications Group,Funding to deliver policies (excluding consultancy) paid to third parties via a service delivery contract,THE POETRY ARCHIVE,4000212665,46200.00
Department for Education,DEPARTMENT FOR EDUCATION,20/07/2015,ICT,Information Technology Group,Telecoms facilities and services - telecom rentals,BT GLOBAL SERVICES,4000212780,93325.06
Department for Education,DEPARTMENT FOR EDUCATION,20/07/2015,ICT,Information Technology Group,Telecoms facilities and services - telecom rentals,BT GLOBAL SERVICES,4000212780,19858.64
Department for Education,NATIONAL COLLEGE FOR TEACHING AND LEADERSHIP AGENCY,20/07/2015,Professional Services Other,Operations Directorate,"Fees / expenses of professionals, for example to implement advice or changes",NABARRO LLP,4000212773,28823.29
Department for Education,DEPARTMENT FOR EDUCATION,20/07/2015,ICT,Information Technology Group,Networking systems,BT GLOBAL SERVICES,4000212780,53912.58
Department for Education,DEPARTMENT FOR EDUCATION,20/07/2015,ICT,Information Technology Group,ICT Services - hardware maintenance and support,BT GLOBAL SERVICES,4000212780,172889.15
Department for Education,DEPARTMENT FOR EDUCATION,20/07/2015,Programme costs,Closing the Gap Group,"This payment was for a survey commissioned by the Department for Education for the UK Commission for Employment and Skills (UKCES), a partner organisation of the Department for Business, Innovation and Skills (BIS).",BIS DEPARTMENT FOR BUSINESS INNOVATION & SKILLS,2001141,250000.00
Department for Education,DEPARTMENT FOR EDUCATION,20/07/2015,Grants,Free School Group,Grants to third sector organisations / not for profit organisations and other businesses,THE PARTNERSHIP LEARNING TRUST,4000212789,30000.00
Department for Education,DEPARTMENT FOR EDUCATION,20/07/2015,Grants,Free School Group,Grants to third sector organisations / not for profit organisations and other businesses,RON DEARING UTC TRUST LTD,4000212799,30000.00
Department for Education,DEPARTMENT FOR EDUCATION,20/07/2015,Grants,Closing the Gap Group,Grants to third sector organisations / not for profit organisations and other businesses,CADET VOCATIONAL QUALIFICATIONS ORGANISATION LTD,4000212806,68754.44
Department for Education,DEPARTMENT FOR EDUCATION,20/07/2015,Grants,Academies Delivery Group,Grants to third sector organisations / not for profit organisations and other businesses,UNIVERSITY OF BRIGHTON ACADEMIES TRUST,4000212807,75000.00
Department for Education,DEPARTMENT FOR EDUCATION,20/07/2015,Grants,Academies Delivery Group,Capital grants paid to an educational establishment,UNIVERSITY OF BRIGHTON ACADEMIES TRUST,4000212807,80000.00
Department for Education,DEPARTMENT FOR EDUCATION,20/07/2015,Grants,Free School Group,Grants to third sector organisations / not for profit organisations and other businesses,ELMRIDGE PRIMARY SCHOOL TS ACCOUNT,4000212810,66000.00
Department for Education,DEPARTMENT FOR EDUCATION,20/07/2015,Grants,Academies Delivery Group,Grants to third sector organisations / not for profit organisations and other businesses,WINDSOR HIGH SCHOOL & SIXTH FORM,4000212812,50000.00
Department for Education,DEPARTMENT FOR EDUCATION,20/07/2015,Grants,Academies Delivery Group,Grants to third sector organisations / not for profit organisations and other businesses,NOTTINGHAM RC DIOCESE EDUCATION SERVICE TRUST,4000212823,115000.00
Department for Education,DEPARTMENT FOR EDUCATION,20/07/2015,Facilities,Property Asset Management Group,Rent,UNIVERSITY OF NOTTINGHAM,4000212825,36583.50
Department for Education,DEPARTMENT FOR EDUCATION,21/07/2015,Programme costs,Assessment and Curriculum and General Qualifications Group,Funding to deliver policies (excluding consultancy) paid to third parties via a service delivery contract,MATHEMATICS IN EDUCATION & INDUSTRY,4000212916,336000.00
Department for Education,DEPARTMENT FOR EDUCATION,21/07/2015,Programme costs,Assessment and Curriculum and General Qualifications Group,Funding to deliver policies (excluding consultancy) paid to third parties via a service delivery contract,MYSCIENCE CO LTD,4000212913,109920.41
Department for Education,DEPARTMENT FOR EDUCATION,21/07/2015,Grants,Families Group,Grants to third sector organisations / not for profit organisations and other businesses,CORNERSTONE TRAINING & SUPPORT LTD,4000212844,30811.00
Department for Education,DEPARTMENT FOR EDUCATION,21/07/2015,Grants,Children in Care Division,Grants to third sector organisations / not for profit organisations and other businesses,ADOPTION UK,4000212849,61222.00
Department for Education,DEPARTMENT FOR EDUCATION,21/07/2015,Grants,Children in Care Division,Grants to third sector organisations / not for profit organisations and other businesses,CORAM,4000212915,35089.27
Department for Education,DEPARTMENT FOR EDUCATION,21/07/2015,Grants,"Childcare, Special Educational Needs and Children's Strategy Group",Grants to third sector organisations / not for profit organisations and other businesses,NATIONAL CHILDMINDING ASSOC,4000212918,70836.54
Department for Education,DEPARTMENT FOR EDUCATION,21/07/2015,Grants,Children in Care Division,Grants to third sector organisations / not for profit organisations and other businesses,AFTER ADOPTION,4000212924,31336.92
Department for Education,DEPARTMENT FOR EDUCATION,21/07/2015,Grants,Children's Services and Departmental Strategy Safeguarding Group,Grants to third sector organisations / not for profit organisations and other businesses,ARK UK PROGRAMMES,4000212930,83096.00
Department for Education,DEPARTMENT FOR EDUCATION,21/07/2015,Grants,Families Group,Grants to third sector organisations / not for profit organisations and other businesses,COUNCIL FOR DISABLED CHILDREN,4000212944,104218.16
Department for Education,DEPARTMENT FOR EDUCATION,21/07/2015,Programme costs,Children in Care Division,Funding to deliver policies (excluding consultancy) paid to third parties via a service delivery contract,ACTION FOR CHILDREN,4000212917,45607.85
Department for Education,DEPARTMENT FOR EDUCATION,21/07/2015,Grants,Closing the Gap Group,Grants to third sector organisations / not for profit organisations and other businesses,THE CHALLENGE NETWORK,4000212845,70372.00
Department for Education,DEPARTMENT FOR EDUCATION,21/07/2015,Grants,Closing the Gap Group,Grants to third sector organisations / not for profit organisations and other businesses,PREMIER RUGBY LTD,4000212846,54456.58
Department for Education,NATIONAL COLLEGE FOR TEACHING AND LEADERSHIP AGENCY,22/07/2015,Communications,Operations Directorate,"Publicity, advertising, media advertising campaigns (excluding recruitment adverts)",INFERNO LTD,4000212967,24529.00
Department for Education,DEPARTMENT FOR EDUCATION,22/07/2015,ICT,Information Technology Group,ICT Services - hardware maintenance and support,BT GLOBAL SERVICES,4000212998,13284.14
Department for Education,DEPARTMENT FOR EDUCATION,22/07/2015,ICT,Information Technology Group,ICT Services - hardware maintenance and support,BT GLOBAL SERVICES,4000212998,59081.78
Department for Education,DEPARTMENT FOR EDUCATION,22/07/2015,Programme costs,Closing the Gap Group,Funding to deliver policies (excluding consultancy) paid to third parties via a service delivery contract,CHILDRENS FOOD TRUST,4000212969,467455.43
Department for Education,DEPARTMENT FOR EDUCATION,22/07/2015,Programme costs,Strategic Analysis and Research and Policy Impact Group,Funding to deliver policies (excluding consultancy) paid to third parties via a service delivery contract,4 CHILDREN EARLY INTERVENTION,4000212965,312498.00
Department for Education,DEPARTMENT FOR EDUCATION,22/07/2015,Programme costs,Children's Services and Departmental Strategy Safeguarding Group,Funding to deliver policies (excluding consultancy) paid to third parties via a service delivery contract,KPMG LLP,4000212990,277221.47
Department for Education,DEPARTMENT FOR EDUCATION,22/07/2015,Grants,Free School Group,Grants to third sector organisations / not for profit organisations and other businesses,STOKE DAMEREL COMMUNITY COLLEGE,4000212952,30000.00
Department for Education,DEPARTMENT FOR EDUCATION,22/07/2015,Grants,Families Group,Grants to third sector organisations / not for profit organisations and other businesses,UNIVERSITY OF KENT,4000212953,41089.53
Department for Education,DEPARTMENT FOR EDUCATION,22/07/2015,Grants,Children's Services and Departmental Strategy Safeguarding Group,Grants to third sector organisations / not for profit organisations and other businesses,NWG NETWORK,4000212964,41570.06
Department for Education,DEPARTMENT FOR EDUCATION,22/07/2015,Grants,Families Group,Grants to third sector organisations / not for profit organisations and other businesses,SAFE FAMILIES FOR CHILDREN,4000212974,122242.45
Department for Education,DEPARTMENT FOR EDUCATION,22/07/2015,Grants,Children's Services and Departmental Strategy Safeguarding Group,Grants to third sector organisations / not for profit organisations and other businesses,DONCASTER CHILDRENS TRUST,4000212977,119972.00
Department for Education,DEPARTMENT FOR EDUCATION,22/07/2015,Grants,Academies Delivery Group,Grants to third sector organisations / not for profit organisations and other businesses,BECKFOOT & HAZELBECK TRUST,4000212978,62500.00
Department for Education,DEPARTMENT FOR EDUCATION,22/07/2015,Grants,Academies Delivery Group,Grants to third sector organisations / not for profit organisations and other businesses,EAST ARDSLEY PRIMARY SCHOOL,4000212981,25000.00
Department for Education,DEPARTMENT FOR EDUCATION,22/07/2015,Grants,Academies Delivery Group,Grants to third sector organisations / not for profit organisations and other businesses,FILTON AVENUE JUINIOR SCHOOL,4000212985,25000.00
Department for Education,DEPARTMENT FOR EDUCATION,22/07/2015,Grants,Free School Group,Grants to third sector organisations / not for profit organisations and other businesses,GUILDFORD UTC,4000212986,60000.00
Department for Education,DEPARTMENT FOR EDUCATION,22/07/2015,Miscellaneous Expenditure,Finance and Commercial Group,Property claim paid out to an academy trust by Gallagher Bassett on behalf of the Department as part of the Department's Risk Protection Arrangement (RPA).,N/A � Risk Protection Arrangement (RPA) member,005921-000036-RC-01,39451.00
Department for Education,DEPARTMENT FOR EDUCATION,23/07/2015,Programme costs,Teachers and Teaching Group,Funding to deliver policies (excluding consultancy) paid to third parties via a service delivery contract,CAPITA LIFE & PENSIONS SERVICES LTD,4000213047,1435875.13
Department for Education,DEPARTMENT FOR EDUCATION,23/07/2015,ICT,Information Technology Group,ICT Services,EDUSERV,4000213034,47362.81
Department for Education,DEPARTMENT FOR EDUCATION,23/07/2015,Facilities,Property Asset Management Group,Property management,MACE LTD,4000213009,244097.78
Department for Education,DEPARTMENT FOR EDUCATION,23/07/2015,Personnel Related,Human Resources Group,Childcare expenses paid to staff,FIDELITI LTD,4000213000,90791.13
Department for Education,DEPARTMENT FOR EDUCATION,23/07/2015,Personnel Related,Human Resources Group,Childcare services provided for staff including the management fee and subsidy costs,FIDELITI LTD,4000213000,364.62
Department for Education,DEPARTMENT FOR EDUCATION,23/07/2015,Professional Services Consultancy and Contingent Labour,Finance and Commercial Group,"Advisory services including fees, travel and expenses",DELOITTE LLP,4000213007,24772.00
Department for Education,DEPARTMENT FOR EDUCATION,23/07/2015,Energy and Fuels,Property Asset Management Group,Electricity supply,EDF ENERGY LTD,4000213043,127861.60
Department for Education,DEPARTMENT FOR EDUCATION,23/07/2015,Programme costs,"Childcare, Special Educational Needs and Children's Strategy Group",Funding to deliver policies (excluding consultancy) paid to third parties via a service delivery contract,RELATE,4000213031,27218.58
Department for Education,DEPARTMENT FOR EDUCATION,23/07/2015,Programme costs,Teachers and Teaching Group,Funding to deliver policies (excluding consultancy) paid to third parties via a service delivery contract,GOVERNMENT ACTUARYS DEPARTMENT GAD,4000213027,25739.62
Department for Education,STANDARDS AND TESTING AGENCY,24/07/2015,Professional Services Other,Test Development Division,"Fees / expenses of professionals, for example to implement advice or changes",CIVICA UK LTD STA,1001700,31305.81
Department for Education,NATIONAL COLLEGE FOR TEACHING AND LEADERSHIP AGENCY,24/07/2015,Grants,Operations Directorate,Grants to third sector organisations / not for profit organisations and other businesses,BISHOP GROSSETESTE COLLEGE,4000213138,340100.04
Department for Education,NATIONAL COLLEGE FOR TEACHING AND LEADERSHIP AGENCY,24/07/2015,Grants,Operations Directorate,Current grant funding to other government departments for DfE's contribution to jointly funded programmes ,BIS DEPARTMENT FOR BUSINESS INNOVATION & SKILLS,4000213209,280090.00
Department for Education,NATIONAL COLLEGE FOR TEACHING AND LEADERSHIP AGENCY,24/07/2015,Grants,Delivery Directorate,Grants to third sector organisations / not for profit organisations and other businesses,THE MILESTONE SCHOOL,4000213066,60000.00
Department for Education,NATIONAL COLLEGE FOR TEACHING AND LEADERSHIP AGENCY,24/07/2015,Grants,Delivery Directorate,Grants to third sector organisations / not for profit organisations and other businesses,REIGATE SCHOOL,4000213073,60000.00
Department for Education,NATIONAL COLLEGE FOR TEACHING AND LEADERSHIP AGENCY,24/07/2015,Grants,Delivery Directorate,Grants to third sector organisations / not for profit organisations and other businesses,CHARLES DICKENS PRIMARY SCHOOL,4000213080,60000.00
Department for Education,NATIONAL COLLEGE FOR TEACHING AND LEADERSHIP AGENCY,24/07/2015,Grants,Delivery Directorate,Grants to third sector organisations / not for profit organisations and other businesses,ROWAN PARK SCHOOL,4000213104,60000.00
Department for Education,NATIONAL COLLEGE FOR TEACHING AND LEADERSHIP AGENCY,24/07/2015,Grants,Delivery Directorate,Grants to third sector organisations / not for profit organisations and other businesses,HAMPDEN WAY NURSERY SCHOOL,4000213106,60000.00
Department for Education,NATIONAL COLLEGE FOR TEACHING AND LEADERSHIP AGENCY,24/07/2015,Grants,Delivery Directorate,Grants to third sector organisations / not for profit organisations and other businesses,ST NICHOLAS CE PRIMARY,4000213107,60000.00
Department for Education,NATIONAL COLLEGE FOR TEACHING AND LEADERSHIP AGENCY,24/07/2015,Grants,Delivery Directorate,Grants to third sector organisations / not for profit organisations and other businesses,NEW COLLEGE PONTEFRACT,4000213108,60000.00
Department for Education,NATIONAL COLLEGE FOR TEACHING AND LEADERSHIP AGENCY,24/07/2015,Grants,Delivery Directorate,Grants to third sector organisations / not for profit organisations and other businesses,ST ANTHONYS ROMAN CATHOLIC PRIMARY SCHOOL,4000213115,60000.00
Department for Education,NATIONAL COLLEGE FOR TEACHING AND LEADERSHIP AGENCY,24/07/2015,Grants,Delivery Directorate,Grants to third sector organisations / not for profit organisations and other businesses,ACE CENTRE NURSERY SCHOOL,4000213116,60000.00
Department for Education,NATIONAL COLLEGE FOR TEACHING AND LEADERSHIP AGENCY,24/07/2015,Grants,Delivery Directorate,Grants to third sector organisations / not for profit organisations and other businesses,GRANDPONT NURSERY SCHOOL,4000213117,60000.00
Department for Education,NATIONAL COLLEGE FOR TEACHING AND LEADERSHIP AGENCY,24/07/2015,Grants,Delivery Directorate,Grants to third sector organisations / not for profit organisations and other businesses,OUR LADYS BISHOP ETON SCHOOL,4000213118,60000.00
Department for Education,NATIONAL COLLEGE FOR TEACHING AND LEADERSHIP AGENCY,24/07/2015,Grants,Delivery Directorate,Grants to third sector organisations / not for profit organisations and other businesses,MIDDLEFIELD PRIMARY ACADEMY,4000213134,60000.00
Department for Education,NATIONAL COLLEGE FOR TEACHING AND LEADERSHIP AGENCY,24/07/2015,Grants,Delivery Directorate,Grants to third sector organisations / not for profit organisations and other businesses,ST HUBERTS PRIMARY SCHOOL,4000213135,60000.00
Department for Education,NATIONAL COLLEGE FOR TEACHING AND LEADERSHIP AGENCY,24/07/2015,Grants,Delivery Directorate,Grants to third sector organisations / not for profit organisations and other businesses,SHERINGHAM NURSERY SCHOOL & CHILDRENS CENTRE,4000213136,60000.00
Department for Education,NATIONAL COLLEGE FOR TEACHING AND LEADERSHIP AGENCY,24/07/2015,Grants,Delivery Directorate,Grants to third sector organisations / not for profit organisations and other businesses,HITCHIN GIRLS SCHOOL,4000213155,60000.00
Department for Education,NATIONAL COLLEGE FOR TEACHING AND LEADERSHIP AGENCY,24/07/2015,Grants,Delivery Directorate,Grants to third sector organisations / not for profit organisations and other businesses,BECKFOOT SCHOOL,4000213167,60000.00
Department for Education,NATIONAL COLLEGE FOR TEACHING AND LEADERSHIP AGENCY,24/07/2015,Grants,Delivery Directorate,Grants to third sector organisations / not for profit organisations and other businesses,ARCHBISHOP HOLGATE SCHOOL TS ACCOUNT,4000213081,50000.00
Department for Education,NATIONAL COLLEGE FOR TEACHING AND LEADERSHIP AGENCY,24/07/2015,Grants,Delivery Directorate,Grants to third sector organisations / not for profit organisations and other businesses,DACRE BRAITHWAITE COE SCHOOL,4000213094,50000.00
Department for Education,NATIONAL COLLEGE FOR TEACHING AND LEADERSHIP AGENCY,24/07/2015,Grants,Delivery Directorate,Grants to third sector organisations / not for profit organisations and other businesses,THE DUSTON SCHOOL,4000213162,50000.00
Department for Education,NATIONAL COLLEGE FOR TEACHING AND LEADERSHIP AGENCY,24/07/2015,Grants,Delivery Directorate,Grants to third sector organisations / not for profit organisations and other businesses,THE ARNEWOOD SCHOOL,4000213164,50000.00
Department for Education,NATIONAL COLLEGE FOR TEACHING AND LEADERSHIP AGENCY,24/07/2015,Grants,Delivery Directorate,Grants to third sector organisations / not for profit organisations and other businesses,MARLING SCHOOL,4000213177,50000.00
Department for Education,NATIONAL COLLEGE FOR TEACHING AND LEADERSHIP AGENCY,24/07/2015,Grants,Delivery Directorate,Grants to third sector organisations / not for profit organisations and other businesses,SOUTH HUNSLEY SCHOOL,4000213180,50000.00
Department for Education,NATIONAL COLLEGE FOR TEACHING AND LEADERSHIP AGENCY,24/07/2015,Grants,Delivery Directorate,Grants to third sector organisations / not for profit organisations and other businesses,IFIELD SCHOOL,4000213235,50000.00
Department for Education,NATIONAL COLLEGE FOR TEACHING AND LEADERSHIP AGENCY,24/07/2015,Grants,Delivery Directorate,Grants to third sector organisations / not for profit organisations and other businesses,ALL SAINTS CATHOLIC SCHOOL AND TECHNOLOGY COLLEGE,4000213086,40000.00
Department for Education,NATIONAL COLLEGE FOR TEACHING AND LEADERSHIP AGENCY,24/07/2015,Grants,Delivery Directorate,Grants to third sector organisations / not for profit organisations and other businesses,TOLLGATE PRIMARY SCHOOL,4000213173,40000.00
Department for Education,NATIONAL COLLEGE FOR TEACHING AND LEADERSHIP AGENCY,24/07/2015,Grants,Delivery Directorate,Grants to third sector organisations / not for profit organisations and other businesses,THE EARLS HIGH SCHOOL TS ACCOUNT,4000213219,40000.00
Department for Education,NATIONAL COLLEGE FOR TEACHING AND LEADERSHIP AGENCY,24/07/2015,Grants,Delivery Directorate,Grants to third sector organisations / not for profit organisations and other businesses,BLEAK HILL PRIMARY SCHOOL TS ACCOUNT,4000213220,40000.00
Department for Education,NATIONAL COLLEGE FOR TEACHING AND LEADERSHIP AGENCY,24/07/2015,Grants,Delivery Directorate,Grants to third sector organisations / not for profit organisations and other businesses,BOTTISHAM VILLAGE COLLEGE TS ACCOUNT,4000213222,40000.00
Department for Education,NATIONAL COLLEGE FOR TEACHING AND LEADERSHIP AGENCY,24/07/2015,Grants,Delivery Directorate,Grants to third sector organisations / not for profit organisations and other businesses,BARROW CEVCP SCHOOL TS ACCOUNT,4000213223,40000.00
Department for Education,NATIONAL COLLEGE FOR TEACHING AND LEADERSHIP AGENCY,24/07/2015,Grants,Delivery Directorate,Grants to third sector organisations / not for profit organisations and other businesses,BELGRAVE ST BARTHOLOMEWS ACADEMY TS ACCOUNT,4000213233,37125.00
Department for Education,DEPARTMENT FOR EDUCATION,24/07/2015,ICT,Children in Care Division,ICT Services,CAPGEMINI UK PLC,4000213064,25966.02
Department for Education,DEPARTMENT FOR EDUCATION,24/07/2015,ICT,Systems and Accountability Group,ICT Services,CAPGEMINI UK PLC,4000213064,118219.52
Department for Education,DEPARTMENT FOR EDUCATION,24/07/2015,ICT,Closing the Gap Group,ICT Services,INSIGHT DIRECT UK LTD,4000213190,35034.96
Department for Education,DEPARTMENT FOR EDUCATION,24/07/2015,Grants,"Childcare, Special Educational Needs and Children's Strategy Group",Grants to third sector organisations / not for profit organisations and other businesses,METRO CHARITY,4000213120,66117.53
Department for Education,DEPARTMENT FOR EDUCATION,24/07/2015,Facilities,Property Asset Management Group,"Building maintenance and repair, including repainting, replacing flooring, etc.",INTERSERVE FACILITIES MANAGEMENT LTD,4000213083,113122.36
Department for Education,DEPARTMENT FOR EDUCATION,24/07/2015,Grants,"Childcare, Special Educational Needs and Children's Strategy Group",Current grants to local authorities,KENT COUNTY COUNCIL,4000213101,73166.65
Department for Education,DEPARTMENT FOR EDUCATION,24/07/2015,Grants,"Childcare, Special Educational Needs and Children's Strategy Group",Grants to third sector organisations / not for profit organisations and other businesses,THE ANNA FREUD CENTRE,4000213111,71271.00
Department for Education,DEPARTMENT FOR EDUCATION,24/07/2015,Grants,Children in Care Division,Grants to third sector organisations / not for profit organisations and other businesses,CONSORTIUM OF VOLUNTARY ADOPTION AGENCIES UK LTD,4000213150,531250.00
Department for Education,NATIONAL COLLEGE FOR TEACHING AND LEADERSHIP AGENCY,24/07/2015,Grants,Delivery Directorate,Grants to third sector organisations / not for profit organisations and other businesses,REIGATE SCHOOL,4000213073,6000.00
Department for Education,NATIONAL COLLEGE FOR TEACHING AND LEADERSHIP AGENCY,24/07/2015,Grants,Delivery Directorate,Grants to third sector organisations / not for profit organisations and other businesses,ARCHBISHOP HOLGATE SCHOOL TS ACCOUNT,4000213081,6000.00
Department for Education,NATIONAL COLLEGE FOR TEACHING AND LEADERSHIP AGENCY,24/07/2015,Grants,Delivery Directorate,Grants to third sector organisations / not for profit organisations and other businesses,ALL SAINTS CATHOLIC SCHOOL AND TECHNOLOGY COLLEGE,4000213086,6000.00
Department for Education,NATIONAL COLLEGE FOR TEACHING AND LEADERSHIP AGENCY,24/07/2015,Grants,Delivery Directorate,Grants to third sector organisations / not for profit organisations and other businesses,DACRE BRAITHWAITE COE SCHOOL,4000213094,6000.00
Department for Education,DEPARTMENT FOR EDUCATION,24/07/2015,Grants,"Childcare, Special Educational Needs and Children's Strategy Group",Grants to third sector organisations / not for profit organisations and other businesses,NATIONAL DAY NURSERIES ASSOCIATION,4000213175,29116.52
Department for Education,DEPARTMENT FOR EDUCATION,24/07/2015,Grants,"Childcare, Special Educational Needs and Children's Strategy Group",Grants to third sector organisations / not for profit organisations and other businesses,INSTITUTE OF WELLBEING LTD,4000213176,37193.81
Department for Education,NATIONAL COLLEGE FOR TEACHING AND LEADERSHIP AGENCY,24/07/2015,Grants,Delivery Directorate,Grants to third sector organisations / not for profit organisations and other businesses,NEW COLLEGE PONTEFRACT,4000213108,6000.00
Department for Education,NATIONAL COLLEGE FOR TEACHING AND LEADERSHIP AGENCY,24/07/2015,Grants,Delivery Directorate,Grants to third sector organisations / not for profit organisations and other businesses,GRANDPONT NURSERY SCHOOL,4000213117,6000.00
Department for Education,DEPARTMENT FOR EDUCATION,24/07/2015,Grants,"Childcare, Special Educational Needs and Children's Strategy Group",Grants to third sector organisations / not for profit organisations and other businesses,NATIONAL PORTAGE ASSOCIATION,4000213178,27081.79
Department for Education,NATIONAL COLLEGE FOR TEACHING AND LEADERSHIP AGENCY,24/07/2015,Grants,Delivery Directorate,Grants to third sector organisations / not for profit organisations and other businesses,OUR LADYS BISHOP ETON SCHOOL,4000213118,6000.00
Department for Education,NATIONAL COLLEGE FOR TEACHING AND LEADERSHIP AGENCY,24/07/2015,Grants,Delivery Directorate,Grants to third sector organisations / not for profit organisations and other businesses,MIDDLEFIELD PRIMARY ACADEMY,4000213134,6000.00
Department for Education,DEPARTMENT FOR EDUCATION,24/07/2015,Grants,Children in Care Division,Grants to third sector organisations / not for profit organisations and other businesses,TAVISTOCK CENTRE FOR COUPLE RELATIONSHIPS,4000213184,51688.95
Department for Education,DEPARTMENT FOR EDUCATION,24/07/2015,Grants,Assessment and Curriculum and General Qualifications Group,Grants to third sector organisations / not for profit organisations and other businesses,THE HOLOCAUST EDUCATIONAL TRUST,4000213185,535733.00
Department for Education,NATIONAL COLLEGE FOR TEACHING AND LEADERSHIP AGENCY,24/07/2015,Grants,Delivery Directorate,Grants to third sector organisations / not for profit organisations and other businesses,ST HUBERTS PRIMARY SCHOOL,4000213135,6000.00
Department for Education,NATIONAL COLLEGE FOR TEACHING AND LEADERSHIP AGENCY,24/07/2015,Grants,Delivery Directorate,Grants to third sector organisations / not for profit organisations and other businesses,SHERINGHAM NURSERY SCHOOL & CHILDRENS CENTRE,4000213136,6000.00
Department for Education,NATIONAL COLLEGE FOR TEACHING AND LEADERSHIP AGENCY,24/07/2015,Grants,Delivery Directorate,Grants to third sector organisations / not for profit organisations and other businesses,HITCHIN GIRLS SCHOOL,4000213155,6000.00
Department for Education,NATIONAL COLLEGE FOR TEACHING AND LEADERSHIP AGENCY,24/07/2015,Grants,Delivery Directorate,Grants to third sector organisations / not for profit organisations and other businesses,THE ARNEWOOD SCHOOL,4000213164,6000.00
Department for Education,NATIONAL COLLEGE FOR TEACHING AND LEADERSHIP AGENCY,24/07/2015,Grants,Delivery Directorate,Grants to third sector organisations / not for profit organisations and other businesses,BECKFOOT SCHOOL,4000213167,6000.00
Department for Education,NATIONAL COLLEGE FOR TEACHING AND LEADERSHIP AGENCY,24/07/2015,Grants,Delivery Directorate,Grants to third sector organisations / not for profit organisations and other businesses,TOLLGATE PRIMARY SCHOOL,4000213173,6000.00
Department for Education,NATIONAL COLLEGE FOR TEACHING AND LEADERSHIP AGENCY,24/07/2015,Grants,Delivery Directorate,Grants to third sector organisations / not for profit organisations and other businesses,MARLING SCHOOL,4000213177,6000.00
Department for Education,NATIONAL COLLEGE FOR TEACHING AND LEADERSHIP AGENCY,24/07/2015,Grants,Delivery Directorate,Grants to third sector organisations / not for profit organisations and other businesses,SOUTH HUNSLEY SCHOOL,4000213180,6000.00
Department for Education,NATIONAL COLLEGE FOR TEACHING AND LEADERSHIP AGENCY,24/07/2015,Grants,Delivery Directorate,Grants to third sector organisations / not for profit organisations and other businesses,THE EARLS HIGH SCHOOL TS ACCOUNT,4000213219,6000.00
Department for Education,NATIONAL COLLEGE FOR TEACHING AND LEADERSHIP AGENCY,24/07/2015,Grants,Delivery Directorate,Grants to third sector organisations / not for profit organisations and other businesses,BLEAK HILL PRIMARY SCHOOL TS ACCOUNT,4000213220,6000.00
Department for Education,NATIONAL COLLEGE FOR TEACHING AND LEADERSHIP AGENCY,24/07/2015,Grants,Delivery Directorate,Grants to third sector organisations / not for profit organisations and other businesses,BOTTISHAM VILLAGE COLLEGE TS ACCOUNT,4000213222,6000.00
Department for Education,DEPARTMENT FOR EDUCATION,24/07/2015,Grants,Children's Services and Departmental Strategy Safeguarding Group,Grants to third sector organisations / not for profit organisations and other businesses,ARK UK PROGRAMMES,4000213234,183504.36
Department for Education,NATIONAL COLLEGE FOR TEACHING AND LEADERSHIP AGENCY,24/07/2015,Grants,Delivery Directorate,Grants to third sector organisations / not for profit organisations and other businesses,BARROW CEVCP SCHOOL TS ACCOUNT,4000213223,6000.00
Department for Education,NATIONAL COLLEGE FOR TEACHING AND LEADERSHIP AGENCY,24/07/2015,Grants,Delivery Directorate,Grants to third sector organisations / not for profit organisations and other businesses,BELGRAVE ST BARTHOLOMEWS ACADEMY TS ACCOUNT,4000213233,6000.00
Department for Education,DEPARTMENT FOR EDUCATION,24/07/2015,Grants,Children's Services and Departmental Strategy Safeguarding Group,Grants to third sector organisations / not for profit organisations and other businesses,PACE,4000213248,41844.82
Department for Education,NATIONAL COLLEGE FOR TEACHING AND LEADERSHIP AGENCY,24/07/2015,Grants,Delivery Directorate,Grants to third sector organisations / not for profit organisations and other businesses,IFIELD SCHOOL,4000213235,6000.00
Department for Education,DEPARTMENT FOR EDUCATION,24/07/2015,Professional Services Consultancy and Contingent Labour,Information Technology Group,Costs related to temporary workers,RUSSAM GMS LTD,4000213061,8640.00
Department for Education,DEPARTMENT FOR EDUCATION,24/07/2015,Professional Services Consultancy and Contingent Labour,Information Technology Group,Costs related to temporary workers,RUSSAM GMS LTD,4000213061,21384.00
Department for Education,DEPARTMENT FOR EDUCATION,24/07/2015,Professional Services Consultancy and Contingent Labour,Information Technology Group,Costs related to temporary workers,RUSSAM GMS LTD,4000213061,9990.00
Department for Education,DEPARTMENT FOR EDUCATION,27/07/2015,Grants,Children's Services and Departmental Strategy Safeguarding Group,Current grants paid to organisations including arms length bodies and educational establishments,OFFICE OF THE CHILDRENS COMMISSIONER,2001142,282730.47
Department for Education,DEPARTMENT FOR EDUCATION,27/07/2015,Professional Services Other,Families Group,"Fees / expenses of professionals, for example to implement advice or changes",DELOITTE LLP,4000213294,554313.36
Department for Education,NATIONAL COLLEGE FOR TEACHING AND LEADERSHIP AGENCY,27/07/2015,Programme costs,Delivery Directorate,Funding to deliver policies (excluding consultancy) paid to third parties via a service delivery contract,SELT,4000213267,342366.75
Department for Education,NATIONAL COLLEGE FOR TEACHING AND LEADERSHIP AGENCY,27/07/2015,Professional Services Other,Operations Directorate,"Fees / expenses of professionals, for example to implement advice or changes",NABARRO LLP,4000213326,25113.12
Department for Education,DEPARTMENT FOR EDUCATION,27/07/2015,Office Solutions,Information Technology Group,Office machines,GLOBAL DOCUMENT OUTSOURCING XEROX UK LTD,4000213285,111266.27
Department for Education,DEPARTMENT FOR EDUCATION,27/07/2015,Professional Services Consultancy and Contingent Labour,Information Technology Group,Costs related to temporary workers,METHODS CONSULTING LTD,4000213323,23040.00
Department for Education,DEPARTMENT FOR EDUCATION,27/07/2015,ICT,Information Technology Group,ICT Services,EDUSERV,4000213257,90672.00
Department for Education,DEPARTMENT FOR EDUCATION,27/07/2015,Grants,Academies Delivery Group,Grants to third sector organisations / not for profit organisations and other businesses,ST OSWALDS WORLESTON CE PRIMARY SCHOOL,4000213258,25000.00
Department for Education,DEPARTMENT FOR EDUCATION,27/07/2015,Learning and Development,Human Resources Group,Staff training and development including materials and courses,CIVIL SERVICE LEARNING,4000213282,112000.00
Department for Education,DEPARTMENT FOR EDUCATION,27/07/2015,Grants,Academies Delivery Group,Grants to third sector organisations / not for profit organisations and other businesses,DIOCESE OF CANTERBURY ACADEMIES CO LTD,4000213284,25000.00
Department for Education,DEPARTMENT FOR EDUCATION,27/07/2015,Grants,Academies Delivery Group,Grants to third sector organisations / not for profit organisations and other businesses,TRURO & PENWITH ACADEMY TRUST,4000213292,50000.00
Department for Education,DEPARTMENT FOR EDUCATION,27/07/2015,Grants,Academies Delivery Group,Grants to third sector organisations / not for profit organisations and other businesses,HAMILTON INFANTS SCHOOL,4000213313,25000.00
Department for Education,DEPARTMENT FOR EDUCATION,27/07/2015,Professional Services Consultancy and Contingent Labour,Children in Care Division,"Advisory services including fees, travel and expenses",METHODS CONSULTING LTD,4000213323,30000.00
Department for Education,DEPARTMENT FOR EDUCATION,27/07/2015,Grants,Academies Delivery Group,Grants to third sector organisations / not for profit organisations and other businesses,LEA VALLEY HIGH SCHOOL,4000213325,25000.00
Department for Education,DEPARTMENT FOR EDUCATION,27/07/2015,Facilities,Property Asset Management Group,Property management,METHODS CONSULTING LTD,4000213323,21168.00
Department for Education,NATIONAL COLLEGE FOR TEACHING AND LEADERSHIP AGENCY,28/07/2015,Grants,Delivery Directorate,Grants to third sector organisations / not for profit organisations and other businesses,ST PAULS TEACHING SCHOOL,4000213328,117810.00
Department for Education,NATIONAL COLLEGE FOR TEACHING AND LEADERSHIP AGENCY,28/07/2015,Grants,Delivery Directorate,Grants to third sector organisations / not for profit organisations and other businesses,ST JOSEPHS SPECIAL SCHOOL & COLLEGE,4000213354,40000.00
Department for Education,NATIONAL COLLEGE FOR TEACHING AND LEADERSHIP AGENCY,28/07/2015,Grants,Delivery Directorate,Grants to third sector organisations / not for profit organisations and other businesses,LEADERSHIP LEARNING SOUTH EAST,4000213337,31858.00
Department for Education,NATIONAL COLLEGE FOR TEACHING AND LEADERSHIP AGENCY,28/07/2015,Grants,Delivery Directorate,Grants to third sector organisations / not for profit organisations and other businesses,LEADERSHIP LEARNING SOUTH EAST,4000213337,13500.00
Department for Education,NATIONAL COLLEGE FOR TEACHING AND LEADERSHIP AGENCY,28/07/2015,Grants,Delivery Directorate,Grants to third sector organisations / not for profit organisations and other businesses,LEADERSHIP LEARNING SOUTH EAST,4000213337,8265.00
Department for Education,DEPARTMENT FOR EDUCATION,28/07/2015,Grants,Free School Group,Grants to third sector organisations / not for profit organisations and other businesses,CHRISTLETON INTERNATIONAL STUDIO,4000213329,90000.00
Department for Education,DEPARTMENT FOR EDUCATION,28/07/2015,Grants,Children in Care Division,Grants to third sector organisations / not for profit organisations and other businesses,THE SHARE FOUNDATION 3RD PARTY TRUST,4000213331,98600.00
Department for Education,DEPARTMENT FOR EDUCATION,28/07/2015,Grants,Academies Delivery Group,Grants to third sector organisations / not for profit organisations and other businesses,CULVERSTONE GREEN PRIMARY SCHOOL,4000213340,25000.00
Department for Education,DEPARTMENT FOR EDUCATION,28/07/2015,Grants,Academies Delivery Group,Grants to third sector organisations / not for profit organisations and other businesses,DIOCESE OF NORWICH MULTI ACADEMY TRUST,4000213359,70000.00
Department for Education,DEPARTMENT FOR EDUCATION,28/07/2015,ICT,Information Technology Group,ICT Hardware,VODAFONE LTD,4000213330,12830.47
Department for Education,DEPARTMENT FOR EDUCATION,28/07/2015,ICT,Information Technology Group,Telecoms facilities and services - telecom rentals,VODAFONE LTD,4000213330,-68.40
Department for Education,DEPARTMENT FOR EDUCATION,28/07/2015,ICT,Information Technology Group,ICT Services,VODAFONE LTD,4000213330,84178.26
Department for Education,DEPARTMENT FOR EDUCATION,28/07/2015,ICT,Information Technology Group,ICT Hardware,VODAFONE LTD,4000213330,-3147.99
Department for Education,DEPARTMENT FOR EDUCATION,29/07/2015,Professional Services Consultancy and Contingent Labour,Information Technology Group,Costs related to temporary workers,CAPGEMINI UK PLC,4000213446,36315.31
Department for Education,DEPARTMENT FOR EDUCATION,29/07/2015,Programme costs,"Childcare, Special Educational Needs and Children's Strategy Group",Funding to deliver policies (excluding consultancy) paid to third parties via a service delivery contract,MOTT MACDONALD LTD,4000213438,179978.40
Department for Education,DEPARTMENT FOR EDUCATION,29/07/2015,Programme costs,Assessment and Curriculum and General Qualifications Group,Funding to deliver policies (excluding consultancy) paid to third parties via a service delivery contract,INSTITUTE OF EDUCATION U.O.L.,4000213473,119583.24
Department for Education,DEPARTMENT FOR EDUCATION,29/07/2015,Grants,"Childcare, Special Educational Needs and Children's Strategy Group",Grants to third sector organisations / not for profit organisations and other businesses,OXFORD PARENT INFANT PROJECT,4000213371,29501.34
Department for Education,DEPARTMENT FOR EDUCATION,29/07/2015,Facilities,Property Asset Management Group,"Building maintenance and repair, including repainting, replacing flooring, etc.",INTERSERVE FACILITIES MANAGEMENT LTD,4000213398,105803.68
Department for Education,DEPARTMENT FOR EDUCATION,29/07/2015,Grants,"Childcare, Special Educational Needs and Children's Strategy Group",Grants to third sector organisations / not for profit organisations and other businesses,PRINCES TRUST VOLUNTEERS PROGRAMME,4000213421,96204.00
Department for Education,DEPARTMENT FOR EDUCATION,29/07/2015,Grants,"Childcare, Special Educational Needs and Children's Strategy Group",Grants to third sector organisations / not for profit organisations and other businesses,IMAGO,4000213430,41752.00
Department for Education,DEPARTMENT FOR EDUCATION,29/07/2015,Grants,"Childcare, Special Educational Needs and Children's Strategy Group",Grants to third sector organisations / not for profit organisations and other businesses,YMCA,4000213431,32225.00
Department for Education,DEPARTMENT FOR EDUCATION,29/07/2015,Grants,"Childcare, Special Educational Needs and Children's Strategy Group",Grants to third sector organisations / not for profit organisations and other businesses,YOUNG MINDS,4000213476,78948.75
Department for Education,DEPARTMENT FOR EDUCATION,29/07/2015,Grants,Families Group,Grants to third sector organisations / not for profit organisations and other businesses,THE TAVISTOCK & PORTMAN NHS FOUNDATION TRUST,4000213374,78124.58
Department for Education,DEPARTMENT FOR EDUCATION,29/07/2015,Grants,Assessment and Curriculum and General Qualifications Group,Grants to third sector organisations / not for profit organisations and other businesses,CHOIR SCHOOLS ASSOCIATION BURSARY TRUST LTD,4000213382,3600000.00
Department for Education,DEPARTMENT FOR EDUCATION,29/07/2015,Grants,Children's Services and Departmental Strategy Safeguarding Group,Grants to third sector organisations / not for profit organisations and other businesses,BARNARDOS,4000213417,134471.13
Department for Education,DEPARTMENT FOR EDUCATION,29/07/2015,Grants,Families Group,Current grants to private sector organisations,RESOLUTIONS CONSULTANCY PTY LTD,4000213419,38825.44
Department for Education,DEPARTMENT FOR EDUCATION,29/07/2015,Grants,Families Group,Grants to third sector organisations / not for profit organisations and other businesses,NORFOLK & SUFFOLK NHS FOUNDATION TRUST,4000213420,121959.32
Department for Education,DEPARTMENT FOR EDUCATION,29/07/2015,Grants,Families Group,Grants to third sector organisations / not for profit organisations and other businesses,MATCH FOSTER CARE,4000213441,138975.00
Department for Education,DEPARTMENT FOR EDUCATION,29/07/2015,Grants,"Childcare, Special Educational Needs and Children's Strategy Group",Grants to third sector organisations / not for profit organisations and other businesses,CONTACT A FAMILY,4000213449,100446.00
Department for Education,DEPARTMENT FOR EDUCATION,29/07/2015,Grants,"Childcare, Special Educational Needs and Children's Strategy Group",Grants to third sector organisations / not for profit organisations and other businesses,THE NATIONAL AUTISTIC SOCIETY VCS,4000213461,32677.38
Department for Education,DEPARTMENT FOR EDUCATION,29/07/2015,Grants,Assessment and Curriculum and General Qualifications Group,Grants to third sector organisations / not for profit organisations and other businesses,ENTHUSE CHARITABLE TRUST,4000213481,201343.01
Department for Education,DEPARTMENT FOR EDUCATION,29/07/2015,Grants,Children in Care Division,Grants to third sector organisations / not for profit organisations and other businesses,CAMBRIDGE EDUCATION HEAD OFFICE,4000213485,2000000.00
Department for Education,DEPARTMENT FOR EDUCATION,29/07/2015,Grants,Assessment and Curriculum and General Qualifications Group,Grants to third sector organisations / not for profit organisations and other businesses,UNIVERSITY OF CAMBRIDGE,4000213486,40246.00
Department for Education,DEPARTMENT FOR EDUCATION,29/07/2015,Programme costs,Children in Care Division,Funding to deliver policies (excluding consultancy) paid to third parties via a service delivery contract,NYAS,4000213372,37500.00
Department for Education,DEPARTMENT FOR EDUCATION,29/07/2015,Programme costs,Closing the Gap Group,Funding to deliver policies (excluding consultancy) paid to third parties via a service delivery contract,BE GROUP,4000213418,30000.00
Department for Education,NATIONAL COLLEGE FOR TEACHING AND LEADERSHIP AGENCY,29/07/2015,Grants,Operations Directorate,Grants to third sector organisations / not for profit organisations and other businesses,INSTITUTE OF EDUCATION U.O.L.,4000213473,2250.00
Department for Education,NATIONAL COLLEGE FOR TEACHING AND LEADERSHIP AGENCY,30/07/2015,Grants,Delivery Directorate,Grants to third sector organisations / not for profit organisations and other businesses,THE BRILLIANT CLUB,4000213519,275000.00
Department for Education,STANDARDS AND TESTING AGENCY,30/07/2015,Professional Services Other,Test Operations Division,"Fees / expenses of professionals, for external marking services.",EDEXCEL,4000213495,8844421.00
Department for Education,DEPARTMENT FOR EDUCATION,30/07/2015,Programme costs,Systems and Accountability Group,Funding to deliver policies (excluding consultancy) paid to third parties via a service delivery contract,RESEARCH MACHINES PLC,4000213595,487536.00
Department for Education,DEPARTMENT FOR EDUCATION,30/07/2015,ICT,Information Technology Group,ICT Services,SKILLS FUNDING AGENCY,4000213583,27999.60
Department for Education,DEPARTMENT FOR EDUCATION,30/07/2015,ICT,Information Technology Group,ICT Services,SKILLS FUNDING AGENCY,4000213583,256250.40
Department for Education,DEPARTMENT FOR EDUCATION,30/07/2015,Programme costs,Assessment and Curriculum and General Qualifications Group,Funding to deliver policies (excluding consultancy) paid to third parties via a service delivery contract,MYSCIENCE CO LTD,4000213590,73782.35
Department for Education,DEPARTMENT FOR EDUCATION,30/07/2015,Programme costs,Children in Care Division,Funding to deliver policies (excluding consultancy) paid to third parties via a service delivery contract,MOTT MACDONALD LTD,4000213562,58494.27
Department for Education,DEPARTMENT FOR EDUCATION,30/07/2015,Personnel Related,Human Resources Group,Childcare expenses paid to staff,FIDELITI LTD,4000213497,89750.34
Department for Education,DEPARTMENT FOR EDUCATION,30/07/2015,Facilities,Property Asset Management Group,"Building maintenance and repair, including repainting, replacing flooring, etc.",INTERSERVE FACILITIES MANAGEMENT LTD,4000213509,276878.93
Department for Education,DEPARTMENT FOR EDUCATION,30/07/2015,Programme costs,"Childcare, Special Educational Needs and Children's Strategy Group",Funding to deliver policies (excluding consultancy) paid to third parties via a service delivery contract,SINGLE PARENT ACTION NETWORK,4000213493,39980.40
Department for Education,DEPARTMENT FOR EDUCATION,30/07/2015,Programme costs,Systems and Accountability Group,Funding to deliver policies (excluding consultancy) paid to third parties via a service delivery contract,RM EDUCATION PLC,4000213496,39969.17
Department for Education,DEPARTMENT FOR EDUCATION,30/07/2015,Personnel Related,Human Resources Group,Childcare services provided for staff including the management fee and subsidy costs,FIDELITI LTD,4000213497,430.80
Department for Education,DEPARTMENT FOR EDUCATION,30/07/2015,Grants,Free School Group,Grants to third sector organisations / not for profit organisations and other businesses,THE SIR SIMON MILTON UTC,4000213512,60000.00
Department for Education,DEPARTMENT FOR EDUCATION,30/07/2015,Facilities,Property Asset Management Group,Property management,METHODS CONSULTING LTD,4000213557,56400.00
Department for Education,DEPARTMENT FOR EDUCATION,30/07/2015,Grants,Free School Group,Grants to third sector organisations / not for profit organisations and other businesses,TRAFALGAR COLLEGE INSPIRATION TRUST,4000213528,90000.00
Department for Education,DEPARTMENT FOR EDUCATION,30/07/2015,Grants,Free School Group,Grants to third sector organisations / not for profit organisations and other businesses,CHARLES DARWIN PRIMARY SCHOOL INSPIRATION TRUST,4000213529,45000.00
Department for Education,DEPARTMENT FOR EDUCATION,30/07/2015,Grants,Academies Delivery Group,Grants to third sector organisations / not for profit organisations and other businesses,LEARNING ACADEMY PARTNERSHIP,4000213530,25000.00
Department for Education,DEPARTMENT FOR EDUCATION,30/07/2015,Grants,Academies Delivery Group,Grants to third sector organisations / not for profit organisations and other businesses,THE HEART EDUCATION TRUST,4000213532,70000.00
Department for Education,DEPARTMENT FOR EDUCATION,30/07/2015,Grants,Free School Group,Grants to third sector organisations / not for profit organisations and other businesses,NORTH CESTRIAN ACADEMY TRUST,4000213539,25000.00
Department for Education,DEPARTMENT FOR EDUCATION,30/07/2015,Grants,Families Group,Grants to third sector organisations / not for profit organisations and other businesses,NSPCC,4000213547,37197.00
Department for Education,DEPARTMENT FOR EDUCATION,30/07/2015,Grants,Free School Group,Grants to third sector organisations / not for profit organisations and other businesses,BROADCLYST PRIMARY SCHOOL,4000213556,66000.00
